BODY,BODY NAME,ENTRY DATE,POSTING DATE,TRANSACTION NUMBER,THEIR REF,AMOUNT,SUPPLIER NAME,SUPPLIER CODE,EXPENSE AREA,EXPENSE TYPE,EXPENSE CODE
http://statistics.data.gov.uk/id/local-authority/12UE,Huntingdonshire District Council,10/08/2017,10/08/2017,215071,DINV/224127,"163,703.21",SOUTH CAMBRIDGESHIRE DISTRICT COUNCIL,CR405127,Imd Shared Service,Software,206
http://statistics.data.gov.uk/id/local-authority/12UE,Huntingdonshire District Council,10/08/2017,10/08/2017,215071,DINV/224127,"2,250.00",SOUTH CAMBRIDGESHIRE DISTRICT COUNCIL,CR405127,Imd Shared Service,Equipment Maintenance,511
http://statistics.data.gov.uk/id/local-authority/12UE,Huntingdonshire District Council,10/08/2017,10/08/2017,215071,DINV/224127,809,SOUTH CAMBRIDGESHIRE DISTRICT COUNCIL,CR405127,Imd Shared Service,Registration Fee,748
http://statistics.data.gov.uk/id/local-authority/12UE,Huntingdonshire District Council,10/08/2017,10/08/2017,215071,DINV/224127,"6,885.23",SOUTH CAMBRIDGESHIRE DISTRICT COUNCIL,CR405127,Imd Shared Service,I T Line Rental,248
http://statistics.data.gov.uk/id/local-authority/12UE,Huntingdonshire District Council,10/08/2017,10/08/2017,215071,DINV/224127,"19,191.22",SOUTH CAMBRIDGESHIRE DISTRICT COUNCIL,CR405127,Imd Shared Service,Hired Staff,100
http://statistics.data.gov.uk/id/local-authority/12UE,Huntingdonshire District Council,18/08/2017,18/08/2017,215658,CE005363,"190,960.00",JLT SPECIALITY LTD,CR480345,Ins Employees Public Liability,Insurance Public Liability,160
http://statistics.data.gov.uk/id/local-authority/12UE,Huntingdonshire District Council,18/08/2017,18/08/2017,215660,CE005362,"165,329.92",JLT SPECIALITY LTD,CR480345,Insurance Vehicles & Plant,Vehicle Insurance,610
http://statistics.data.gov.uk/id/local-authority/12UE,Huntingdonshire District Council,10/08/2017,10/08/2017,215069,OP/I799323,"19,870.00",PHOENIX SOFTWARE LTD,CR031918,Ccity Recharge Invoices,Software,206
http://statistics.data.gov.uk/id/local-authority/12UE,Huntingdonshire District Council,10/08/2017,10/08/2017,215069,OP/I799323,2.27,PHOENIX SOFTWARE LTD,CR031918,Ccity Recharge Invoices,Software,206
http://statistics.data.gov.uk/id/local-authority/12UE,Huntingdonshire District Council,10/08/2017,10/08/2017,215069,OP/I799323,"10,661.95",PHOENIX SOFTWARE LTD,CR031918,Ccity Recharge Invoices,Software,206
http://statistics.data.gov.uk/id/local-authority/12UE,Huntingdonshire District Council,10/08/2017,10/08/2017,215069,OP/I799323,"2,585.10",PHOENIX SOFTWARE LTD,CR031918,Ccity Recharge Invoices,Software,206
http://statistics.data.gov.uk/id/local-authority/12UE,Huntingdonshire District Council,10/08/2017,10/08/2017,215069,OP/I799323,205.2,PHOENIX SOFTWARE LTD,CR031918,Ccity Recharge Invoices,Software,206
http://statistics.data.gov.uk/id/local-authority/12UE,Huntingdonshire District Council,10/08/2017,10/08/2017,215069,OP/I799323,"35,236.32",PHOENIX SOFTWARE LTD,CR031918,Ccity Recharge Invoices,Software,206
http://statistics.data.gov.uk/id/local-authority/12UE,Huntingdonshire District Council,10/08/2017,10/08/2017,215069,OP/I799323,22.27,PHOENIX SOFTWARE LTD,CR031918,Ccity Recharge Invoices,Software,206
http://statistics.data.gov.uk/id/local-authority/12UE,Huntingdonshire District Council,10/08/2017,10/08/2017,215069,OP/I799323,105.2,PHOENIX SOFTWARE LTD,CR031918,Ccity Recharge Invoices,Software,206
http://statistics.data.gov.uk/id/local-authority/12UE,Huntingdonshire District Council,10/08/2017,10/08/2017,215069,OP/I799323,"2,398.00",PHOENIX SOFTWARE LTD,CR031918,Ccity Recharge Invoices,Software,206
http://statistics.data.gov.uk/id/local-authority/12UE,Huntingdonshire District Council,10/08/2017,10/08/2017,215069,OP/I799323,"17,022.96",PHOENIX SOFTWARE LTD,CR031918,Ccity Recharge Invoices,Software,206
http://statistics.data.gov.uk/id/local-authority/12UE,Huntingdonshire District Council,10/08/2017,10/08/2017,215069,OP/I799323,"14,958.00",PHOENIX SOFTWARE LTD,CR031918,Ccity Recharge Invoices,Software,206
http://statistics.data.gov.uk/id/local-authority/12UE,Huntingdonshire District Council,10/08/2017,10/08/2017,215069,OP/I799323,"19,721.85",PHOENIX SOFTWARE LTD,CR031918,Ccity Recharge Invoices,Software,206
http://statistics.data.gov.uk/id/local-authority/12UE,Huntingdonshire District Council,10/08/2017,10/08/2017,215069,OP/I799323,"2,827.20",PHOENIX SOFTWARE LTD,CR031918,Ccity Recharge Invoices,Software,206
http://statistics.data.gov.uk/id/local-authority/12UE,Huntingdonshire District Council,17/08/2017,17/08/2017,215464,943459,"94,640.00",RANSOMES JACOBSEN LTD,CR424662,Vehicles & Plant,Vehicles Purchased,600
http://statistics.data.gov.uk/id/local-authority/12UE,Huntingdonshire District Council,18/08/2017,18/08/2017,215659,CE005361,"5,599.81",JLT SPECIALITY LTD,CR480345,Imd Shared Service,Equipment Ins/All Risks,510
http://statistics.data.gov.uk/id/local-authority/12UE,Huntingdonshire District Council,18/08/2017,18/08/2017,215659,CE005361,"55,103.91",JLT SPECIALITY LTD,CR480345,Insurance Buildings,Building Insurance,414
http://statistics.data.gov.uk/id/local-authority/12UE,Huntingdonshire District Council,18/08/2017,18/08/2017,215659,CE005361,176.96,JLT SPECIALITY LTD,CR480345,Insurance Engineering,Equipment Ins/All Risks,510
http://statistics.data.gov.uk/id/local-authority/12UE,Huntingdonshire District Council,18/08/2017,18/08/2017,215659,CE005361,"30,352.96",JLT SPECIALITY LTD,CR480345,Industrial Properties,Ins (Service Related),260
http://statistics.data.gov.uk/id/local-authority/12UE,Huntingdonshire District Council,23/08/2017,23/08/2017,215861,50111047,"45,102.00",GUEST MOTORS LTD,CR424046,Vehicles & Plant,Vehicles Purchased,600
http://statistics.data.gov.uk/id/local-authority/12UE,Huntingdonshire District Council,09/08/2017,10/08/2017,214856,CP PAYMENTS,"28,250.00",WAITROSE,CR019599,St Neots Waitrose,Contribution (Paid Out),810
http://statistics.data.gov.uk/id/local-authority/12UE,Huntingdonshire District Council,09/08/2017,10/08/2017,214856,CP PAYMENTS,"14,750.00",WAITROSE,CR019599,St Ives Cattle Market (Wait),Contribution (Paid Out),810
http://statistics.data.gov.uk/id/local-authority/12UE,Huntingdonshire District Council,03/08/2017,03/08/2017,214634,3030933,"40,184.77",METROPOLITAN HOUSING TRUST LTD,CR487206,Homelessness,Hostel Revenue Support,817
http://statistics.data.gov.uk/id/local-authority/12UE,Huntingdonshire District Council,03/08/2017,03/08/2017,214636,3030934,"40,184.77",METROPOLITAN HOUSING TRUST LTD,CR487206,Homelessness,Hostel Revenue Support,817
http://statistics.data.gov.uk/id/local-authority/12UE,Huntingdonshire District Council,31/08/2017,31/08/2017,216256,SD/17/2355,"37,638.00",HASTOE WYVERN HOUSING ASSOCIATION LTD,CR424893,S106 Agreements Exp & Inc,Contribution (Paid Out),810
http://statistics.data.gov.uk/id/local-authority/12UE,Huntingdonshire District Council,10/08/2017,10/08/2017,215070,OP/I799403,"1,730.38",PHOENIX SOFTWARE LTD,CR031918,Ccity Recharge Invoices,Software,206
http://statistics.data.gov.uk/id/local-authority/12UE,Huntingdonshire District Council,10/08/2017,10/08/2017,215070,OP/I799403,"26,025.30",PHOENIX SOFTWARE LTD,CR031918,Ccity Recharge Invoices,Software,206
http://statistics.data.gov.uk/id/local-authority/12UE,Huntingdonshire District Council,10/08/2017,10/08/2017,215070,OP/I799403,709.8,PHOENIX SOFTWARE LTD,CR031918,Ccity Recharge Invoices,Software,206
http://statistics.data.gov.uk/id/local-authority/12UE,Huntingdonshire District Council,10/08/2017,10/08/2017,215070,OP/I799403,"2,127.96",PHOENIX SOFTWARE LTD,CR031918,Ccity Recharge Invoices,Software,206
http://statistics.data.gov.uk/id/local-authority/12UE,Huntingdonshire District Council,10/08/2017,10/08/2017,215070,OP/I799403,232.99,PHOENIX SOFTWARE LTD,CR031918,Ccity Recharge Invoices,Software,206
http://statistics.data.gov.uk/id/local-authority/12UE,Huntingdonshire District Council,10/08/2017,10/08/2017,215070,OP/I799403,344.48,PHOENIX SOFTWARE LTD,CR031918,Ccity Recharge Invoices,Software,206
http://statistics.data.gov.uk/id/local-authority/12UE,Huntingdonshire District Council,23/08/2017,23/08/2017,215725,3321,"18,706.37",SCI PRINT LIMITED,CR416581,Electoral Registration,Postage,231
http://statistics.data.gov.uk/id/local-authority/12UE,Huntingdonshire District Council,23/08/2017,23/08/2017,215725,3321,"12,211.33",SCI PRINT LIMITED,CR416581,Electoral Registration,Printing (External),220
http://statistics.data.gov.uk/id/local-authority/12UE,Huntingdonshire District Council,02/08/2017,17/08/2017,214481,IEG4001480,"29,500.00",IEG4 LIMITED,CR453919,Hdc Recharge Invoices,Equipment Maintenance,511
http://statistics.data.gov.uk/id/local-authority/12UE,Huntingdonshire District Council,16/08/2017,16/08/2017,215465,10745894,"14,885.00",CAMBRIDGESHIRE COUNTY COUNCIL,CR006678,Ramsey Neighbourhood,Rent,410
http://statistics.data.gov.uk/id/local-authority/12UE,Huntingdonshire District Council,16/08/2017,16/08/2017,215465,10745894,"12,821.25",CAMBRIDGESHIRE COUNTY COUNCIL,CR006678,Ramsey Community Infor Centre,Rent,410
http://statistics.data.gov.uk/id/local-authority/12UE,Huntingdonshire District Council,23/08/2017,24/08/2017,215767,3009,"26,678.34",BURMOR CONSTRUCTION,CR032423,Ol Hdon Changing Facilities,Building Mtce,303
http://statistics.data.gov.uk/id/local-authority/12UE,Huntingdonshire District Council,15/08/2017,17/08/2017,214451,JC/5106/29368,"24,018.00",J BREHENY CIVIL ENGINEERING LTD,CR000314,Cctv Huntingdonshire,Sitework,359
http://statistics.data.gov.uk/id/local-authority/12UE,Huntingdonshire District Council,31/08/2017,31/08/2017,215043,340419,"21,354.25",MARSHALL OF KNEBWORTH,CR424060,Vehicles & Plant,Vehicles Purchased,600
http://statistics.data.gov.uk/id/local-authority/12UE,Huntingdonshire District Council,31/08/2017,31/08/2017,215043,340419,295,MARSHALL OF KNEBWORTH,CR424060,Vehicles & Plant,Vehicle Licence,609
http://statistics.data.gov.uk/id/local-authority/12UE,Huntingdonshire District Council,31/08/2017,31/08/2017,216268,340420,"21,354.25",MARSHALL OF KNEBWORTH,CR424060,Vehicles & Plant,Vehicles Purchased,600
http://statistics.data.gov.uk/id/local-authority/12UE,Huntingdonshire District Council,31/08/2017,31/08/2017,216268,340420,295,MARSHALL OF KNEBWORTH,CR424060,Vehicles & Plant,Vehicle Licence,609
http://statistics.data.gov.uk/id/local-authority/12UE,Huntingdonshire District Council,10/08/2017,10/08/2017,214874,340193,"21,042.33",MARSHALL OF KNEBWORTH,CR424060,Vehicles & Plant,Vehicles Purchased,600
http://statistics.data.gov.uk/id/local-authority/12UE,Huntingdonshire District Council,10/08/2017,10/08/2017,214874,340193,295,MARSHALL OF KNEBWORTH,CR424060,Vehicles & Plant,Vehicles Purchased,600
http://statistics.data.gov.uk/id/local-authority/12UE,Huntingdonshire District Council,01/08/2017,15/08/2017,214449,1586234,"18,000.00",RULLION IT PLUS LIMITED,CR423532,Imd Shared Service,Recruitment Costs,120
http://statistics.data.gov.uk/id/local-authority/12UE,Huntingdonshire District Council,09/08/2017,09/08/2017,214981,GB10100132905,"17,843.00",ERNST & YOUNG,CR411950,Corporate Finance,Audit Fees,701
http://statistics.data.gov.uk/id/local-authority/12UE,Huntingdonshire District Council,17/08/2017,17/08/2017,214955,729891,"16,300.04",GLASDON UK LTD,CR002827,Street Cleansing,Litter Bins,520
http://statistics.data.gov.uk/id/local-authority/12UE,Huntingdonshire District Council,24/08/2017,24/08/2017,215906,RC-HDC017,720,RENT CONNECT,CR424138,Homelessness,Bed & Breakfast Payment,818
http://statistics.data.gov.uk/id/local-authority/12UE,Huntingdonshire District Council,24/08/2017,24/08/2017,215906,RC-HDC017,608,RENT CONNECT,CR424138,Homelessness,Bed & Breakfast Payment,818
http://statistics.data.gov.uk/id/local-authority/12UE,Huntingdonshire District Council,24/08/2017,24/08/2017,215906,RC-HDC017,880,RENT CONNECT,CR424138,Homelessness,Bed & Breakfast Payment,818
http://statistics.data.gov.uk/id/local-authority/12UE,Huntingdonshire District Council,24/08/2017,24/08/2017,215906,RC-HDC017,720,RENT CONNECT,CR424138,Homelessness,Bed & Breakfast Payment,818
http://statistics.data.gov.uk/id/local-authority/12UE,Huntingdonshire District Council,24/08/2017,24/08/2017,215906,RC-HDC017,720,RENT CONNECT,CR424138,Homelessness,Bed & Breakfast Payment,818
http://statistics.data.gov.uk/id/local-authority/12UE,Huntingdonshire District Council,24/08/2017,24/08/2017,215906,RC-HDC017,880,RENT CONNECT,CR424138,Homelessness,Bed & Breakfast Payment,818
http://statistics.data.gov.uk/id/local-authority/12UE,Huntingdonshire District Council,24/08/2017,24/08/2017,215906,RC-HDC017,960,RENT CONNECT,CR424138,Homelessness,Bed & Breakfast Payment,818
http://statistics.data.gov.uk/id/local-authority/12UE,Huntingdonshire District Council,24/08/2017,24/08/2017,215906,RC-HDC017,960,RENT CONNECT,CR424138,Homelessness,Bed & Breakfast Payment,818
http://statistics.data.gov.uk/id/local-authority/12UE,Huntingdonshire District Council,24/08/2017,24/08/2017,215906,RC-HDC017,720,RENT CONNECT,CR424138,Homelessness,Bed & Breakfast Payment,818
http://statistics.data.gov.uk/id/local-authority/12UE,Huntingdonshire District Council,24/08/2017,24/08/2017,215906,RC-HDC017,880,RENT CONNECT,CR424138,Homelessness,Bed & Breakfast Payment,818
http://statistics.data.gov.uk/id/local-authority/12UE,Huntingdonshire District Council,24/08/2017,24/08/2017,215906,RC-HDC017,720,RENT CONNECT,CR424138,Homelessness,Bed & Breakfast Payment,818
http://statistics.data.gov.uk/id/local-authority/12UE,Huntingdonshire District Council,24/08/2017,24/08/2017,215906,RC-HDC017,720,RENT CONNECT,CR424138,Homelessness,Bed & Breakfast Payment,818
http://statistics.data.gov.uk/id/local-authority/12UE,Huntingdonshire District Council,24/08/2017,24/08/2017,215906,RC-HDC017,910,RENT CONNECT,CR424138,Homelessness,Bed & Breakfast Payment,818
http://statistics.data.gov.uk/id/local-authority/12UE,Huntingdonshire District Council,24/08/2017,24/08/2017,215906,RC-HDC017,675,RENT CONNECT,CR424138,Homelessness,Bed & Breakfast Payment,818
http://statistics.data.gov.uk/id/local-authority/12UE,Huntingdonshire District Council,24/08/2017,24/08/2017,215906,RC-HDC017,720,RENT CONNECT,CR424138,Homelessness,Bed & Breakfast Payment,818
http://statistics.data.gov.uk/id/local-authority/12UE,Huntingdonshire District Council,24/08/2017,24/08/2017,215906,RC-HDC017,"1,440.00",RENT CONNECT,CR424138,Homelessness,Bed & Breakfast Payment,818
http://statistics.data.gov.uk/id/local-authority/12UE,Huntingdonshire District Council,24/08/2017,24/08/2017,215906,RC-HDC017,880,RENT CONNECT,CR424138,Homelessness,Bed & Breakfast Payment,818
http://statistics.data.gov.uk/id/local-authority/12UE,Huntingdonshire District Council,24/08/2017,24/08/2017,215906,RC-HDC017,880,RENT CONNECT,CR424138,Homelessness,Bed & Breakfast Payment,818
http://statistics.data.gov.uk/id/local-authority/12UE,Huntingdonshire District Council,24/08/2017,24/08/2017,215906,RC-HDC017,880,RENT CONNECT,CR424138,Homelessness,Bed & Breakfast Payment,818
http://statistics.data.gov.uk/id/local-authority/12UE,Huntingdonshire District Council,24/08/2017,24/08/2017,215906,RC-HDC017,380,RENT CONNECT,CR424138,Homelessness,Bed & Breakfast Payment,818
http://statistics.data.gov.uk/id/local-authority/12UE,Huntingdonshire District Council,15/08/2017,17/08/2017,215258,UK4-872-2017,"12,000.00",KEYTREE LIMITED,CR424687,Hdc Recharge Invoices,Software,206
http://statistics.data.gov.uk/id/local-authority/12UE,Huntingdonshire District Council,15/08/2017,17/08/2017,215258,UK4-872-2017,"3,600.00",KEYTREE LIMITED,CR424687,Hdc Recharge Invoices,Software,206
http://statistics.data.gov.uk/id/local-authority/12UE,Huntingdonshire District Council,17/08/2017,17/08/2017,215494,943460,"15,250.00",RANSOMES JACOBSEN LTD,CR424662,Vehicles & Plant,Vehicles Purchased,600
http://statistics.data.gov.uk/id/local-authority/12UE,Huntingdonshire District Council,30/08/2017,31/08/2017,216120,2017-0003,"14,778.00",CC2i,CR424805,Imd Shared Service,Training,130
http://statistics.data.gov.uk/id/local-authority/12UE,Huntingdonshire District Council,09/08/2017,10/08/2017,214913,RC - HDC016,675,RENT CONNECT,CR424138,Homelessness,Bed & Breakfast Payment,818
http://statistics.data.gov.uk/id/local-authority/12UE,Huntingdonshire District Council,09/08/2017,10/08/2017,214913,RC - HDC016,675,RENT CONNECT,CR424138,Homelessness,Bed & Breakfast Payment,818
http://statistics.data.gov.uk/id/local-authority/12UE,Huntingdonshire District Council,09/08/2017,10/08/2017,214913,RC - HDC016,570,RENT CONNECT,CR424138,Homelessness,Bed & Breakfast Payment,818
http://statistics.data.gov.uk/id/local-authority/12UE,Huntingdonshire District Council,09/08/2017,10/08/2017,214913,RC - HDC016,825,RENT CONNECT,CR424138,Homelessness,Bed & Breakfast Payment,818
http://statistics.data.gov.uk/id/local-authority/12UE,Huntingdonshire District Council,09/08/2017,10/08/2017,214913,RC - HDC016,495,RENT CONNECT,CR424138,Homelessness,Bed & Breakfast Payment,818
http://statistics.data.gov.uk/id/local-authority/12UE,Huntingdonshire District Council,09/08/2017,10/08/2017,214913,RC - HDC016,675,RENT CONNECT,CR424138,Homelessness,Bed & Breakfast Payment,818
http://statistics.data.gov.uk/id/local-authority/12UE,Huntingdonshire District Council,09/08/2017,10/08/2017,214913,RC - HDC016,675,RENT CONNECT,CR424138,Homelessness,Bed & Breakfast Payment,818
http://statistics.data.gov.uk/id/local-authority/12UE,Huntingdonshire District Council,09/08/2017,10/08/2017,214913,RC - HDC016,825,RENT CONNECT,CR424138,Homelessness,Bed & Breakfast Payment,818
http://statistics.data.gov.uk/id/local-authority/12UE,Huntingdonshire District Council,09/08/2017,10/08/2017,214913,RC - HDC016,900,RENT CONNECT,CR424138,Homelessness,Bed & Breakfast Payment,818
http://statistics.data.gov.uk/id/local-authority/12UE,Huntingdonshire District Council,09/08/2017,10/08/2017,214913,RC - HDC016,900,RENT CONNECT,CR424138,Homelessness,Bed & Breakfast Payment,818
http://statistics.data.gov.uk/id/local-authority/12UE,Huntingdonshire District Council,09/08/2017,10/08/2017,214913,RC - HDC016,675,RENT CONNECT,CR424138,Homelessness,Bed & Breakfast Payment,818
http://statistics.data.gov.uk/id/local-authority/12UE,Huntingdonshire District Council,09/08/2017,10/08/2017,214913,RC - HDC016,825,RENT CONNECT,CR424138,Homelessness,Bed & Breakfast Payment,818
http://statistics.data.gov.uk/id/local-authority/12UE,Huntingdonshire District Council,09/08/2017,10/08/2017,214913,RC - HDC016,675,RENT CONNECT,CR424138,Homelessness,Bed & Breakfast Payment,818
http://statistics.data.gov.uk/id/local-authority/12UE,Huntingdonshire District Council,09/08/2017,10/08/2017,214913,RC - HDC016,675,RENT CONNECT,CR424138,Homelessness,Bed & Breakfast Payment,818
http://statistics.data.gov.uk/id/local-authority/12UE,Huntingdonshire District Council,09/08/2017,10/08/2017,214913,RC - HDC016,975,RENT CONNECT,CR424138,Homelessness,Bed & Breakfast Payment,818
http://statistics.data.gov.uk/id/local-authority/12UE,Huntingdonshire District Council,09/08/2017,10/08/2017,214913,RC - HDC016,225,RENT CONNECT,CR424138,Homelessness,Bed & Breakfast Payment,818
http://statistics.data.gov.uk/id/local-authority/12UE,Huntingdonshire District Council,09/08/2017,10/08/2017,214913,RC - HDC016,"1,260.00",RENT CONNECT,CR424138,Homelessness,Bed & Breakfast Payment,818
http://statistics.data.gov.uk/id/local-authority/12UE,Huntingdonshire District Council,09/08/2017,10/08/2017,214913,RC - HDC016,825,RENT CONNECT,CR424138,Homelessness,Bed & Breakfast Payment,818
http://statistics.data.gov.uk/id/local-authority/12UE,Huntingdonshire District Council,09/08/2017,10/08/2017,214913,RC - HDC016,715,RENT CONNECT,CR424138,Homelessness,Bed & Breakfast Payment,818
http://statistics.data.gov.uk/id/local-authority/12UE,Huntingdonshire District Council,09/08/2017,10/08/2017,214913,RC - HDC016,440,RENT CONNECT,CR424138,Homelessness,Bed & Breakfast Payment,818
http://statistics.data.gov.uk/id/local-authority/12UE,Huntingdonshire District Council,03/08/2017,03/08/2017,214476,RC-HDC015,720,RENT CONNECT,CR424138,Homelessness,Bed & Breakfast Payment,818
http://statistics.data.gov.uk/id/local-authority/12UE,Huntingdonshire District Council,03/08/2017,03/08/2017,214476,RC-HDC015,810,RENT CONNECT,CR424138,Homelessness,Bed & Breakfast Payment,818
http://statistics.data.gov.uk/id/local-authority/12UE,Huntingdonshire District Council,03/08/2017,03/08/2017,214476,RC-HDC015,608,RENT CONNECT,CR424138,Homelessness,Bed & Breakfast Payment,818
http://statistics.data.gov.uk/id/local-authority/12UE,Huntingdonshire District Council,03/08/2017,03/08/2017,214476,RC-HDC015,880,RENT CONNECT,CR424138,Homelessness,Bed & Breakfast Payment,818
http://statistics.data.gov.uk/id/local-authority/12UE,Huntingdonshire District Council,03/08/2017,03/08/2017,214476,RC-HDC015,585,RENT CONNECT,CR424138,Homelessness,Bed & Breakfast Payment,818
http://statistics.data.gov.uk/id/local-authority/12UE,Huntingdonshire District Council,03/08/2017,03/08/2017,214476,RC-HDC015,720,RENT CONNECT,CR424138,Homelessness,Bed & Breakfast Payment,818
http://statistics.data.gov.uk/id/local-authority/12UE,Huntingdonshire District Council,03/08/2017,03/08/2017,214476,RC-HDC015,720,RENT CONNECT,CR424138,Homelessness,Bed & Breakfast Payment,818
http://statistics.data.gov.uk/id/local-authority/12UE,Huntingdonshire District Council,03/08/2017,03/08/2017,214476,RC-HDC015,880,RENT CONNECT,CR424138,Homelessness,Bed & Breakfast Payment,818
http://statistics.data.gov.uk/id/local-authority/12UE,Huntingdonshire District Council,03/08/2017,03/08/2017,214476,RC-HDC015,720,RENT CONNECT,CR424138,Homelessness,Bed & Breakfast Payment,818
http://statistics.data.gov.uk/id/local-authority/12UE,Huntingdonshire District Council,03/08/2017,03/08/2017,214476,RC-HDC015,960,RENT CONNECT,CR424138,Homelessness,Bed & Breakfast Payment,818
http://statistics.data.gov.uk/id/local-authority/12UE,Huntingdonshire District Council,03/08/2017,03/08/2017,214476,RC-HDC015,960,RENT CONNECT,CR424138,Homelessness,Bed & Breakfast Payment,818
http://statistics.data.gov.uk/id/local-authority/12UE,Huntingdonshire District Council,03/08/2017,03/08/2017,214476,RC-HDC015,720,RENT CONNECT,CR424138,Homelessness,Bed & Breakfast Payment,818
http://statistics.data.gov.uk/id/local-authority/12UE,Huntingdonshire District Council,03/08/2017,03/08/2017,214476,RC-HDC015,880,RENT CONNECT,CR424138,Homelessness,Bed & Breakfast Payment,818
http://statistics.data.gov.uk/id/local-authority/12UE,Huntingdonshire District Council,03/08/2017,03/08/2017,214476,RC-HDC015,720,RENT CONNECT,CR424138,Homelessness,Bed & Breakfast Payment,818
http://statistics.data.gov.uk/id/local-authority/12UE,Huntingdonshire District Council,03/08/2017,03/08/2017,214476,RC-HDC015,720,RENT CONNECT,CR424138,Homelessness,Bed & Breakfast Payment,818
http://statistics.data.gov.uk/id/local-authority/12UE,Huntingdonshire District Council,03/08/2017,03/08/2017,214476,RC-HDC015,"1,040.00",RENT CONNECT,CR424138,Homelessness,Bed & Breakfast Payment,818
http://statistics.data.gov.uk/id/local-authority/12UE,Huntingdonshire District Council,03/08/2017,03/08/2017,214476,RC-HDC015,450,RENT CONNECT,CR424138,Homelessness,Bed & Breakfast Payment,818
http://statistics.data.gov.uk/id/local-authority/12UE,Huntingdonshire District Council,03/08/2017,03/08/2017,214476,RC-HDC015,715,RENT CONNECT,CR424138,Homelessness,Bed & Breakfast Payment,818
http://statistics.data.gov.uk/id/local-authority/12UE,Huntingdonshire District Council,10/08/2017,10/08/2017,214842,S31507,"13,734.80",BSG PROPERTY SERVICES LTD,CR089905,Disabled Facilities Grants,Mandatory Grants,801
http://statistics.data.gov.uk/id/local-authority/12UE,Huntingdonshire District Council,16/08/2017,16/08/2017,212425,SO85065096,"13,697.00",STANNAH LTD Ref(20HU025),CR000759,Disabled Facilities Grants,Mandatory Grants,801
http://statistics.data.gov.uk/id/local-authority/12UE,Huntingdonshire District Council,23/08/2017,23/08/2017,215431,340449,"13,079.58",MARSHALL OF KNEBWORTH,CR424060,Vehicles & Plant,Vehicles Purchased,600
http://statistics.data.gov.uk/id/local-authority/12UE,Huntingdonshire District Council,31/08/2017,31/08/2017,216103,INVOICE 2530,"12,721.00",PERSONAL DATA REDACTED,CR423371,Disabled Facilities Grants,Mandatory Grants,801
http://statistics.data.gov.uk/id/local-authority/12UE,Huntingdonshire District Council,25/08/2017,25/08/2017,214875,32962,"1,171.71",HI-SPEC FACILITIES SERVICES PLC,CR423413,Eastfield House,Building Cleaning,440
http://statistics.data.gov.uk/id/local-authority/12UE,Huntingdonshire District Council,25/08/2017,25/08/2017,214875,32962,"1,663.83",HI-SPEC FACILITIES SERVICES PLC,CR423413,Site & Centre Management,Building Cleaning,440
http://statistics.data.gov.uk/id/local-authority/12UE,Huntingdonshire District Council,25/08/2017,25/08/2017,214875,32962,"1,781.00",HI-SPEC FACILITIES SERVICES PLC,CR423413,Site & Centre Management,Building Cleaning,440
http://statistics.data.gov.uk/id/local-authority/12UE,Huntingdonshire District Council,25/08/2017,25/08/2017,214875,32962,656.16,HI-SPEC FACILITIES SERVICES PLC,CR423413,Site & Centre Management,Building Cleaning,440
http://statistics.data.gov.uk/id/local-authority/12UE,Huntingdonshire District Council,25/08/2017,25/08/2017,214875,32962,"2,296.56",HI-SPEC FACILITIES SERVICES PLC,CR423413,Site & Centre Management,Building Cleaning,440
http://statistics.data.gov.uk/id/local-authority/12UE,Huntingdonshire District Council,25/08/2017,25/08/2017,214875,32962,515.56,HI-SPEC FACILITIES SERVICES PLC,CR423413,Site & Centre Management,Building Cleaning,440
http://statistics.data.gov.uk/id/local-authority/12UE,Huntingdonshire District Council,25/08/2017,25/08/2017,214875,32962,538.99,HI-SPEC FACILITIES SERVICES PLC,CR423413,Site & Centre Management,Building Cleaning,440
http://statistics.data.gov.uk/id/local-authority/12UE,Huntingdonshire District Council,25/08/2017,25/08/2017,214875,32962,"3,280.80",HI-SPEC FACILITIES SERVICES PLC,CR423413,Pathfinder House,Building Cleaning,440
http://statistics.data.gov.uk/id/local-authority/12UE,Huntingdonshire District Council,09/08/2017,09/08/2017,215062,32519,"1,171.71",HI-SPEC FACILITIES SERVICES PLC,CR423413,Eastfield House,Building Cleaning,440
http://statistics.data.gov.uk/id/local-authority/12UE,Huntingdonshire District Council,09/08/2017,09/08/2017,215062,32519,"1,663.83",HI-SPEC FACILITIES SERVICES PLC,CR423413,Site & Centre Management,Building Cleaning,440
http://statistics.data.gov.uk/id/local-authority/12UE,Huntingdonshire District Council,09/08/2017,09/08/2017,215062,32519,"1,781.00",HI-SPEC FACILITIES SERVICES PLC,CR423413,Site & Centre Management,Building Cleaning,440
http://statistics.data.gov.uk/id/local-authority/12UE,Huntingdonshire District Council,09/08/2017,09/08/2017,215062,32519,656.16,HI-SPEC FACILITIES SERVICES PLC,CR423413,Site & Centre Management,Building Cleaning,440
http://statistics.data.gov.uk/id/local-authority/12UE,Huntingdonshire District Council,09/08/2017,09/08/2017,215062,32519,"2,296.56",HI-SPEC FACILITIES SERVICES PLC,CR423413,Site & Centre Management,Building Cleaning,440
http://statistics.data.gov.uk/id/local-authority/12UE,Huntingdonshire District Council,09/08/2017,09/08/2017,215062,32519,515.56,HI-SPEC FACILITIES SERVICES PLC,CR423413,Site & Centre Management,Building Cleaning,440
http://statistics.data.gov.uk/id/local-authority/12UE,Huntingdonshire District Council,09/08/2017,09/08/2017,215062,32519,538.99,HI-SPEC FACILITIES SERVICES PLC,CR423413,Site & Centre Management,Building Cleaning,440
http://statistics.data.gov.uk/id/local-authority/12UE,Huntingdonshire District Council,09/08/2017,09/08/2017,215062,32519,"3,280.80",HI-SPEC FACILITIES SERVICES PLC,CR423413,Pathfinder House,Building Cleaning,440
http://statistics.data.gov.uk/id/local-authority/12UE,Huntingdonshire District Council,09/08/2017,09/08/2017,215063,32327,"1,171.71",HI-SPEC FACILITIES SERVICES PLC,CR423413,Eastfield House,Building Cleaning,440
http://statistics.data.gov.uk/id/local-authority/12UE,Huntingdonshire District Council,09/08/2017,09/08/2017,215063,32327,"1,663.83",HI-SPEC FACILITIES SERVICES PLC,CR423413,Site & Centre Management,Building Cleaning,440
http://statistics.data.gov.uk/id/local-authority/12UE,Huntingdonshire District Council,09/08/2017,09/08/2017,215063,32327,"1,781.00",HI-SPEC FACILITIES SERVICES PLC,CR423413,Site & Centre Management,Building Cleaning,440
http://statistics.data.gov.uk/id/local-authority/12UE,Huntingdonshire District Council,09/08/2017,09/08/2017,215063,32327,656.16,HI-SPEC FACILITIES SERVICES PLC,CR423413,Site & Centre Management,Building Cleaning,440
http://statistics.data.gov.uk/id/local-authority/12UE,Huntingdonshire District Council,09/08/2017,09/08/2017,215063,32327,"2,296.56",HI-SPEC FACILITIES SERVICES PLC,CR423413,Site & Centre Management,Building Cleaning,440
http://statistics.data.gov.uk/id/local-authority/12UE,Huntingdonshire District Council,09/08/2017,09/08/2017,215063,32327,515.56,HI-SPEC FACILITIES SERVICES PLC,CR423413,Site & Centre Management,Building Cleaning,440
http://statistics.data.gov.uk/id/local-authority/12UE,Huntingdonshire District Council,09/08/2017,09/08/2017,215063,32327,538.99,HI-SPEC FACILITIES SERVICES PLC,CR423413,Site & Centre Management,Building Cleaning,440
http://statistics.data.gov.uk/id/local-authority/12UE,Huntingdonshire District Council,09/08/2017,09/08/2017,215063,32327,"3,280.80",HI-SPEC FACILITIES SERVICES PLC,CR423413,Pathfinder House,Building Cleaning,440
http://statistics.data.gov.uk/id/local-authority/12UE,Huntingdonshire District Council,09/08/2017,09/08/2017,215064,32738,"1,171.71",HI-SPEC FACILITIES SERVICES PLC,CR423413,Eastfield House,Building Cleaning,440
http://statistics.data.gov.uk/id/local-authority/12UE,Huntingdonshire District Council,09/08/2017,09/08/2017,215064,32738,"1,663.83",HI-SPEC FACILITIES SERVICES PLC,CR423413,Site & Centre Management,Building Cleaning,440
http://statistics.data.gov.uk/id/local-authority/12UE,Huntingdonshire District Council,09/08/2017,09/08/2017,215064,32738,"1,781.00",HI-SPEC FACILITIES SERVICES PLC,CR423413,Site & Centre Management,Building Cleaning,440
http://statistics.data.gov.uk/id/local-authority/12UE,Huntingdonshire District Council,09/08/2017,09/08/2017,215064,32738,656.16,HI-SPEC FACILITIES SERVICES PLC,CR423413,Site & Centre Management,Building Cleaning,440
http://statistics.data.gov.uk/id/local-authority/12UE,Huntingdonshire District Council,09/08/2017,09/08/2017,215064,32738,"2,296.56",HI-SPEC FACILITIES SERVICES PLC,CR423413,Site & Centre Management,Building Cleaning,440
http://statistics.data.gov.uk/id/local-authority/12UE,Huntingdonshire District Council,09/08/2017,09/08/2017,215064,32738,515.56,HI-SPEC FACILITIES SERVICES PLC,CR423413,Site & Centre Management,Building Cleaning,440
http://statistics.data.gov.uk/id/local-authority/12UE,Huntingdonshire District Council,09/08/2017,09/08/2017,215064,32738,538.99,HI-SPEC FACILITIES SERVICES PLC,CR423413,Site & Centre Management,Building Cleaning,440
http://statistics.data.gov.uk/id/local-authority/12UE,Huntingdonshire District Council,09/08/2017,09/08/2017,215064,32738,"3,280.80",HI-SPEC FACILITIES SERVICES PLC,CR423413,Pathfinder House,Building Cleaning,440
http://statistics.data.gov.uk/id/local-authority/12UE,Huntingdonshire District Council,24/08/2017,24/08/2017,215865,IK25343,"11,413.28",IKEN BUSINESS LTD,CR424880,Imd Shared Service,Software,206
http://statistics.data.gov.uk/id/local-authority/12UE,Huntingdonshire District Council,02/08/2017,03/08/2017,214640,ASI28525,"11,300.32",AMEYCESPA (EAST) LTD,CR127636,Recycling Collections,Recycling Collections,747
http://statistics.data.gov.uk/id/local-authority/12UE,Huntingdonshire District Council,02/08/2017,03/08/2017,214483,10744796,"10,875.00",CAMBRIDGESHIRE COUNTY COUNCIL,CR006678,Local Plan Prep (Excl Inq),Consultants,711
http://statistics.data.gov.uk/id/local-authority/12UE,Huntingdonshire District Council,02/08/2017,17/08/2017,214477,2017191,568.55,XPRESS SOFTWARE SOLUTIONS LTD,CR480995,Scdc Recharge Invoices,Software,206
http://statistics.data.gov.uk/id/local-authority/12UE,Huntingdonshire District Council,02/08/2017,17/08/2017,214477,2017191,"2,956.44",XPRESS SOFTWARE SOLUTIONS LTD,CR480995,Scdc Recharge Invoices,Software,206
http://statistics.data.gov.uk/id/local-authority/12UE,Huntingdonshire District Council,02/08/2017,17/08/2017,214477,2017191,"6,822.56",XPRESS SOFTWARE SOLUTIONS LTD,CR480995,Scdc Recharge Invoices,Software,206
http://statistics.data.gov.uk/id/local-authority/12UE,Huntingdonshire District Council,02/08/2017,17/08/2017,214477,2017191,500,XPRESS SOFTWARE SOLUTIONS LTD,CR480995,Scdc Recharge Invoices,Software,206
http://statistics.data.gov.uk/id/local-authority/12UE,Huntingdonshire District Council,18/08/2017,18/08/2017,215664,CE005360,"10,080.00",JLT SPECIALITY LTD,CR480345,Ins Employees Public Liability,Insurance Officials Indemnity,168
http://statistics.data.gov.uk/id/local-authority/12UE,Huntingdonshire District Council,17/08/2017,17/08/2017,215481,65912,"9,359.49",E-ON ENERGY,CR416430,Pathfinder House,Gas,421
http://statistics.data.gov.uk/id/local-authority/12UE,Huntingdonshire District Council,25/08/2017,25/08/2017,216091,65912,"9,359.49",HAVEN POWER LTD,CR455940,Pathfinder House,Electricity,420
http://statistics.data.gov.uk/id/local-authority/12UE,Huntingdonshire District Council,17/08/2017,24/08/2017,215513,35001,"9,306.00",VIDECOM SECURITY LTD,CR422617,Cctv Shared Service Hosting,Equipment Maintenance,511
http://statistics.data.gov.uk/id/local-authority/12UE,Huntingdonshire District Council,03/08/2017,03/08/2017,214470,AC0214276,"9,262.49",ASHCO BUILDING & MAINTENANCE SERVICES LTD,CR422300,Disabled Facilities Grants,Mandatory Grants,801
http://statistics.data.gov.uk/id/local-authority/12UE,Huntingdonshire District Council,10/08/2017,10/08/2017,214954,S0417,"9,031.55",PERSONAL DATA REDACTED,CR404318,Parks & Open Spaces,Plants And Seeds,556
http://statistics.data.gov.uk/id/local-authority/12UE,Huntingdonshire District Council,01/08/2017,01/08/2017,214445,KIER CONSTRUCTI,"8,784.86",CAMBRIDGE CITY COUNCIL,CR017896,Cashiers Suspense Account,Overpayments Recovered,C93
http://statistics.data.gov.uk/id/local-authority/12UE,Huntingdonshire District Council,31/08/2017,31/08/2017,216264,15521,"8,607.58",AGA MOBILITY SYSTEMS LTD,CR424899,Disabled Facilities Grants,Mandatory Grants,801
http://statistics.data.gov.uk/id/local-authority/12UE,Huntingdonshire District Council,02/08/2017,10/08/2017,214551,923469-082A,526.08,VIRGIN MEDIA BUSINESS/CPSN,CR455148,Cctv Shared Service Hosting,I T Line Rental,248
http://statistics.data.gov.uk/id/local-authority/12UE,Huntingdonshire District Council,02/08/2017,10/08/2017,214551,923469-082A,"7,990.75",VIRGIN MEDIA BUSINESS/CPSN,CR455148,Imd Shared Service,I T Line Rental,248
http://statistics.data.gov.uk/id/local-authority/12UE,Huntingdonshire District Council,10/08/2017,10/08/2017,213583,S31429,"8,239.00",BSG PROPERTY SERVICES LTD,CR089905,Disabled Facilities Grants,Mandatory Grants,801
http://statistics.data.gov.uk/id/local-authority/12UE,Huntingdonshire District Council,17/08/2017,17/08/2017,215487,65914,"8,000.70",HAVEN POWER LTD,CR455940,Swimming,Electricity,420
http://statistics.data.gov.uk/id/local-authority/12UE,Huntingdonshire District Council,29/08/2017,31/08/2017,216124,03988530/1,"7,899.03",ANGLIAN WATER,CR000071,Hinchingbrooke Park Management,Water & Sewerage,432
http://statistics.data.gov.uk/id/local-authority/12UE,Huntingdonshire District Council,24/08/2017,24/08/2017,216087,C-0002570576,"7,416.00",COMPUTERSHARE VOUCHERS LTD,CR412205,Child Care Vouchers - Payroll,Deductions Paid To Third Party,26
http://statistics.data.gov.uk/id/local-authority/12UE,Huntingdonshire District Council,24/08/2017,24/08/2017,216087,C-0002570576,259.56,COMPUTERSHARE VOUCHERS LTD,CR412205,Hr & Payroll Services,Childcare Admin Vouchers,144
http://statistics.data.gov.uk/id/local-authority/12UE,Huntingdonshire District Council,08/08/2017,08/08/2017,614248,NC10628,"7,337.00",GALLAGHER BASSETT INTERNATIONAL LTD,CR403052,Insurance Administration,Consultants,711
http://statistics.data.gov.uk/id/local-authority/12UE,Huntingdonshire District Council,31/08/2017,31/08/2017,216101,DFG - INTERIM,"7,200.00",PERSONAL DATA REDACTED,CR424887,Disabled Facilities Grants,Mandatory Grants,801
http://statistics.data.gov.uk/id/local-authority/12UE,Huntingdonshire District Council,30/08/2017,31/08/2017,216172,10748147,"7,121.95",CAMBRIDGESHIRE COUNTY COUNCIL,CR006678,S106 Agreements Exp & Inc,Contribution (Paid Out),810
http://statistics.data.gov.uk/id/local-authority/12UE,Huntingdonshire District Council,16/08/2017,16/08/2017,215362,SIN007266,"7,000.00",REPLAY MAINTENANCE LTD,CR422074,Sawtry L C - Gen Improve (Cs),Building Mtce,303
http://statistics.data.gov.uk/id/local-authority/12UE,Huntingdonshire District Council,18/08/2017,18/08/2017,215661,CE005365,"7,000.00",JLT SPECIALITY LTD,CR480345,Ins Employees Public Liability,Insurance Fidelity Guarantee,166
http://statistics.data.gov.uk/id/local-authority/12UE,Huntingdonshire District Council,17/08/2017,17/08/2017,215488,65919,"6,698.84",HAVEN POWER LTD,CR455940,Site & Centre Management,Electricity,420
http://statistics.data.gov.uk/id/local-authority/12UE,Huntingdonshire District Council,15/08/2017,17/08/2017,215032,1000190,"6,697.50",EAST OF ENGLAND LGA,CR422620,Transformation - Commercial,Consultants,711
http://statistics.data.gov.uk/id/local-authority/12UE,Huntingdonshire District Council,16/08/2017,16/08/2017,215243,S31807,"6,595.00",BSG PROPERTY SERVICES LTD,CR089905,Disabled Facilities Grants,Mandatory Grants,801
http://statistics.data.gov.uk/id/local-authority/12UE,Huntingdonshire District Council,31/08/2017,31/08/2017,216111,116262,"6,230.00",FELGAINS CARE & MOBILITY,CR411475,Disabled Facilities Grants,Mandatory Grants,801
http://statistics.data.gov.uk/id/local-authority/12UE,Huntingdonshire District Council,02/08/2017,10/08/2017,214148,UK4-569-2017,"6,170.00",KEYTREE LIMITED,CR424687,Imd Shared Service,Software,206
http://statistics.data.gov.uk/id/local-authority/12UE,Huntingdonshire District Council,09/08/2017,09/08/2017,215016,JC/5106/29379,"5,943.75",J BREHENY CIVIL ENGINEERING LTD,CR000314,Industrial Properties,Building Mtce,303
http://statistics.data.gov.uk/id/local-authority/12UE,Huntingdonshire District Council,03/08/2017,03/08/2017,214661,1651,"5,888.00",HD PROPERTY SERVICES,CR422148,Disabled Facilities Grants,Mandatory Grants,801
http://statistics.data.gov.uk/id/local-authority/12UE,Huntingdonshire District Council,16/08/2017,16/08/2017,214837,6298,"5,678.00",PRIORY BUILDINGS (ST NEOTS) LTD,CR410900,Disabled Facilities Grants,Mandatory Grants,801
http://statistics.data.gov.uk/id/local-authority/12UE,Huntingdonshire District Council,18/08/2017,18/08/2017,215663,CE005354,"5,600.00",JLT SPECIALITY LTD,CR480345,Ins Employees Public Liability,Insurance Public Liability,160
http://statistics.data.gov.uk/id/local-authority/12UE,Huntingdonshire District Council,16/08/2017,16/08/2017,215308,17/06/MO31,"5,562.00",ASSET FINELINE,CR404114,Disabled Facilities Grants,Mandatory Grants,801
http://statistics.data.gov.uk/id/local-authority/12UE,Huntingdonshire District Council,16/08/2017,16/08/2017,212354,605,"5,515.00",B P MORSE,CR030128,Disabled Facilities Grants,Mandatory Grants,801
http://statistics.data.gov.uk/id/local-authority/12UE,Huntingdonshire District Council,03/08/2017,03/08/2017,214203,635636,"5,466.09",ZIP HEATERS UK LTD,CR478275,Pathfinder House,Building Mtce,303
http://statistics.data.gov.uk/id/local-authority/12UE,Huntingdonshire District Council,16/08/2017,16/08/2017,213013,501615,"5,433.00",ERGOLET,CR424811,Disabled Facilities Grants,Mandatory Grants,801
http://statistics.data.gov.uk/id/local-authority/12UE,Huntingdonshire District Council,30/08/2017,30/08/2017,216128,F/1048,"5,400.00",LOCO TALENT LTD,CR424632,Burgess Hall,Entertainments Inc Cable Tv,744
http://statistics.data.gov.uk/id/local-authority/12UE,Huntingdonshire District Council,31/08/2017,31/08/2017,214447,S31684,"5,391.00",BSG PROPERTY SERVICES LTD,CR089905,Disabled Facilities Grants,Mandatory Grants,801
http://statistics.data.gov.uk/id/local-authority/12UE,Huntingdonshire District Council,24/08/2017,24/08/2017,215931,U001582,"5,350.00",TECHNOLOGY ONE LTD,CR424111,Financial Mgt System Replacmnt,Software,206
http://statistics.data.gov.uk/id/local-authority/12UE,Huntingdonshire District Council,16/08/2017,16/08/2017,215309,607,"5,230.00",B P MORSE,CR030128,Disabled Facilities Grants,Mandatory Grants,801
http://statistics.data.gov.uk/id/local-authority/12UE,Huntingdonshire District Council,16/08/2017,16/08/2017,215306,20525,"5,213.07",M WATSON CONSTRUCTION LTD,CR480595,Disabled Facilities Grants,Mandatory Grants,801
http://statistics.data.gov.uk/id/local-authority/12UE,Huntingdonshire District Council,09/08/2017,09/08/2017,215019,JC/5106/29377,"5,139.17",J BREHENY CIVIL ENGINEERING LTD,CR000314,Commercial Properties,Building Mtce,303
http://statistics.data.gov.uk/id/local-authority/12UE,Huntingdonshire District Council,16/08/2017,16/08/2017,213284,1361B,"5,011.00",WGW PROPERTY SERVICES,CR424033,Disabled Facilities Grants,Mandatory Grants,801
http://statistics.data.gov.uk/id/local-authority/12UE,Huntingdonshire District Council,02/08/2017,07/08/2017,613679,2017/18 - 3,"5,000.00",BUTTONS & BOWS PRE SCHOOL,CR455125,Voluntary Sector Grants,Grants (Paid Out),800
http://statistics.data.gov.uk/id/local-authority/12UE,Huntingdonshire District Council,02/08/2017,07/08/2017,613683,2017/18 - 7,"5,000.00",RIVERSIDE MINIATURE RAILWAY CLUB,CR424842,Voluntary Sector Grants,Grants (Paid Out),800
http://statistics.data.gov.uk/id/local-authority/12UE,Huntingdonshire District Council,02/08/2017,07/08/2017,613914,2017/18 - 14,"5,000.00",SWITCH NOW COMMUNITY INTEREST COMPANY,CR424845,Voluntary Sector Grants,Grants (Paid Out),800
http://statistics.data.gov.uk/id/local-authority/12UE,Huntingdonshire District Council,03/08/2017,03/08/2017,214430,S085068213,"4,963.00",STANNAH LTD Ref(20HU025),CR000759,Disabled Facilities Grants,Mandatory Grants,801
http://statistics.data.gov.uk/id/local-authority/12UE,Huntingdonshire District Council,24/08/2017,24/08/2017,215899,14398,"4,937.30",PLAYFORDS LTD,CR479055,Ict Capital Projects (Interim),Other I T Hardware,203
http://statistics.data.gov.uk/id/local-authority/12UE,Huntingdonshire District Council,22/08/2017,22/08/2017,215719,1000200,"4,935.00",EAST OF ENGLAND LGA,CR422620,Transformation - Commercial,Consultants,711
http://statistics.data.gov.uk/id/local-authority/12UE,Huntingdonshire District Council,24/08/2017,24/08/2017,215898,923469-082B,"4,900.00",VIRGIN MEDIA,CR412057,Ccity Recharge Invoices,Software,206
http://statistics.data.gov.uk/id/local-authority/12UE,Huntingdonshire District Council,24/08/2017,24/08/2017,215303,FM1129,"4,860.00",CAMBRIDGE ENVIRONMENTAL RESEARCH CONSULTANTS,CR479994,Air Quality,Subcontractors,777
http://statistics.data.gov.uk/id/local-authority/12UE,Huntingdonshire District Council,31/08/2017,31/08/2017,216269,1624,"4,834.00",HD PROPERTY SERVICES,CR422148,Disabled Facilities Grants,Mandatory Grants,801
http://statistics.data.gov.uk/id/local-authority/12UE,Huntingdonshire District Council,10/08/2017,10/08/2017,214916,S085065387,"4,822.00",STANNAH LTD Ref(20HU025),CR000759,Disabled Facilities Grants,Mandatory Grants,801
http://statistics.data.gov.uk/id/local-authority/12UE,Huntingdonshire District Council,09/08/2017,09/08/2017,215024,JC/5106/29378,"4,822.00",J BREHENY CIVIL ENGINEERING LTD,CR000314,St Ives Enterprise Centre,Building Mtce,303
http://statistics.data.gov.uk/id/local-authority/12UE,Huntingdonshire District Council,21/08/2017,21/08/2017,214550,401246,"1,320.00",DATACENTRE UK,CR424739,Eastfield House,Plant & Equipment Maintenance,380
http://statistics.data.gov.uk/id/local-authority/12UE,Huntingdonshire District Council,21/08/2017,21/08/2017,214550,401246,65,DATACENTRE UK,CR424739,Eastfield House,Plant & Equipment Maintenance,380
http://statistics.data.gov.uk/id/local-authority/12UE,Huntingdonshire District Council,21/08/2017,21/08/2017,214550,401246,"3,102.00",DATACENTRE UK,CR424739,Pathfinder House,Plant & Equipment Maintenance,380
http://statistics.data.gov.uk/id/local-authority/12UE,Huntingdonshire District Council,21/08/2017,21/08/2017,214550,401246,308,DATACENTRE UK,CR424739,Pathfinder House,Plant & Equipment Maintenance,380
http://statistics.data.gov.uk/id/local-authority/12UE,Huntingdonshire District Council,15/08/2017,17/08/2017,215342,WN70317290,"4,750.00",CAPITA RESOURCING LTD,CR030165,Imd Shared Service,Hired Staff,100
http://statistics.data.gov.uk/id/local-authority/12UE,Huntingdonshire District Council,16/08/2017,16/08/2017,215391,S32045,"4,708.00",BSG PROPERTY SERVICES LTD,CR089905,Disabled Facilities Grants,Mandatory Grants,801
http://statistics.data.gov.uk/id/local-authority/12UE,Huntingdonshire District Council,08/08/2017,08/08/2017,614247,NC10626,"4,670.00",GALLAGHER BASSETT INTERNATIONAL LTD,CR403052,Insurance Administration,Consultants,711
http://statistics.data.gov.uk/id/local-authority/12UE,Huntingdonshire District Council,03/08/2017,03/08/2017,214473,531801,"4,658.00",BSG PROPERTY SERVICES LTD,CR089905,Disabled Facilities Grants,Mandatory Grants,801
http://statistics.data.gov.uk/id/local-authority/12UE,Huntingdonshire District Council,16/08/2017,23/08/2017,215440,100184,"4,582.50",EAST OF ENGLAND LGA,CR422620,Transformation - Commercial,Consultants,711
http://statistics.data.gov.uk/id/local-authority/12UE,Huntingdonshire District Council,24/08/2017,24/08/2017,215897,PSLSI1647,"4,500.00",PROJECT SOLUTION  LTD,CR455836,Imd Shared Service,Consultants,711
http://statistics.data.gov.uk/id/local-authority/12UE,Huntingdonshire District Council,31/08/2017,31/08/2017,216102,INVOICE 2522,"4,500.00",PERSONAL DATA REDACTED,CR423371,Disabled Facilities Grants,Mandatory Grants,801
http://statistics.data.gov.uk/id/local-authority/12UE,Huntingdonshire District Council,22/08/2017,22/08/2017,215697,63203,"4,489.00",GASWISE,CR423458,Disabled Facilities Grants,Mandatory Grants,801
http://statistics.data.gov.uk/id/local-authority/12UE,Huntingdonshire District Council,03/08/2017,09/08/2017,214450,JC/5106/29381,"4,225.60",J BREHENY CIVIL ENGINEERING LTD,CR000314,Community Safety,Sitework,359
http://statistics.data.gov.uk/id/local-authority/12UE,Huntingdonshire District Council,10/08/2017,10/08/2017,214832,AC0214258,"4,142.87",ASHCO BUILDING & MAINTENANCE SERVICES LTD,CR422300,Disabled Facilities Grants,Mandatory Grants,801
http://statistics.data.gov.uk/id/local-authority/12UE,Huntingdonshire District Council,22/08/2017,22/08/2017,215700,OP/I126599,"4,060.00",TOTAL HYGIENE LTD,CR083280,Disabled Facilities Grants,Mandatory Grants,801
http://statistics.data.gov.uk/id/local-authority/12UE,Huntingdonshire District Council,03/08/2017,03/08/2017,214644,IN0594996,"4,008.27",STAFFLINE GROUP,CR416827,Domestic Waste Collection,Hired Staff,100
http://statistics.data.gov.uk/id/local-authority/12UE,Huntingdonshire District Council,09/08/2017,10/08/2017,214982,15921,"3,938.70",JADE SECURITY SERVICES LTD,CR422256,Car Parks Operational Mgt,Cash Collection,702
http://statistics.data.gov.uk/id/local-authority/12UE,Huntingdonshire District Council,29/08/2017,31/08/2017,216142,B3121719,"3,928.32",BEMROSE BOOTH,CR407126,Car Parks Operational Mgt,Telephone &Mobile Phonecharges,240
http://statistics.data.gov.uk/id/local-authority/12UE,Huntingdonshire District Council,02/08/2017,02/08/2017,214191,7-08 963,"3,888.89",COMPLETE BOWLING SERVICES LTD,CR424631,St Ivo - General Improve (Cs),Building Mtce,303
http://statistics.data.gov.uk/id/local-authority/12UE,Huntingdonshire District Council,09/08/2017,10/08/2017,215058,1005196,969.74,HAVI,CR424837,Arboricultural Team,Equipment,500
http://statistics.data.gov.uk/id/local-authority/12UE,Huntingdonshire District Council,09/08/2017,10/08/2017,215058,1005196,"1,939.47",HAVI,CR424837,Grounds Maintenance,Equipment,500
http://statistics.data.gov.uk/id/local-authority/12UE,Huntingdonshire District Council,09/08/2017,10/08/2017,215058,1005196,969.74,HAVI,CR424837,Street Cleansing,Equipment,500
http://statistics.data.gov.uk/id/local-authority/12UE,Huntingdonshire District Council,03/08/2017,03/08/2017,213555,IN0612366,"3,725.71",STAFFLINE GROUP,CR416827,Domestic Waste Collection,Hired Staff,100
http://statistics.data.gov.uk/id/local-authority/12UE,Huntingdonshire District Council,03/08/2017,03/08/2017,213553,IN0608756,"3,619.51",STAFFLINE GROUP,CR416827,Domestic Waste Collection,Hired Staff,100
http://statistics.data.gov.uk/id/local-authority/12UE,Huntingdonshire District Council,09/08/2017,09/08/2017,214175,88327975,"3,596.16",GEZE  UK LTD,CR417073,Hunt Leis C -Gen Improve (Cs),Building Mtce,303
http://statistics.data.gov.uk/id/local-authority/12UE,Huntingdonshire District Council,10/08/2017,10/08/2017,215085,1007681628,"3,575.00",HAYS,CR423917,Transformation Programme,Hired Staff,100
http://statistics.data.gov.uk/id/local-authority/12UE,Huntingdonshire District Council,10/08/2017,10/08/2017,215086,1007658422,"3,575.00",HAYS,CR423917,Transformation Programme,Hired Staff,100
http://statistics.data.gov.uk/id/local-authority/12UE,Huntingdonshire District Council,17/08/2017,17/08/2017,215486,65916,"3,551.79",HAVEN POWER LTD,CR455940,Site & Centre Management,Electricity,420
http://statistics.data.gov.uk/id/local-authority/12UE,Huntingdonshire District Council,25/08/2017,25/08/2017,216090,299794802,"3,549.79",ANGLIAN WATER,CR000071,Swimming,Water & Sewerage,432
http://statistics.data.gov.uk/id/local-authority/12UE,Huntingdonshire District Council,29/08/2017,31/08/2017,216126,CHES284,"3,500.00",HAMPTON/CHESMETALWORK,CR453817,Parks & Open Spaces,Playground Equipment,360
http://statistics.data.gov.uk/id/local-authority/12UE,Huntingdonshire District Council,16/08/2017,16/08/2017,215242,S31809,"3,422.00",BSG PROPERTY SERVICES LTD,CR089905,Disabled Facilities Grants,Mandatory Grants,801
http://statistics.data.gov.uk/id/local-authority/12UE,Huntingdonshire District Council,03/08/2017,03/08/2017,213561,IN0610430,"3,413.55",STAFFLINE GROUP,CR416827,Domestic Waste Collection,Hired Staff,100
http://statistics.data.gov.uk/id/local-authority/12UE,Huntingdonshire District Council,09/08/2017,10/08/2017,214524,IN0613211,"3,373.77",STAFFLINE GROUP,CR416827,Domestic Waste Collection,Hired Staff,100
http://statistics.data.gov.uk/id/local-authority/12UE,Huntingdonshire District Council,31/08/2017,31/08/2017,214965,IN0616439,"3,344.59",STAFFLINE GROUP,CR416827,Recycling Collections,Hired Staff,100
http://statistics.data.gov.uk/id/local-authority/12UE,Huntingdonshire District Council,18/08/2017,21/08/2017,614655,2017/18 27,"3,331.26",THE HUB LITTLE PAXTON,CR424868,Voluntary Sector Grants,Grants (Paid Out),800
http://statistics.data.gov.uk/id/local-authority/12UE,Huntingdonshire District Council,16/08/2017,16/08/2017,215244,S31941,"3,304.50",BSG PROPERTY SERVICES LTD,CR089905,Disabled Facilities Grants,Mandatory Grants,801
http://statistics.data.gov.uk/id/local-authority/12UE,Huntingdonshire District Council,10/08/2017,10/08/2017,215237,4490,"3,240.14",NEWLYN PLC,CR409114,N D R  Management,Bailiffs,703
http://statistics.data.gov.uk/id/local-authority/12UE,Huntingdonshire District Council,09/08/2017,10/08/2017,214527,IN0613209,"3,211.79",STAFFLINE GROUP,CR416827,Recycling Collections,Hired Staff,100
http://statistics.data.gov.uk/id/local-authority/12UE,Huntingdonshire District Council,09/08/2017,10/08/2017,214525,IN0615208,"3,201.11",STAFFLINE GROUP,CR416827,Domestic Waste Collection,Hired Staff,100
http://statistics.data.gov.uk/id/local-authority/12UE,Huntingdonshire District Council,02/08/2017,09/08/2017,214844,5534,"3,190.00",ADAMS AUTOS,CR422066,Ph & Hc Vechicles,Vehicle Inspection,618
http://statistics.data.gov.uk/id/local-authority/12UE,Huntingdonshire District Council,10/08/2017,10/08/2017,214915,INV-0518,"3,170.21",LYNCH HEALTHCARE LIMITED,CR423109,Disabled Facilities Grants,Mandatory Grants,801
http://statistics.data.gov.uk/id/local-authority/12UE,Huntingdonshire District Council,15/08/2017,17/08/2017,214891,125349,"3,161.06",CALE ACCESS UK LTD,CR401137,Car Parks Operational Mgt,Equipment,500
http://statistics.data.gov.uk/id/local-authority/12UE,Huntingdonshire District Council,31/08/2017,31/08/2017,614902,294,280,COACH & HORSES,CR410824,Homelessness,Bed & Breakfast Payment,818
http://statistics.data.gov.uk/id/local-authority/12UE,Huntingdonshire District Council,31/08/2017,31/08/2017,614902,294,245,COACH & HORSES,CR410824,Homelessness,Bed & Breakfast Payment,818
http://statistics.data.gov.uk/id/local-authority/12UE,Huntingdonshire District Council,31/08/2017,31/08/2017,614902,294,245,COACH & HORSES,CR410824,Homelessness,Bed & Breakfast Payment,818
http://statistics.data.gov.uk/id/local-authority/12UE,Huntingdonshire District Council,31/08/2017,31/08/2017,614902,294,350,COACH & HORSES,CR410824,Homelessness,Bed & Breakfast Payment,818
http://statistics.data.gov.uk/id/local-authority/12UE,Huntingdonshire District Council,31/08/2017,31/08/2017,614902,294,245,COACH & HORSES,CR410824,Homelessness,Bed & Breakfast Payment,818
http://statistics.data.gov.uk/id/local-authority/12UE,Huntingdonshire District Council,31/08/2017,31/08/2017,614902,294,245,COACH & HORSES,CR410824,Homelessness,Bed & Breakfast Payment,818
http://statistics.data.gov.uk/id/local-authority/12UE,Huntingdonshire District Council,31/08/2017,31/08/2017,614902,294,70,COACH & HORSES,CR410824,Homelessness,Bed & Breakfast Payment,818
http://statistics.data.gov.uk/id/local-authority/12UE,Huntingdonshire District Council,31/08/2017,31/08/2017,614902,294,245,COACH & HORSES,CR410824,Homelessness,Bed & Breakfast Payment,818
http://statistics.data.gov.uk/id/local-authority/12UE,Huntingdonshire District Council,31/08/2017,31/08/2017,614902,294,245,COACH & HORSES,CR410824,Homelessness,Bed & Breakfast Payment,818
http://statistics.data.gov.uk/id/local-authority/12UE,Huntingdonshire District Council,31/08/2017,31/08/2017,614902,294,385,COACH & HORSES,CR410824,Homelessness,Bed & Breakfast Payment,818
http://statistics.data.gov.uk/id/local-authority/12UE,Huntingdonshire District Council,31/08/2017,31/08/2017,614902,294,245,COACH & HORSES,CR410824,Homelessness,Bed & Breakfast Payment,818
http://statistics.data.gov.uk/id/local-authority/12UE,Huntingdonshire District Council,31/08/2017,31/08/2017,614902,294,325,COACH & HORSES,CR410824,Homelessness,Bed & Breakfast Payment,818
http://statistics.data.gov.uk/id/local-authority/12UE,Huntingdonshire District Council,03/08/2017,03/08/2017,213557,IN0610429,"3,117.89",STAFFLINE GROUP,CR416827,Recycling Collections,Hired Staff,100
http://statistics.data.gov.uk/id/local-authority/12UE,Huntingdonshire District Council,24/08/2017,24/08/2017,614677,293,70,COACH & HORSES,CR410824,Homelessness,Bed & Breakfast Payment,818
http://statistics.data.gov.uk/id/local-authority/12UE,Huntingdonshire District Council,24/08/2017,24/08/2017,614677,293,280,COACH & HORSES,CR410824,Homelessness,Bed & Breakfast Payment,818
http://statistics.data.gov.uk/id/local-authority/12UE,Huntingdonshire District Council,24/08/2017,24/08/2017,614677,293,245,COACH & HORSES,CR410824,Homelessness,Bed & Breakfast Payment,818
http://statistics.data.gov.uk/id/local-authority/12UE,Huntingdonshire District Council,24/08/2017,24/08/2017,614677,293,245,COACH & HORSES,CR410824,Homelessness,Bed & Breakfast Payment,818
http://statistics.data.gov.uk/id/local-authority/12UE,Huntingdonshire District Council,24/08/2017,24/08/2017,614677,293,350,COACH & HORSES,CR410824,Homelessness,Bed & Breakfast Payment,818
http://statistics.data.gov.uk/id/local-authority/12UE,Huntingdonshire District Council,24/08/2017,24/08/2017,614677,293,245,COACH & HORSES,CR410824,Homelessness,Bed & Breakfast Payment,818
http://statistics.data.gov.uk/id/local-authority/12UE,Huntingdonshire District Council,24/08/2017,24/08/2017,614677,293,245,COACH & HORSES,CR410824,Homelessness,Bed & Breakfast Payment,818
http://statistics.data.gov.uk/id/local-authority/12UE,Huntingdonshire District Council,24/08/2017,24/08/2017,614677,293,245,COACH & HORSES,CR410824,Homelessness,Bed & Breakfast Payment,818
http://statistics.data.gov.uk/id/local-authority/12UE,Huntingdonshire District Council,24/08/2017,24/08/2017,614677,293,175,COACH & HORSES,CR410824,Homelessness,Bed & Breakfast Payment,818
http://statistics.data.gov.uk/id/local-authority/12UE,Huntingdonshire District Council,24/08/2017,24/08/2017,614677,293,245,COACH & HORSES,CR410824,Homelessness,Bed & Breakfast Payment,818
http://statistics.data.gov.uk/id/local-authority/12UE,Huntingdonshire District Council,24/08/2017,24/08/2017,614677,293,385,COACH & HORSES,CR410824,Homelessness,Bed & Breakfast Payment,818
http://statistics.data.gov.uk/id/local-authority/12UE,Huntingdonshire District Council,24/08/2017,24/08/2017,614677,293,245,COACH & HORSES,CR410824,Homelessness,Bed & Breakfast Payment,818
http://statistics.data.gov.uk/id/local-authority/12UE,Huntingdonshire District Council,24/08/2017,24/08/2017,614677,293,130,COACH & HORSES,CR410824,Homelessness,Bed & Breakfast Payment,818
http://statistics.data.gov.uk/id/local-authority/12UE,Huntingdonshire District Council,03/08/2017,03/08/2017,213556,IN0608754,"3,077.38",STAFFLINE GROUP,CR416827,Recycling Collections,Hired Staff,100
http://statistics.data.gov.uk/id/local-authority/12UE,Huntingdonshire District Council,03/08/2017,03/08/2017,213563,IN0612365,"3,048.03",STAFFLINE GROUP,CR416827,Domestic Waste Collection,Hired Staff,100
http://statistics.data.gov.uk/id/local-authority/12UE,Huntingdonshire District Council,29/08/2017,31/08/2017,215839,276133I,60.28,A C COMMERCIALS,CR000141,Pool Cars,Vehicle Parts & Fittings,625
http://statistics.data.gov.uk/id/local-authority/12UE,Huntingdonshire District Council,29/08/2017,31/08/2017,215839,276133I,753.46,A C COMMERCIALS,CR000141,Grounds Maintenance,Vehicle Oil & Lubricants,626
http://statistics.data.gov.uk/id/local-authority/12UE,Huntingdonshire District Council,29/08/2017,31/08/2017,215839,276133I,693.19,A C COMMERCIALS,CR000141,Recycling Collections,Vehicle Oil & Lubricants,626
http://statistics.data.gov.uk/id/local-authority/12UE,Huntingdonshire District Council,29/08/2017,31/08/2017,215839,276133I,452.08,A C COMMERCIALS,CR000141,Street Cleansing,Vehicle Oil & Lubricants,626
http://statistics.data.gov.uk/id/local-authority/12UE,Huntingdonshire District Council,29/08/2017,31/08/2017,215839,276133I,"1,054.85",A C COMMERCIALS,CR000141,Domestic Waste Collection,Vehicle Oil & Lubricants,626
http://statistics.data.gov.uk/id/local-authority/12UE,Huntingdonshire District Council,03/08/2017,09/08/2017,214851,SIN084390,"3,000.50",QUADRANT SECURITY GROUP,CR027775,Cctv Shared Service Hosting,Equipment Maintenance,511
http://statistics.data.gov.uk/id/local-authority/12UE,Huntingdonshire District Council,10/08/2017,10/08/2017,215239,926,"3,000.00",TRUST ID,CR422036,Benefits Management,Software,206
http://statistics.data.gov.uk/id/local-authority/12UE,Huntingdonshire District Council,23/08/2017,24/08/2017,215868,20853,"3,000.00",ROYAL INDUSTRIAL DOORS LTD,CR424892,Paxton Pits,Building Mtce,303
http://statistics.data.gov.uk/id/local-authority/12UE,Huntingdonshire District Council,29/08/2017,29/08/2017,216121,5059,"3,000.00",TREE LIFE AC  LTD,CR477419,Trees,Subcontractors,777
http://statistics.data.gov.uk/id/local-authority/12UE,Huntingdonshire District Council,02/08/2017,07/08/2017,613682,2017/18- 30,"3,000.00",CARERS TRUST CAMBRIDGESHIRE,CR424649,Voluntary Sector Grants,Grants (Paid Out),800
http://statistics.data.gov.uk/id/local-authority/12UE,Huntingdonshire District Council,09/08/2017,09/08/2017,214979,481686634,"2,981.70",SWALEC,CR407130,Mobile Home Park,Electricity,420
http://statistics.data.gov.uk/id/local-authority/12UE,Huntingdonshire District Council,17/08/2017,17/08/2017,215489,65924,"2,973.52",HAVEN POWER LTD,CR455940,Eastfield House,Electricity,420
http://statistics.data.gov.uk/id/local-authority/12UE,Huntingdonshire District Council,02/08/2017,09/08/2017,214887,5379,"2,930.00",ADAMS AUTOS,CR422066,Ph & Hc Vechicles,Vehicle Inspection,618
http://statistics.data.gov.uk/id/local-authority/12UE,Huntingdonshire District Council,09/08/2017,10/08/2017,214528,IN0615205,"2,907.63",STAFFLINE GROUP,CR416827,Recycling Collections,Hired Staff,100
http://statistics.data.gov.uk/id/local-authority/12UE,Huntingdonshire District Council,30/08/2017,30/08/2017,214937,JC/5106/29375,"2,877.38",J BREHENY CIVIL ENGINEERING LTD,CR000314,Parks & Open Spaces,Sitework,359
http://statistics.data.gov.uk/id/local-authority/12UE,Huntingdonshire District Council,31/08/2017,31/08/2017,214968,IN0616440,"2,842.15",STAFFLINE GROUP,CR416827,Domestic Waste Collection,Hired Staff,100
http://statistics.data.gov.uk/id/local-authority/12UE,Huntingdonshire District Council,03/08/2017,03/08/2017,213559,IN0608755,"2,836.73",STAFFLINE GROUP,CR416827,Domestic Waste Collection,Hired Staff,100
http://statistics.data.gov.uk/id/local-authority/12UE,Huntingdonshire District Council,10/08/2017,10/08/2017,215002,JC/5106/29385,"2,835.60",J BREHENY CIVIL ENGINEERING LTD,CR000314,Sewer Ditches/Village Drains,Sitework,359
http://statistics.data.gov.uk/id/local-authority/12UE,Huntingdonshire District Council,09/08/2017,09/08/2017,214978,211687030,"2,820.51",SWALEC,CR407130,Site & Centre Management,Electricity,420
http://statistics.data.gov.uk/id/local-authority/12UE,Huntingdonshire District Council,17/08/2017,17/08/2017,215473,12489090950,"2,787.66",E-ON ENERGY,CR416430,Site & Centre Management,Gas,421
http://statistics.data.gov.uk/id/local-authority/12UE,Huntingdonshire District Council,30/08/2017,30/08/2017,214921,JC/5106/29387,"2,781.69",J BREHENY CIVIL ENGINEERING LTD,CR000314,Parks & Open Spaces,Sitework,359
http://statistics.data.gov.uk/id/local-authority/12UE,Huntingdonshire District Council,24/08/2017,24/08/2017,215882,38194,"2,751.00",HCB PARK WOODFINE LLP,CR424136,Miscellaneous Properties,Legal Fees,729
http://statistics.data.gov.uk/id/local-authority/12UE,Huntingdonshire District Council,24/08/2017,24/08/2017,215882,38194,20,HCB PARK WOODFINE LLP,CR424136,Miscellaneous Properties,Legal Fees,729
http://statistics.data.gov.uk/id/local-authority/12UE,Huntingdonshire District Council,31/08/2017,31/08/2017,214820,105568,548.63,BANDVULC TRUCK TYRES,CR406810,Recycling Collections,Tyres,630
http://statistics.data.gov.uk/id/local-authority/12UE,Huntingdonshire District Council,31/08/2017,31/08/2017,214820,105568,367.91,BANDVULC TRUCK TYRES,CR406810,Domestic Waste Collection,Tyres,630
http://statistics.data.gov.uk/id/local-authority/12UE,Huntingdonshire District Council,31/08/2017,31/08/2017,214820,105568,843.05,BANDVULC TRUCK TYRES,CR406810,Domestic Waste Collection,Tyres,630
http://statistics.data.gov.uk/id/local-authority/12UE,Huntingdonshire District Council,31/08/2017,31/08/2017,214820,105568,71.33,BANDVULC TRUCK TYRES,CR406810,Domestic Waste Collection,Tyres,630
http://statistics.data.gov.uk/id/local-authority/12UE,Huntingdonshire District Council,31/08/2017,31/08/2017,214820,105568,24.8,BANDVULC TRUCK TYRES,CR406810,Domestic Waste Collection,Tyres,630
http://statistics.data.gov.uk/id/local-authority/12UE,Huntingdonshire District Council,31/08/2017,31/08/2017,214820,105568,911.52,BANDVULC TRUCK TYRES,CR406810,Domestic Waste Collection,Tyres,630
http://statistics.data.gov.uk/id/local-authority/12UE,Huntingdonshire District Council,09/08/2017,09/08/2017,214977,151678759,"2,766.14",SWALEC,CR407130,Site & Centre Management,Electricity,420
http://statistics.data.gov.uk/id/local-authority/12UE,Huntingdonshire District Council,30/08/2017,31/08/2017,216115,3510716,"2,760.00",INSIGHT DIRECT UK LTD,CR000242,Imd Shared Service,Other I T Hardware,203
http://statistics.data.gov.uk/id/local-authority/12UE,Huntingdonshire District Council,02/08/2017,10/08/2017,214549,923186-070A,"2,751.03",VIRGIN MEDIA BUSINESS/CPSN,CR455148,Scdc Recharge Invoices,I T Line Rental,248
http://statistics.data.gov.uk/id/local-authority/12UE,Huntingdonshire District Council,16/08/2017,16/08/2017,214944,INV 020,"2,740.00",RICHARD SISTROM PAINTING & DECORATING,CR422887,St Ivo - General Improve (Cs),Building Mtce,303
http://statistics.data.gov.uk/id/local-authority/12UE,Huntingdonshire District Council,25/08/2017,25/08/2017,614901,COMMUNITY CHEST,"2,737.50",LITTLE MIRACLES - ST NEOTS,CR424851,Voluntary Sector Grants,Grants (Paid Out),800
http://statistics.data.gov.uk/id/local-authority/12UE,Huntingdonshire District Council,01/08/2017,01/08/2017,214442,75182,"2,700.00",MACDONALD & COMPANY FREELANCE LTD,CR424684,Property Development And Mgt,Hired Staff,100
http://statistics.data.gov.uk/id/local-authority/12UE,Huntingdonshire District Council,17/08/2017,17/08/2017,614513,292,245,COACH & HORSES,CR410824,Homelessness,Bed & Breakfast Payment,818
http://statistics.data.gov.uk/id/local-authority/12UE,Huntingdonshire District Council,17/08/2017,17/08/2017,614513,292,35,COACH & HORSES,CR410824,Homelessness,Bed & Breakfast Payment,818
http://statistics.data.gov.uk/id/local-authority/12UE,Huntingdonshire District Council,17/08/2017,17/08/2017,614513,292,280,COACH & HORSES,CR410824,Homelessness,Bed & Breakfast Payment,818
http://statistics.data.gov.uk/id/local-authority/12UE,Huntingdonshire District Council,17/08/2017,17/08/2017,614513,292,245,COACH & HORSES,CR410824,Homelessness,Bed & Breakfast Payment,818
http://statistics.data.gov.uk/id/local-authority/12UE,Huntingdonshire District Council,17/08/2017,17/08/2017,614513,292,245,COACH & HORSES,CR410824,Homelessness,Bed & Breakfast Payment,818
http://statistics.data.gov.uk/id/local-authority/12UE,Huntingdonshire District Council,17/08/2017,17/08/2017,614513,292,350,COACH & HORSES,CR410824,Homelessness,Bed & Breakfast Payment,818
http://statistics.data.gov.uk/id/local-authority/12UE,Huntingdonshire District Council,17/08/2017,17/08/2017,614513,292,245,COACH & HORSES,CR410824,Homelessness,Bed & Breakfast Payment,818
http://statistics.data.gov.uk/id/local-authority/12UE,Huntingdonshire District Council,17/08/2017,17/08/2017,614513,292,175,COACH & HORSES,CR410824,Homelessness,Bed & Breakfast Payment,818
http://statistics.data.gov.uk/id/local-authority/12UE,Huntingdonshire District Council,17/08/2017,17/08/2017,614513,292,245,COACH & HORSES,CR410824,Homelessness,Bed & Breakfast Payment,818
http://statistics.data.gov.uk/id/local-authority/12UE,Huntingdonshire District Council,17/08/2017,17/08/2017,614513,292,245,COACH & HORSES,CR410824,Homelessness,Bed & Breakfast Payment,818
http://statistics.data.gov.uk/id/local-authority/12UE,Huntingdonshire District Council,17/08/2017,17/08/2017,614513,292,385,COACH & HORSES,CR410824,Homelessness,Bed & Breakfast Payment,818
http://statistics.data.gov.uk/id/local-authority/12UE,Huntingdonshire District Council,03/08/2017,03/08/2017,213558,IN0612364,"2,686.66",STAFFLINE GROUP,CR416827,Recycling Collections,Hired Staff,100
http://statistics.data.gov.uk/id/local-authority/12UE,Huntingdonshire District Council,03/08/2017,03/08/2017,213554,IN0610431,"2,685.79",STAFFLINE GROUP,CR416827,Domestic Waste Collection,Hired Staff,100
http://statistics.data.gov.uk/id/local-authority/12UE,Huntingdonshire District Council,02/08/2017,10/08/2017,214531,R022334,"2,675.00",PREMIER IT RECRUITMENT LTD,CR454029,Imd Shared Service,Hired Staff,100
http://statistics.data.gov.uk/id/local-authority/12UE,Huntingdonshire District Council,15/08/2017,17/08/2017,215314,R022492,"2,675.00",PREMIER IT RECRUITMENT LTD,CR454029,Imd Shared Service,Hired Staff,100
http://statistics.data.gov.uk/id/local-authority/12UE,Huntingdonshire District Council,24/08/2017,24/08/2017,215851,R022610,"2,675.00",PREMIER IT RECRUITMENT LTD,CR454029,Imd Shared Service,Hired Staff,100
http://statistics.data.gov.uk/id/local-authority/12UE,Huntingdonshire District Council,31/08/2017,31/08/2017,215854,R022732,"2,675.00",PREMIER IT RECRUITMENT LTD,CR454029,Imd Shared Service,Hired Staff,100
http://statistics.data.gov.uk/id/local-authority/12UE,Huntingdonshire District Council,09/08/2017,10/08/2017,214539,IN0615207,"2,632.56",STAFFLINE GROUP,CR416827,Domestic Waste Collection,Hired Staff,100
http://statistics.data.gov.uk/id/local-authority/12UE,Huntingdonshire District Council,09/08/2017,10/08/2017,614250,291,245,COACH & HORSES,CR410824,Homelessness,Bed & Breakfast Payment,818
http://statistics.data.gov.uk/id/local-authority/12UE,Huntingdonshire District Council,09/08/2017,10/08/2017,614250,291,245,COACH & HORSES,CR410824,Homelessness,Bed & Breakfast Payment,818
http://statistics.data.gov.uk/id/local-authority/12UE,Huntingdonshire District Council,09/08/2017,10/08/2017,614250,291,280,COACH & HORSES,CR410824,Homelessness,Bed & Breakfast Payment,818
http://statistics.data.gov.uk/id/local-authority/12UE,Huntingdonshire District Council,09/08/2017,10/08/2017,614250,291,245,COACH & HORSES,CR410824,Homelessness,Bed & Breakfast Payment,818
http://statistics.data.gov.uk/id/local-authority/12UE,Huntingdonshire District Council,09/08/2017,10/08/2017,614250,291,210,COACH & HORSES,CR410824,Homelessness,Bed & Breakfast Payment,818
http://statistics.data.gov.uk/id/local-authority/12UE,Huntingdonshire District Council,09/08/2017,10/08/2017,614250,291,100,COACH & HORSES,CR410824,Homelessness,Bed & Breakfast Payment,818
http://statistics.data.gov.uk/id/local-authority/12UE,Huntingdonshire District Council,09/08/2017,10/08/2017,614250,291,350,COACH & HORSES,CR410824,Homelessness,Bed & Breakfast Payment,818
http://statistics.data.gov.uk/id/local-authority/12UE,Huntingdonshire District Council,09/08/2017,10/08/2017,614250,291,245,COACH & HORSES,CR410824,Homelessness,Bed & Breakfast Payment,818
http://statistics.data.gov.uk/id/local-authority/12UE,Huntingdonshire District Council,09/08/2017,10/08/2017,614250,291,245,COACH & HORSES,CR410824,Homelessness,Bed & Breakfast Payment,818
http://statistics.data.gov.uk/id/local-authority/12UE,Huntingdonshire District Council,09/08/2017,10/08/2017,614250,291,245,COACH & HORSES,CR410824,Homelessness,Bed & Breakfast Payment,818
http://statistics.data.gov.uk/id/local-authority/12UE,Huntingdonshire District Council,09/08/2017,10/08/2017,614250,291,220,COACH & HORSES,CR410824,Homelessness,Bed & Breakfast Payment,818
http://statistics.data.gov.uk/id/local-authority/12UE,Huntingdonshire District Council,02/08/2017,10/08/2017,214540,125628,"2,625.00",IT TALENT SOLUTIONS LTD,CR482676,Imd Shared Service,Hired Staff,100
http://statistics.data.gov.uk/id/local-authority/12UE,Huntingdonshire District Council,15/08/2017,17/08/2017,215324,125699,"2,625.00",IT TALENT SOLUTIONS LTD,CR482676,Imd Shared Service,Hired Staff,100
http://statistics.data.gov.uk/id/local-authority/12UE,Huntingdonshire District Council,15/08/2017,17/08/2017,215331,125732,"2,625.00",IT TALENT SOLUTIONS LTD,CR482676,Imd Shared Service,Hired Staff,100
http://statistics.data.gov.uk/id/local-authority/12UE,Huntingdonshire District Council,24/08/2017,24/08/2017,215838,12786,"2,625.00",IT TALENT SOLUTIONS LTD,CR482676,Imd Shared Service,Hired Staff,100
http://statistics.data.gov.uk/id/local-authority/12UE,Huntingdonshire District Council,31/08/2017,31/08/2017,216143,125832,"2,625.00",IT TALENT SOLUTIONS LTD,CR482676,Imd Shared Service,Hired Staff,100
http://statistics.data.gov.uk/id/local-authority/12UE,Huntingdonshire District Council,01/08/2017,01/08/2017,214441,1007771407,"2,600.00",HAYS,CR423917,Property Development And Mgt,Hired Staff,100
http://statistics.data.gov.uk/id/local-authority/12UE,Huntingdonshire District Council,07/08/2017,08/08/2017,214849,1007785070,"2,600.00",HAYS,CR423917,Property Development And Mgt,Hired Staff,100
http://statistics.data.gov.uk/id/local-authority/12UE,Huntingdonshire District Council,24/08/2017,24/08/2017,215924,1007801353,"2,600.00",HAYS,CR423917,Property Development And Mgt,Hired Staff,100
http://statistics.data.gov.uk/id/local-authority/12UE,Huntingdonshire District Council,24/08/2017,24/08/2017,215927,1007819397,"2,600.00",HAYS,CR423917,Property Development And Mgt,Hired Staff,100
http://statistics.data.gov.uk/id/local-authority/12UE,Huntingdonshire District Council,31/08/2017,31/08/2017,216278,1007832276,"2,600.00",HAYS,CR423917,Property Development And Mgt,Hired Staff,100
http://statistics.data.gov.uk/id/local-authority/12UE,Huntingdonshire District Council,31/08/2017,31/08/2017,214964,IN0616441,"2,597.26",STAFFLINE GROUP,CR416827,Domestic Waste Collection,Hired Staff,100
http://statistics.data.gov.uk/id/local-authority/12UE,Huntingdonshire District Council,16/08/2017,16/08/2017,215390,S085067846,"2,595.00",STANNAH LTD Ref(20HU025),CR000759,Disabled Facilities Grants,Mandatory Grants,801
http://statistics.data.gov.uk/id/local-authority/12UE,Huntingdonshire District Council,02/08/2017,07/08/2017,613915,2017/18 - 2,"2,588.80",INTERNATIONAL PRAYER PALACE CHURCH,CR424849,Voluntary Sector Grants,Grants (Paid Out),800
http://statistics.data.gov.uk/id/local-authority/12UE,Huntingdonshire District Council,09/08/2017,10/08/2017,214533,IN0613210,"2,566.28",STAFFLINE GROUP,CR416827,Domestic Waste Collection,Hired Staff,100
http://statistics.data.gov.uk/id/local-authority/12UE,Huntingdonshire District Council,24/08/2017,24/08/2017,215858,UK4-891-2017,"2,530.00",KEYTREE LIMITED,CR424687,Imd Shared Service,Software,206
http://statistics.data.gov.uk/id/local-authority/12UE,Huntingdonshire District Council,09/08/2017,09/08/2017,215038,1007784087,"2,502.50",HAYS,CR423917,Transformation Programme,Hired Staff,100
http://statistics.data.gov.uk/id/local-authority/12UE,Huntingdonshire District Council,02/08/2017,10/08/2017,214534,R022393,"2,500.00",PREMIER IT RECRUITMENT LTD,CR454029,Ccity Recharge Invoices,Hired Staff,100
http://statistics.data.gov.uk/id/local-authority/12UE,Huntingdonshire District Council,15/08/2017,17/08/2017,215313,R022488,"2,500.00",PREMIER IT RECRUITMENT LTD,CR454029,Ccity Recharge Invoices,Hired Staff,100
http://statistics.data.gov.uk/id/local-authority/12UE,Huntingdonshire District Council,24/08/2017,24/08/2017,215855,R022573,"2,500.00",PREMIER IT RECRUITMENT LTD,CR454029,Ccity Recharge Invoices,Hired Staff,100
http://statistics.data.gov.uk/id/local-authority/12UE,Huntingdonshire District Council,02/08/2017,07/08/2017,613920,2017/18 - 24,"2,500.00",RELATE CAMBRIDGE,CR423587,Voluntary Sector Grants,Grants (Paid Out),800
http://statistics.data.gov.uk/id/local-authority/12UE,Huntingdonshire District Council,24/08/2017,24/08/2017,215900,INV02490290,"2,448.66",ZENDESK INC.,CR424889,Ccity Recharge Invoices,Software,206
http://statistics.data.gov.uk/id/local-authority/12UE,Huntingdonshire District Council,03/08/2017,09/08/2017,214852,SIN084388,"2,367.36",QUADRANT SECURITY GROUP,CR027775,Cctv Shared Service Hosting,Equipment Maintenance,511
http://statistics.data.gov.uk/id/local-authority/12UE,Huntingdonshire District Council,03/08/2017,03/08/2017,613922,290,245,COACH & HORSES,CR410824,Homelessness,Bed & Breakfast Payment,818
http://statistics.data.gov.uk/id/local-authority/12UE,Huntingdonshire District Council,03/08/2017,03/08/2017,613922,290,245,COACH & HORSES,CR410824,Homelessness,Bed & Breakfast Payment,818
http://statistics.data.gov.uk/id/local-authority/12UE,Huntingdonshire District Council,03/08/2017,03/08/2017,613922,290,280,COACH & HORSES,CR410824,Homelessness,Bed & Breakfast Payment,818
http://statistics.data.gov.uk/id/local-authority/12UE,Huntingdonshire District Council,03/08/2017,03/08/2017,613922,290,245,COACH & HORSES,CR410824,Homelessness,Bed & Breakfast Payment,818
http://statistics.data.gov.uk/id/local-authority/12UE,Huntingdonshire District Council,03/08/2017,03/08/2017,613922,290,150,COACH & HORSES,CR410824,Homelessness,Bed & Breakfast Payment,818
http://statistics.data.gov.uk/id/local-authority/12UE,Huntingdonshire District Council,03/08/2017,03/08/2017,613922,290,350,COACH & HORSES,CR410824,Homelessness,Bed & Breakfast Payment,818
http://statistics.data.gov.uk/id/local-authority/12UE,Huntingdonshire District Council,03/08/2017,03/08/2017,613922,290,245,COACH & HORSES,CR410824,Homelessness,Bed & Breakfast Payment,818
http://statistics.data.gov.uk/id/local-authority/12UE,Huntingdonshire District Council,03/08/2017,03/08/2017,613922,290,245,COACH & HORSES,CR410824,Homelessness,Bed & Breakfast Payment,818
http://statistics.data.gov.uk/id/local-authority/12UE,Huntingdonshire District Council,03/08/2017,03/08/2017,613922,290,105,COACH & HORSES,CR410824,Homelessness,Bed & Breakfast Payment,818
http://statistics.data.gov.uk/id/local-authority/12UE,Huntingdonshire District Council,03/08/2017,03/08/2017,613922,290,245,COACH & HORSES,CR410824,Homelessness,Bed & Breakfast Payment,818
http://statistics.data.gov.uk/id/local-authority/12UE,Huntingdonshire District Council,22/08/2017,22/08/2017,215698,14TH JUNE 2017,"2,299.00",PRODEC,CR139080,Disabled Facilities Grants,Mandatory Grants,801
http://statistics.data.gov.uk/id/local-authority/12UE,Huntingdonshire District Council,22/08/2017,22/08/2017,215652,S32069,"2,297.50",BSG PROPERTY SERVICES LTD,CR089905,Disabled Facilities Grants,Mandatory Grants,801
http://statistics.data.gov.uk/id/local-authority/12UE,Huntingdonshire District Council,18/08/2017,31/08/2017,216272,41303,"2,246.00",CLANPRESS KING'S LYNN LTD,CR413516,Parks & Open Spaces,Equipment,500
http://statistics.data.gov.uk/id/local-authority/12UE,Huntingdonshire District Council,02/08/2017,03/08/2017,214010,306813,"2,221.50",DENNIS EAGLE LTD,CR000200,Recycling Collections,Vehicle Parts & Fittings,625
http://statistics.data.gov.uk/id/local-authority/12UE,Huntingdonshire District Council,23/08/2017,23/08/2017,214934,175,"2,200.00",FOCUS CONSULTANTS 2010 LLP,CR424641,Customer Service Centres,Building Construction,300
http://statistics.data.gov.uk/id/local-authority/12UE,Huntingdonshire District Council,09/08/2017,09/08/2017,215060,U001537,"2,200.00",TECHNOLOGY ONE LTD,CR424111,Financial Mgt System Replacmnt,Software,206
http://statistics.data.gov.uk/id/local-authority/12UE,Huntingdonshire District Council,23/08/2017,23/08/2017,214878,356,"2,190.00",FOCUS CONSULTANTS 2010 LLP,CR424641,Customer Service Centres,Building Construction,300
http://statistics.data.gov.uk/id/local-authority/12UE,Huntingdonshire District Council,25/08/2017,25/08/2017,214901,231422001,"2,187.40",ANGLIAN WATER,CR000071,Pathfinder House,Water & Sewerage,432
http://statistics.data.gov.uk/id/local-authority/12UE,Huntingdonshire District Council,24/08/2017,24/08/2017,215879,3494574,"2,160.00",INSIGHT DIRECT UK LTD,CR000242,Ccity Recharge Invoices,Other I T Hardware,203
http://statistics.data.gov.uk/id/local-authority/12UE,Huntingdonshire District Council,02/08/2017,03/08/2017,214485,993,"2,146.00",HACT,CR455657,Concessionary Fares,Contribution (Paid Out),810
http://statistics.data.gov.uk/id/local-authority/12UE,Huntingdonshire District Council,03/08/2017,03/08/2017,214646,IN0594995,"2,136.45",STAFFLINE GROUP,CR416827,Domestic Waste Collection,Hired Staff,100
http://statistics.data.gov.uk/id/local-authority/12UE,Huntingdonshire District Council,02/08/2017,03/08/2017,214664,9678,"2,125.00",CAMBRIDGE MARKET RESEARCH LIMITED,CR424861,Car Parks Operational Mgt,Equipment,500
http://statistics.data.gov.uk/id/local-authority/12UE,Huntingdonshire District Council,09/08/2017,10/08/2017,214819,104385,209.74,BANDVULC TRUCK TYRES,CR406810,Recycling Collections,Tyres,630
http://statistics.data.gov.uk/id/local-authority/12UE,Huntingdonshire District Council,09/08/2017,10/08/2017,214819,104385,134.42,BANDVULC TRUCK TYRES,CR406810,Recycling Collections,Tyres,630
http://statistics.data.gov.uk/id/local-authority/12UE,Huntingdonshire District Council,09/08/2017,10/08/2017,214819,104385,209.74,BANDVULC TRUCK TYRES,CR406810,Domestic Waste Collection,Tyres,630
http://statistics.data.gov.uk/id/local-authority/12UE,Huntingdonshire District Council,09/08/2017,10/08/2017,214819,104385,301.92,BANDVULC TRUCK TYRES,CR406810,Domestic Waste Collection,Tyres,630
http://statistics.data.gov.uk/id/local-authority/12UE,Huntingdonshire District Council,09/08/2017,10/08/2017,214819,104385,229.02,BANDVULC TRUCK TYRES,CR406810,Domestic Waste Collection,Tyres,630
http://statistics.data.gov.uk/id/local-authority/12UE,Huntingdonshire District Council,09/08/2017,10/08/2017,214819,104385,368.6,BANDVULC TRUCK TYRES,CR406810,Domestic Waste Collection,Tyres,630
http://statistics.data.gov.uk/id/local-authority/12UE,Huntingdonshire District Council,09/08/2017,10/08/2017,214819,104385,397.01,BANDVULC TRUCK TYRES,CR406810,Domestic Waste Collection,Tyres,630
http://statistics.data.gov.uk/id/local-authority/12UE,Huntingdonshire District Council,09/08/2017,10/08/2017,214819,104385,229.02,BANDVULC TRUCK TYRES,CR406810,Domestic Waste Collection,Tyres,630
http://statistics.data.gov.uk/id/local-authority/12UE,Huntingdonshire District Council,15/08/2017,17/08/2017,215300,6721,10,ENFORCE TECHNOLOGY,CR424742,Scdc Recharge Invoices,Other I T Hardware,203
http://statistics.data.gov.uk/id/local-authority/12UE,Huntingdonshire District Council,15/08/2017,17/08/2017,215300,6721,486.2,ENFORCE TECHNOLOGY,CR424742,Scdc Recharge Invoices,Other I T Hardware,203
http://statistics.data.gov.uk/id/local-authority/12UE,Huntingdonshire District Council,15/08/2017,17/08/2017,215300,6721,"1,533.60",ENFORCE TECHNOLOGY,CR424742,Scdc Recharge Invoices,Software,206
http://statistics.data.gov.uk/id/local-authority/12UE,Huntingdonshire District Council,02/08/2017,07/08/2017,613687,2017/18 - 31,"2,000.00",CAMBRIDGESHIRE POLICE SHRIEVALTY TRUST,CR423905,Voluntary Sector Grants,Grants (Paid Out),800
http://statistics.data.gov.uk/id/local-authority/12UE,Huntingdonshire District Council,18/08/2017,21/08/2017,614656,2017/18 22,"2,000.00",THE FREE CHURCH (UNITED REFORM) ST IVES,CR479656,Voluntary Sector Grants,Grants (Paid Out),800
http://statistics.data.gov.uk/id/local-authority/12UE,Huntingdonshire District Council,15/08/2017,17/08/2017,215352,7.42878E+14,5.75,VIRGIN MEDIA BUSINESS,CR033120,Member Allowances & Support,I T Line Rental,248
http://statistics.data.gov.uk/id/local-authority/12UE,Huntingdonshire District Council,15/08/2017,17/08/2017,215352,7.42878E+14,"1,178.28",VIRGIN MEDIA BUSINESS,CR033120,Imd Shared Service,Telephone &Mobile Phonecharges,240
http://statistics.data.gov.uk/id/local-authority/12UE,Huntingdonshire District Council,15/08/2017,17/08/2017,215352,7.42878E+14,796.37,VIRGIN MEDIA BUSINESS,CR033120,Imd Shared Service,I T Line Rental,248
http://statistics.data.gov.uk/id/local-authority/12UE,Huntingdonshire District Council,15/08/2017,17/08/2017,215352,7.42878E+14,2.06,VIRGIN MEDIA BUSINESS,CR033120,Site & Centre Management,Telephone &Mobile Phonecharges,240
http://statistics.data.gov.uk/id/local-authority/12UE,Huntingdonshire District Council,15/08/2017,17/08/2017,215352,7.42878E+14,8,VIRGIN MEDIA BUSINESS,CR033120,Site & Centre Management,I T Line Rental,248
http://statistics.data.gov.uk/id/local-authority/12UE,Huntingdonshire District Council,17/08/2017,17/08/2017,215472,12489088380,"1,960.53",E-ON ENERGY,CR416430,Swimming,Gas,421
http://statistics.data.gov.uk/id/local-authority/12UE,Huntingdonshire District Council,17/08/2017,17/08/2017,215463,19869,"1,959.39",KING STREET HOUSING SOCIETY,CR409301,Homelessness,Management Charge,733
http://statistics.data.gov.uk/id/local-authority/12UE,Huntingdonshire District Council,30/08/2017,30/08/2017,216239,41226290,"1,945.54",SWALEC,CR407130,Nursery Project - Gmc,Electricity,420
http://statistics.data.gov.uk/id/local-authority/12UE,Huntingdonshire District Council,02/08/2017,03/08/2017,214379,8057491702,"1,898.90",ANGLIAN WATER,CR000071,Site & Centre Management,Water & Sewerage,432
http://statistics.data.gov.uk/id/local-authority/12UE,Huntingdonshire District Council,24/08/2017,24/08/2017,215866,1263079830,8,ORANGE AIRTIME,CR455799,Legal,I T Line Rental,248
http://statistics.data.gov.uk/id/local-authority/12UE,Huntingdonshire District Council,24/08/2017,24/08/2017,215866,1263079830,50,ORANGE AIRTIME,CR455799,Cctv Shared Service Hosting,I T Line Rental,248
http://statistics.data.gov.uk/id/local-authority/12UE,Huntingdonshire District Council,24/08/2017,24/08/2017,215866,1263079830,82.38,ORANGE AIRTIME,CR455799,Building Control,I T Line Rental,248
http://statistics.data.gov.uk/id/local-authority/12UE,Huntingdonshire District Council,24/08/2017,24/08/2017,215866,1263079830,182.31,ORANGE AIRTIME,CR455799,Imd Shared Service,I T Line Rental,248
http://statistics.data.gov.uk/id/local-authority/12UE,Huntingdonshire District Council,24/08/2017,24/08/2017,215866,1263079830,"1,573.24",ORANGE AIRTIME,CR455799,Hdc Recharge Invoices,I T Line Rental,248
http://statistics.data.gov.uk/id/local-authority/12UE,Huntingdonshire District Council,24/08/2017,24/08/2017,215850,R022572,"1,850.00",PREMIER IT RECRUITMENT LTD,CR454029,Imd Shared Service,Hired Staff,100
http://statistics.data.gov.uk/id/local-authority/12UE,Huntingdonshire District Council,03/08/2017,04/08/2017,214669,IN16PS17003909,76.32,WHISTL UK LTD,CR424061,Electoral Registration,Postage,231
http://statistics.data.gov.uk/id/local-authority/12UE,Huntingdonshire District Council,03/08/2017,04/08/2017,214669,IN16PS17003909,"1,071.86",WHISTL UK LTD,CR424061,Post Handling,Postage,231
http://statistics.data.gov.uk/id/local-authority/12UE,Huntingdonshire District Council,03/08/2017,04/08/2017,214669,IN16PS17003909,688.02,WHISTL UK LTD,CR424061,Closedcounciltax Mgmt-Use Hb85,Postage,231
http://statistics.data.gov.uk/id/local-authority/12UE,Huntingdonshire District Council,03/08/2017,03/08/2017,214645,IN0594994,"1,823.46",STAFFLINE GROUP,CR416827,Recycling Collections,Hired Staff,100
http://statistics.data.gov.uk/id/local-authority/12UE,Huntingdonshire District Council,02/08/2017,02/08/2017,214569,13702,"1,815.00",C & H PRODUCTS LIMITED,CR424834,Swimming,Equipment,500
http://statistics.data.gov.uk/id/local-authority/12UE,Huntingdonshire District Council,31/08/2017,31/08/2017,214971,IN0616442,"1,807.28",STAFFLINE GROUP,CR416827,Street Cleansing,Hired Staff,100
http://statistics.data.gov.uk/id/local-authority/12UE,Huntingdonshire District Council,03/08/2017,03/08/2017,214545,IN0613212,"1,803.71",STAFFLINE GROUP,CR416827,Street Cleansing,Hired Staff,100
http://statistics.data.gov.uk/id/local-authority/12UE,Huntingdonshire District Council,03/08/2017,03/08/2017,213635,416711,"1,764.09",SMI GROUP,CR423139,Domestic Waste Collection,Protective Clothing & Uniforms,163
http://statistics.data.gov.uk/id/local-authority/12UE,Huntingdonshire District Council,02/08/2017,03/08/2017,213972,8057452217,"1,755.12",ANGLIAN WATER,CR000071,Swimming,Water & Sewerage,432
http://statistics.data.gov.uk/id/local-authority/12UE,Huntingdonshire District Council,15/08/2017,17/08/2017,215281,60333,"1,750.00",GLOBAL TREE SOLUTIONS LTD,CR400957,Grounds Maintenance,Equipment Hire,507
http://statistics.data.gov.uk/id/local-authority/12UE,Huntingdonshire District Council,17/08/2017,17/08/2017,215484,7-08 958,"1,750.00",COMPLETE BOWLING SERVICES LTD,CR424631,Ten Pin Bowling,Equipment Maintenance,511
http://statistics.data.gov.uk/id/local-authority/12UE,Huntingdonshire District Council,24/08/2017,24/08/2017,215870,SINV00114155,75,BIST,CR422733,Imd Shared Service,Other I T Hardware,203
http://statistics.data.gov.uk/id/local-authority/12UE,Huntingdonshire District Council,24/08/2017,24/08/2017,215870,SINV00114155,115,BIST,CR422733,Imd Shared Service,Other I T Hardware,203
http://statistics.data.gov.uk/id/local-authority/12UE,Huntingdonshire District Council,24/08/2017,24/08/2017,215870,SINV00114155,"1,060.00",BIST,CR422733,Imd Shared Service,Other I T Hardware,203
http://statistics.data.gov.uk/id/local-authority/12UE,Huntingdonshire District Council,24/08/2017,24/08/2017,215870,SINV00114155,233,BIST,CR422733,Imd Shared Service,Other I T Hardware,203
http://statistics.data.gov.uk/id/local-authority/12UE,Huntingdonshire District Council,24/08/2017,24/08/2017,215870,SINV00114155,250,BIST,CR422733,Imd Shared Service,Other I T Hardware,203
http://statistics.data.gov.uk/id/local-authority/12UE,Huntingdonshire District Council,16/08/2017,16/08/2017,215305,20524,"1,710.24",M WATSON CONSTRUCTION LTD,CR480595,Disabled Facilities Grants,Mandatory Grants,801
http://statistics.data.gov.uk/id/local-authority/12UE,Huntingdonshire District Council,02/08/2017,10/08/2017,214535,LA445571,"1,704.50",L A INTERNATIONAL COMPUTER CONSULTANTS LTD,CR424731,Imd Shared Service,Hired Staff,100
http://statistics.data.gov.uk/id/local-authority/12UE,Huntingdonshire District Council,24/08/2017,24/08/2017,215828,LA447606,"1,704.50",L A INTERNATIONAL COMPUTER CONSULTANTS LTD,CR424731,Imd Shared Service,Hired Staff,100
http://statistics.data.gov.uk/id/local-authority/12UE,Huntingdonshire District Council,24/08/2017,24/08/2017,215836,LA449449,"1,704.50",L A INTERNATIONAL COMPUTER CONSULTANTS LTD,CR424731,Imd Shared Service,Hired Staff,100
http://statistics.data.gov.uk/id/local-authority/12UE,Huntingdonshire District Council,31/08/2017,31/08/2017,216146,LA450575,"1,704.50",L A INTERNATIONAL COMPUTER CONSULTANTS LTD,CR424731,Imd Shared Service,Hired Staff,100
http://statistics.data.gov.uk/id/local-authority/12UE,Huntingdonshire District Council,17/08/2017,17/08/2017,215482,65922,"1,702.03",HAVEN POWER LTD,CR455940,Site & Centre Management,Electricity,420
http://statistics.data.gov.uk/id/local-authority/12UE,Huntingdonshire District Council,24/08/2017,24/08/2017,215929,PERSONAL DATA REDACTED,"1,690.00",PROGRESSIVE LETS LTD,CR955930,Homelessness,Incentive Payment,816
http://statistics.data.gov.uk/id/local-authority/12UE,Huntingdonshire District Council,03/08/2017,03/08/2017,214546,IN0615209,"1,662.82",STAFFLINE GROUP,CR416827,Street Cleansing,Hired Staff,100
http://statistics.data.gov.uk/id/local-authority/12UE,Huntingdonshire District Council,09/08/2017,09/08/2017,214976,481677109,"1,654.51",SWALEC,CR407130,Swimming,Electricity,420
http://statistics.data.gov.uk/id/local-authority/12UE,Huntingdonshire District Council,31/08/2017,31/08/2017,216421,1007852234,"1,608.75",HAYS,CR423917,Transformation - Customers,Hired Staff,100
http://statistics.data.gov.uk/id/local-authority/12UE,Huntingdonshire District Council,16/08/2017,21/08/2017,215422,9054914443,239.02,ROYAL MAIL,CR027083,Electoral Registration,Postage,231
http://statistics.data.gov.uk/id/local-authority/12UE,Huntingdonshire District Council,16/08/2017,21/08/2017,215422,9054914443,"1,335.32",ROYAL MAIL,CR027083,Post Handling,Postage,231
http://statistics.data.gov.uk/id/local-authority/12UE,Huntingdonshire District Council,03/08/2017,04/08/2017,214673,IN16PS17003949,118.19,WHISTL UK LTD,CR424061,Electoral Registration,Postage,231
http://statistics.data.gov.uk/id/local-authority/12UE,Huntingdonshire District Council,03/08/2017,04/08/2017,214673,IN16PS17003949,"1,068.90",WHISTL UK LTD,CR424061,Post Handling,Postage,231
http://statistics.data.gov.uk/id/local-authority/12UE,Huntingdonshire District Council,03/08/2017,04/08/2017,214673,IN16PS17003949,321.96,WHISTL UK LTD,CR424061,Closedcounciltax Mgmt-Use Hb85,Postage,231
http://statistics.data.gov.uk/id/local-authority/12UE,Huntingdonshire District Council,03/08/2017,04/08/2017,214673,IN16PS17003949,40.01,WHISTL UK LTD,CR424061,Domestic Waste Collection,Postage,231
http://statistics.data.gov.uk/id/local-authority/12UE,Huntingdonshire District Council,23/08/2017,24/08/2017,215844,28527,"1,537.72",M & N VEHICLE SERVICES,CR480661,Domestic Waste Collection,Vehicle Parts & Fittings,625
http://statistics.data.gov.uk/id/local-authority/12UE,Huntingdonshire District Council,01/08/2017,01/08/2017,214446,1007763029,"1,525.00",HAYS,CR423917,Property Development And Mgt,Hired Staff,100
http://statistics.data.gov.uk/id/local-authority/12UE,Huntingdonshire District Council,08/08/2017,08/08/2017,214910,1007785871,"1,525.00",HAYS,CR423917,Property Development And Mgt,Hired Staff,100
http://statistics.data.gov.uk/id/local-authority/12UE,Huntingdonshire District Council,24/08/2017,24/08/2017,215926,1007814831,"1,525.00",HAYS,CR423917,Property Development And Mgt,Hired Staff,100
http://statistics.data.gov.uk/id/local-authority/12UE,Huntingdonshire District Council,24/08/2017,24/08/2017,215928,1007814832,"1,525.00",HAYS,CR423917,Property Development And Mgt,Hired Staff,100
http://statistics.data.gov.uk/id/local-authority/12UE,Huntingdonshire District Council,24/08/2017,24/08/2017,215896,C/RB156030,"1,520.00",CIVICA UK LTD,CR415826,Scdc Recharge Invoices,Training,130
http://statistics.data.gov.uk/id/local-authority/12UE,Huntingdonshire District Council,24/08/2017,24/08/2017,215830,LA448474,"1,500.00",L A INTERNATIONAL COMPUTER CONSULTANTS LTD,CR424731,Imd Shared Service,Hired Staff,100
http://statistics.data.gov.uk/id/local-authority/12UE,Huntingdonshire District Council,03/08/2017,03/08/2017,214651,PERSONAL DATA REDACTED,"1,490.82",LUMINUS HOMES,CR401276,Homelessness,Incentive Payment,816
http://statistics.data.gov.uk/id/local-authority/12UE,Huntingdonshire District Council,23/08/2017,23/08/2017,215796,441567103,"1,489.08",SWALEC,CR407130,Huntingdon Multi-Storey,Electricity,420
http://statistics.data.gov.uk/id/local-authority/12UE,Huntingdonshire District Council,10/08/2017,11/08/2017,215099,IN16PS17004187,96.71,WHISTL UK LTD,CR424061,Electoral Registration,Postage,231
http://statistics.data.gov.uk/id/local-authority/12UE,Huntingdonshire District Council,10/08/2017,11/08/2017,215099,IN16PS17004187,"1,083.34",WHISTL UK LTD,CR424061,Post Handling,Postage,231
http://statistics.data.gov.uk/id/local-authority/12UE,Huntingdonshire District Council,10/08/2017,11/08/2017,215099,IN16PS17004187,304.92,WHISTL UK LTD,CR424061,Closedcounciltax Mgmt-Use Hb85,Postage,231
http://statistics.data.gov.uk/id/local-authority/12UE,Huntingdonshire District Council,22/08/2017,22/08/2017,215676,DIHH/00003059,"1,482.87",LUMINUS HOMES,CR401276,Mobile Home Park,Building Mtce,303
http://statistics.data.gov.uk/id/local-authority/12UE,Huntingdonshire District Council,03/08/2017,03/08/2017,214675,92358209,"1,480.00",NEOPOST,CR400652,Printing,Envelopes,224
http://statistics.data.gov.uk/id/local-authority/12UE,Huntingdonshire District Council,24/08/2017,24/08/2017,215298,308053,"1,437.42",DENNIS EAGLE LTD,CR000200,Recycling Collections,Vehicle Parts & Fittings,625
http://statistics.data.gov.uk/id/local-authority/12UE,Huntingdonshire District Council,15/08/2017,17/08/2017,215471,17486,"1,436.00",ALLAN PEACOCK (STREET LIGHTING)LTD,CR403345,Cctv Shared Service Hosting,Equipment Maintenance,511
http://statistics.data.gov.uk/id/local-authority/12UE,Huntingdonshire District Council,25/08/2017,25/08/2017,216088,328503102,"1,426.68",ANGLIAN WATER,CR000071,Swimming,Water & Sewerage,432
http://statistics.data.gov.uk/id/local-authority/12UE,Huntingdonshire District Council,15/08/2017,17/08/2017,215254,SINV00109906,"1,413.38",BIST,CR422733,Imd Shared Service,Software,206
http://statistics.data.gov.uk/id/local-authority/12UE,Huntingdonshire District Council,24/08/2017,24/08/2017,216083,1000181,"1,410.00",EAST OF ENGLAND LGA,CR422620,Transformation - Commercial,Consultants,711
http://statistics.data.gov.uk/id/local-authority/12UE,Huntingdonshire District Council,02/08/2017,02/08/2017,214570,9832,"1,408.99",ROGER WILSON ELECTRONICS,CR028041,Site & Centre Management,Building Mtce,303
http://statistics.data.gov.uk/id/local-authority/12UE,Huntingdonshire District Council,15/08/2017,17/08/2017,215332,125765,"1,400.00",IT TALENT SOLUTIONS LTD,CR482676,Imd Shared Service,Hired Staff,100
http://statistics.data.gov.uk/id/local-authority/12UE,Huntingdonshire District Council,31/08/2017,31/08/2017,216144,125884,"1,400.00",IT TALENT SOLUTIONS LTD,CR482676,Imd Shared Service,Hired Staff,100
http://statistics.data.gov.uk/id/local-authority/12UE,Huntingdonshire District Council,15/08/2017,17/08/2017,215346,UK10/0720177495,"1,398.99",VODAFONE CABLE & WIRELESS,CR482316,Imd Shared Service,I T Line Rental,248
http://statistics.data.gov.uk/id/local-authority/12UE,Huntingdonshire District Council,24/08/2017,24/08/2017,215884,JC/5106/29384,"1,389.00",J BREHENY CIVIL ENGINEERING LTD,CR000314,Industrial Properties,Building Mtce,303
http://statistics.data.gov.uk/id/local-authority/12UE,Huntingdonshire District Council,25/08/2017,25/08/2017,216099,SIN006537,"1,380.00",ESRI UK,CR405125,Hr & Payroll Services,Training,130
http://statistics.data.gov.uk/id/local-authority/12UE,Huntingdonshire District Council,02/08/2017,07/08/2017,613916,2017/18 - 25,"1,366.00","FOLKSWORTH,WASHINGLEY & MORBORNE VILLAGE HALL",CR424850,Voluntary Sector Grants,Grants (Paid Out),800
http://statistics.data.gov.uk/id/local-authority/12UE,Huntingdonshire District Council,16/08/2017,21/08/2017,215418,1132511324,"1,362.34",KONICA MINOLTA,CR478866,"Mfds -Local Print, Scan & Copy",Equipment Maintenance,511
http://statistics.data.gov.uk/id/local-authority/12UE,Huntingdonshire District Council,08/08/2017,08/08/2017,214911,75316,"1,350.00",MACDONALD & COMPANY FREELANCE LTD,CR424684,Property Development And Mgt,Hired Staff,100
http://statistics.data.gov.uk/id/local-authority/12UE,Huntingdonshire District Council,24/08/2017,24/08/2017,215932,75448,"1,350.00",MACDONALD & COMPANY FREELANCE LTD,CR424684,Property Development And Mgt,Hired Staff,100
http://statistics.data.gov.uk/id/local-authority/12UE,Huntingdonshire District Council,22/08/2017,22/08/2017,215689,IN16PS17004355,"1,069.63",WHISTL UK LTD,CR424061,Post Handling,Postage,231
http://statistics.data.gov.uk/id/local-authority/12UE,Huntingdonshire District Council,22/08/2017,22/08/2017,215689,IN16PS17004355,277.88,WHISTL UK LTD,CR424061,Closedcounciltax Mgmt-Use Hb85,Postage,231
http://statistics.data.gov.uk/id/local-authority/12UE,Huntingdonshire District Council,16/08/2017,16/08/2017,214946,357,670,FOCUS CONSULTANTS 2010 LLP,CR424641,Ol St Neots Pool Building,Consultants,711
http://statistics.data.gov.uk/id/local-authority/12UE,Huntingdonshire District Council,16/08/2017,16/08/2017,214946,357,670,FOCUS CONSULTANTS 2010 LLP,CR424641,Ol St Ives Burgess Hall,Consultants,711
http://statistics.data.gov.uk/id/local-authority/12UE,Huntingdonshire District Council,29/08/2017,31/08/2017,215829,6674,670,D & H SIGN & DISPLAY SERVICES,CR030353,Vehicle Maintenance,Vehicle Parts & Fittings,625
http://statistics.data.gov.uk/id/local-authority/12UE,Huntingdonshire District Council,29/08/2017,31/08/2017,215829,6674,670,D & H SIGN & DISPLAY SERVICES,CR030353,Grounds Maintenance,Vehicle Parts & Fittings,625
http://statistics.data.gov.uk/id/local-authority/12UE,Huntingdonshire District Council,10/08/2017,10/08/2017,215075,IN16PS17003399,30.01,WHISTL UK LTD,CR424061,Electoral Registration,Postage,231
http://statistics.data.gov.uk/id/local-authority/12UE,Huntingdonshire District Council,10/08/2017,10/08/2017,215075,IN16PS17003399,775.09,WHISTL UK LTD,CR424061,Post Handling,Postage,231
http://statistics.data.gov.uk/id/local-authority/12UE,Huntingdonshire District Council,10/08/2017,10/08/2017,215075,IN16PS17003399,448.68,WHISTL UK LTD,CR424061,Benefits Management,Postage,231
http://statistics.data.gov.uk/id/local-authority/12UE,Huntingdonshire District Council,10/08/2017,10/08/2017,215075,IN16PS17003399,77.43,WHISTL UK LTD,CR424061,Domestic Waste Collection,Postage,231
http://statistics.data.gov.uk/id/local-authority/12UE,Huntingdonshire District Council,10/08/2017,10/08/2017,215075,IN16PS17003399,4.82,WHISTL UK LTD,CR424061,Trade Refuse,Postage,231
http://statistics.data.gov.uk/id/local-authority/12UE,Huntingdonshire District Council,22/08/2017,22/08/2017,215718,1000202,"1,323.40",EAST OF ENGLAND LGA,CR422620,Managing Directors Team,Training,130
http://statistics.data.gov.uk/id/local-authority/12UE,Huntingdonshire District Council,03/08/2017,03/08/2017,214204,635663,"1,323.00",ZIP HEATERS UK LTD,CR478275,Eastfield House,Building Mtce,303
http://statistics.data.gov.uk/id/local-authority/12UE,Huntingdonshire District Council,15/08/2017,17/08/2017,213992,DE11055926,"1,289.67",DENNIS EAGLE LTD,CR000200,Recycling Collections,Vehicle Parts & Fittings,625
http://statistics.data.gov.uk/id/local-authority/12UE,Huntingdonshire District Council,02/08/2017,03/08/2017,214572,328503102,"1,288.92",ANGLIAN WATER,CR000071,Swimming,Water & Sewerage,432
http://statistics.data.gov.uk/id/local-authority/12UE,Huntingdonshire District Council,30/08/2017,30/08/2017,216183,JC/5106/29372,"1,287.79",J BREHENY CIVIL ENGINEERING LTD,CR000314,Parks & Open Spaces,Sitework,359
http://statistics.data.gov.uk/id/local-authority/12UE,Huntingdonshire District Council,02/08/2017,17/08/2017,214518,4984796,840,INSIGHT DIRECT UK LTD,CR000242,Hdc Recharge Invoices,Other I T Hardware,203
http://statistics.data.gov.uk/id/local-authority/12UE,Huntingdonshire District Council,02/08/2017,17/08/2017,214518,4984796,430,INSIGHT DIRECT UK LTD,CR000242,Hdc Recharge Invoices,Other I T Hardware,203
http://statistics.data.gov.uk/id/local-authority/12UE,Huntingdonshire District Council,15/08/2017,17/08/2017,215334,125742,"1,260.00",IT TALENT SOLUTIONS LTD,CR482676,Imd Shared Service,Hired Staff,100
http://statistics.data.gov.uk/id/local-authority/12UE,Huntingdonshire District Council,22/08/2017,22/08/2017,215685,15922,292.95,JADE SECURITY SERVICES LTD,CR422256,Corporate Finance (Non Cm),Cash Collection,702
http://statistics.data.gov.uk/id/local-authority/12UE,Huntingdonshire District Council,22/08/2017,22/08/2017,215685,15922,181.35,JADE SECURITY SERVICES LTD,CR422256,Hospitality,Cash Collection,702
http://statistics.data.gov.uk/id/local-authority/12UE,Huntingdonshire District Council,22/08/2017,22/08/2017,215685,15922,181.35,JADE SECURITY SERVICES LTD,CR422256,Site & Centre Management,Cash Collection,702
http://statistics.data.gov.uk/id/local-authority/12UE,Huntingdonshire District Council,22/08/2017,22/08/2017,215685,15922,125.55,JADE SECURITY SERVICES LTD,CR422256,Site & Centre Management,Cash Collection,702
http://statistics.data.gov.uk/id/local-authority/12UE,Huntingdonshire District Council,22/08/2017,22/08/2017,215685,15922,125.55,JADE SECURITY SERVICES LTD,CR422256,Site & Centre Management,Cash Collection,702
http://statistics.data.gov.uk/id/local-authority/12UE,Huntingdonshire District Council,22/08/2017,22/08/2017,215685,15922,181.35,JADE SECURITY SERVICES LTD,CR422256,Site & Centre Management,Cash Collection,702
http://statistics.data.gov.uk/id/local-authority/12UE,Huntingdonshire District Council,22/08/2017,22/08/2017,215685,15922,69.75,JADE SECURITY SERVICES LTD,CR422256,Site & Centre Management,Cash Collection,702
http://statistics.data.gov.uk/id/local-authority/12UE,Huntingdonshire District Council,22/08/2017,22/08/2017,215685,15922,69.75,JADE SECURITY SERVICES LTD,CR422256,Site & Centre Management,Cash Collection,702
http://statistics.data.gov.uk/id/local-authority/12UE,Huntingdonshire District Council,22/08/2017,22/08/2017,215685,15922,13.95,JADE SECURITY SERVICES LTD,CR422256,Hinchingbrooke Park Cafe,Cash Collection,702
http://statistics.data.gov.uk/id/local-authority/12UE,Huntingdonshire District Council,17/08/2017,17/08/2017,215479,12489088110,"1,239.26",E-ON ENERGY,CR416430,Swimming,Gas,421
http://statistics.data.gov.uk/id/local-authority/12UE,Huntingdonshire District Council,09/08/2017,09/08/2017,215004,HDC069,"1,236.00",CFL ESTATE SERVICES,CR455208,Property Development And Mgt,Hired Staff,100
http://statistics.data.gov.uk/id/local-authority/12UE,Huntingdonshire District Council,31/08/2017,31/08/2017,216182,17760,"1,194.75",SOFT SURFACES,CR415861,Parks & Open Spaces,Building Mtce,303
http://statistics.data.gov.uk/id/local-authority/12UE,Huntingdonshire District Council,31/08/2017,31/08/2017,216184,17799,"1,194.75",SOFT SURFACES,CR415861,Parks & Open Spaces,Building Mtce,303
http://statistics.data.gov.uk/id/local-authority/12UE,Huntingdonshire District Council,30/08/2017,31/08/2017,215717,5811970,110,GEZE  UK LTD,CR417073,Huntingdon Multi-Storey,Plant & Equipment Maintenance,380
http://statistics.data.gov.uk/id/local-authority/12UE,Huntingdonshire District Council,30/08/2017,31/08/2017,215717,5811970,90,GEZE  UK LTD,CR417073,Eastfield House,Plant & Equipment Maintenance,380
http://statistics.data.gov.uk/id/local-authority/12UE,Huntingdonshire District Council,30/08/2017,31/08/2017,215717,5811970,70,GEZE  UK LTD,CR417073,Site & Centre Management,Plant & Equipment Maintenance,380
http://statistics.data.gov.uk/id/local-authority/12UE,Huntingdonshire District Council,30/08/2017,31/08/2017,215717,5811970,150,GEZE  UK LTD,CR417073,Site & Centre Management,Plant & Equipment Maintenance,380
http://statistics.data.gov.uk/id/local-authority/12UE,Huntingdonshire District Council,30/08/2017,31/08/2017,215717,5811970,170,GEZE  UK LTD,CR417073,Site & Centre Management,Plant & Equipment Maintenance,380
http://statistics.data.gov.uk/id/local-authority/12UE,Huntingdonshire District Council,30/08/2017,31/08/2017,215717,5811970,190,GEZE  UK LTD,CR417073,Site & Centre Management,Plant & Equipment Maintenance,380
http://statistics.data.gov.uk/id/local-authority/12UE,Huntingdonshire District Council,30/08/2017,31/08/2017,215717,5811970,50,GEZE  UK LTD,CR417073,Site & Centre Management,Plant & Equipment Maintenance,380
http://statistics.data.gov.uk/id/local-authority/12UE,Huntingdonshire District Council,30/08/2017,31/08/2017,215717,5811970,70,GEZE  UK LTD,CR417073,Site & Centre Management,Plant & Equipment Maintenance,380
http://statistics.data.gov.uk/id/local-authority/12UE,Huntingdonshire District Council,30/08/2017,31/08/2017,215717,5811970,190,GEZE  UK LTD,CR417073,Pathfinder House,Plant & Equipment Maintenance,380
http://statistics.data.gov.uk/id/local-authority/12UE,Huntingdonshire District Council,30/08/2017,31/08/2017,215717,5811970,50,GEZE  UK LTD,CR417073,Huntingdon Bus Station,Plant & Equipment Maintenance,380
http://statistics.data.gov.uk/id/local-authority/12UE,Huntingdonshire District Council,30/08/2017,31/08/2017,215717,5811970,50,GEZE  UK LTD,CR417073,St Ives Bus Station,Plant & Equipment Maintenance,380
http://statistics.data.gov.uk/id/local-authority/12UE,Huntingdonshire District Council,23/08/2017,24/08/2017,215757,688,"1,190.00",CANREHAB LTD,CR423144,Active8rlives,Training,130
http://statistics.data.gov.uk/id/local-authority/12UE,Huntingdonshire District Council,23/08/2017,23/08/2017,215692,73351,"1,187.00",BRITANNIA FIRE & SECURITY LTD,CR410090,Eastfield House,Building Mtce,303
http://statistics.data.gov.uk/id/local-authority/12UE,Huntingdonshire District Council,02/08/2017,10/08/2017,214529,14151,"1,174.37",PLAYFORDS LTD,CR479055,Ccity Recharge Invoices,Equipment Maintenance,511
http://statistics.data.gov.uk/id/local-authority/12UE,Huntingdonshire District Council,16/08/2017,16/08/2017,215359,661225560,"1,171.66",SWALEC,CR407130,Huntingdon Bus Station,Electricity,420
http://statistics.data.gov.uk/id/local-authority/12UE,Huntingdonshire District Council,10/08/2017,10/08/2017,214956,730163,"1,157.20",GLASDON UK LTD,CR002827,Pathfinder House,Refuse Sacks,552
http://statistics.data.gov.uk/id/local-authority/12UE,Huntingdonshire District Council,09/08/2017,09/08/2017,214198,38SI 3851906,"1,149.07",BRENNTAG UK LTD,CR015017,Swimming,Chemicals,551
http://statistics.data.gov.uk/id/local-authority/12UE,Huntingdonshire District Council,31/08/2017,31/08/2017,216248,423446,"1,125.40",SMI GROUP,CR423139,Domestic Waste Collection,Protective Clothing & Uniforms,163
http://statistics.data.gov.uk/id/local-authority/12UE,Huntingdonshire District Council,15/08/2017,17/08/2017,215345,1599375,"1,124.72",ORACLE CORPORATION UK LTD,CR400893,Ccity Recharge Invoices,Software,206
http://statistics.data.gov.uk/id/local-authority/12UE,Huntingdonshire District Council,31/08/2017,31/08/2017,216249,423761,"1,124.10",SMI GROUP,CR423139,Domestic Waste Collection,Protective Clothing & Uniforms,163
http://statistics.data.gov.uk/id/local-authority/12UE,Huntingdonshire District Council,17/08/2017,24/08/2017,215509,10747361,"1,122.24",CAMBRIDGESHIRE COUNTY COUNCIL,CR006678,Cctv Shared Service Hosting,Hired Staff,100
http://statistics.data.gov.uk/id/local-authority/12UE,Huntingdonshire District Council,23/08/2017,24/08/2017,215432,28365,113,M & N VEHICLE SERVICES,CR480661,Domestic Waste Collection,Vehicle Mot,622
http://statistics.data.gov.uk/id/local-authority/12UE,Huntingdonshire District Council,23/08/2017,24/08/2017,215432,28365,"1,008.31",M & N VEHICLE SERVICES,CR480661,Domestic Waste Collection,Vehicle Parts & Fittings,625
http://statistics.data.gov.uk/id/local-authority/12UE,Huntingdonshire District Council,02/08/2017,10/08/2017,214542,125643,"1,120.00",IT TALENT SOLUTIONS LTD,CR482676,Imd Shared Service,Hired Staff,100
http://statistics.data.gov.uk/id/local-authority/12UE,Huntingdonshire District Council,24/08/2017,24/08/2017,215881,OP/I804198,"1,095.41",PHOENIX SOFTWARE LTD,CR031918,Ccity Recharge Invoices,Software,206
http://statistics.data.gov.uk/id/local-authority/12UE,Huntingdonshire District Council,17/08/2017,17/08/2017,614517,PERSONAL DATA REDACTED,"1,092.00",PERSONAL DATA REDACTED,CR415417,Rent Deposit- Advanced Rent,Cash Advance,6
http://statistics.data.gov.uk/id/local-authority/12UE,Huntingdonshire District Council,22/08/2017,22/08/2017,614659,PERSONAL DATA REDACTED,"1,092.00",PERSONAL DATA REDACTED,CR415417,Rent Deposit- Advanced Rent,Cash Advance,6
http://statistics.data.gov.uk/id/local-authority/12UE,Huntingdonshire District Council,29/08/2017,31/08/2017,215825,DE11063305,"1,082.96",DENNIS EAGLE LTD,CR000200,Recycling Collections,Vehicle Parts & Fittings,625
http://statistics.data.gov.uk/id/local-authority/12UE,Huntingdonshire District Council,15/08/2017,17/08/2017,215256,SINV00113353,90,BIST,CR422733,Ccity Recharge Invoices,Other I T Hardware,203
http://statistics.data.gov.uk/id/local-authority/12UE,Huntingdonshire District Council,15/08/2017,17/08/2017,215256,SINV00113353,18,BIST,CR422733,Ccity Recharge Invoices,Other I T Hardware,203
http://statistics.data.gov.uk/id/local-authority/12UE,Huntingdonshire District Council,15/08/2017,17/08/2017,215256,SINV00113353,54,BIST,CR422733,Ccity Recharge Invoices,Other I T Hardware,203
http://statistics.data.gov.uk/id/local-authority/12UE,Huntingdonshire District Council,15/08/2017,17/08/2017,215256,SINV00113353,84,BIST,CR422733,Ccity Recharge Invoices,Other I T Hardware,203
http://statistics.data.gov.uk/id/local-authority/12UE,Huntingdonshire District Council,15/08/2017,17/08/2017,215256,SINV00113353,84,BIST,CR422733,Ccity Recharge Invoices,Other I T Hardware,203
http://statistics.data.gov.uk/id/local-authority/12UE,Huntingdonshire District Council,15/08/2017,17/08/2017,215256,SINV00113353,315,BIST,CR422733,Ccity Recharge Invoices,Other I T Hardware,203
http://statistics.data.gov.uk/id/local-authority/12UE,Huntingdonshire District Council,15/08/2017,17/08/2017,215256,SINV00113353,46,BIST,CR422733,Ccity Recharge Invoices,Other I T Hardware,203
http://statistics.data.gov.uk/id/local-authority/12UE,Huntingdonshire District Council,15/08/2017,17/08/2017,215256,SINV00113353,69,BIST,CR422733,Ccity Recharge Invoices,Other I T Hardware,203
http://statistics.data.gov.uk/id/local-authority/12UE,Huntingdonshire District Council,15/08/2017,17/08/2017,215256,SINV00113353,230,BIST,CR422733,Ccity Recharge Invoices,Other I T Hardware,203
http://statistics.data.gov.uk/id/local-authority/12UE,Huntingdonshire District Council,15/08/2017,17/08/2017,215256,SINV00113353,25.5,BIST,CR422733,Ccity Recharge Invoices,Other I T Hardware,203
http://statistics.data.gov.uk/id/local-authority/12UE,Huntingdonshire District Council,15/08/2017,17/08/2017,215256,SINV00113353,25.5,BIST,CR422733,Ccity Recharge Invoices,Other I T Hardware,203
http://statistics.data.gov.uk/id/local-authority/12UE,Huntingdonshire District Council,15/08/2017,17/08/2017,215256,SINV00113353,25.5,BIST,CR422733,Ccity Recharge Invoices,Other I T Hardware,203
http://statistics.data.gov.uk/id/local-authority/12UE,Huntingdonshire District Council,02/08/2017,07/08/2017,613919,2017/18 - 21,"1,060.30",ABBOTSLEY VILLAGE HALL,CR422136,Voluntary Sector Grants,Grants (Paid Out),800
http://statistics.data.gov.uk/id/local-authority/12UE,Huntingdonshire District Council,10/08/2017,10/08/2017,214943,JC/5106/29369,"1,056.00",J BREHENY CIVIL ENGINEERING LTD,CR000314,St Ives Darwoods Pond,Sitework,359
http://statistics.data.gov.uk/id/local-authority/12UE,Huntingdonshire District Council,02/08/2017,17/08/2017,214482,91393386,"1,050.00",NORTHGATE PUBLIC SECTOR LTD,CR409869,Imd Shared Service,Consultants,711
http://statistics.data.gov.uk/id/local-authority/12UE,Huntingdonshire District Council,10/08/2017,10/08/2017,214991,92358210,252,NEOPOST,CR400652,Printing,Envelopes,224
http://statistics.data.gov.uk/id/local-authority/12UE,Huntingdonshire District Council,10/08/2017,10/08/2017,214991,92358210,216.6,NEOPOST,CR400652,Printing,Envelopes,224
http://statistics.data.gov.uk/id/local-authority/12UE,Huntingdonshire District Council,10/08/2017,10/08/2017,214991,92358210,162.7,NEOPOST,CR400652,Printing,Envelopes,224
http://statistics.data.gov.uk/id/local-authority/12UE,Huntingdonshire District Council,10/08/2017,10/08/2017,214991,92358210,201.48,NEOPOST,CR400652,Printing,Envelopes,224
http://statistics.data.gov.uk/id/local-authority/12UE,Huntingdonshire District Council,10/08/2017,10/08/2017,214991,92358210,214.02,NEOPOST,CR400652,Printing,Envelopes,224
http://statistics.data.gov.uk/id/local-authority/12UE,Huntingdonshire District Council,23/08/2017,24/08/2017,215433,SI/03375643,"1,043.00",NOMIX ENVIRO,CR002353,Street Cleansing,Materials,550
http://statistics.data.gov.uk/id/local-authority/12UE,Huntingdonshire District Council,02/08/2017,02/08/2017,214466,101385,"1,035.80",SPORTMAX,CR424813,Site & Centre Management,Materials For Resale,570
http://statistics.data.gov.uk/id/local-authority/12UE,Huntingdonshire District Council,30/08/2017,30/08/2017,215781,102059,"1,022.45",SPORTMAX,CR424813,Site & Centre Management,Materials For Resale,570
http://statistics.data.gov.uk/id/local-authority/12UE,Huntingdonshire District Council,24/08/2017,24/08/2017,215934,PERSONAL DATA REDACTED,"1,020.00",3C LEGAL SERVICES,CR424612,Commercial Properties,Costs Recovered,A04
http://statistics.data.gov.uk/id/local-authority/12UE,Huntingdonshire District Council,15/08/2017,17/08/2017,215327,59394,"1,018.31",BEEBYS LIMITED,CR415822,Huntingdon Bus Station,Building Cleaning,440
http://statistics.data.gov.uk/id/local-authority/12UE,Huntingdonshire District Council,30/08/2017,30/08/2017,214940,JC/5106/29374,"1,005.10",J BREHENY CIVIL ENGINEERING LTD,CR000314,Parks & Open Spaces,Sitework,359
http://statistics.data.gov.uk/id/local-authority/12UE,Huntingdonshire District Council,10/08/2017,10/08/2017,214938,HJC5106/29370,"1,003.40",J BREHENY CIVIL ENGINEERING LTD,CR000314,St Ives Darwoods Pond,Sitework,359
http://statistics.data.gov.uk/id/local-authority/12UE,Huntingdonshire District Council,01/08/2017,01/08/2017,613911,522642/60194001,"1,003.00",DENNIS EASTON FUNERAL SERVICE,CR094549,Burials Under Health Act,Funerals And Graves,717
http://statistics.data.gov.uk/id/local-authority/12UE,Huntingdonshire District Council,02/08/2017,07/08/2017,613681,2017/18 - 6,"1,000.00",ST IVES CARNIVAL AND MUSIC FESTIVAL,CR423904,Voluntary Sector Grants,Grants (Paid Out),800
http://statistics.data.gov.uk/id/local-authority/12UE,Huntingdonshire District Council,08/08/2017,08/08/2017,614246,,"1,000.00",THE HUB LITTLE PAXTON,CR424868,Community Safety,Grants - Other,B63
http://statistics.data.gov.uk/id/local-authority/12UE,Huntingdonshire District Council,10/08/2017,10/08/2017,215087,10508,998,LD EVENTS,CR480610,Hr & Payroll Services,Training,130
http://statistics.data.gov.uk/id/local-authority/12UE,Huntingdonshire District Council,03/08/2017,03/08/2017,214649,PERSONAL DATA REDACTED,997.06,METROPOLITAN HOUSING TRUST LTD,CR487206,Homelessness,Incentive Payment,816
http://statistics.data.gov.uk/id/local-authority/12UE,Huntingdonshire District Council,02/08/2017,03/08/2017,214637,DE11054783,996.26,DENNIS EAGLE LTD,CR000200,Recycling Collections,Vehicle Parts & Fittings,625
http://statistics.data.gov.uk/id/local-authority/12UE,Huntingdonshire District Council,24/08/2017,24/08/2017,215294,DE11059883,996,DENNIS EAGLE LTD,CR000200,Vehicle Maintenance,Vehicle Parts & Fittings,625
http://statistics.data.gov.uk/id/local-authority/12UE,Huntingdonshire District Council,09/08/2017,09/08/2017,214817,INV-9129,995,SPORTS LABS LTD,CR424865,Site & Centre Management,Licences,730
http://statistics.data.gov.uk/id/local-authority/12UE,Huntingdonshire District Council,03/08/2017,03/08/2017,214659,BOOGIE 29JUL17,991.89,STARLITE ROADSHOW,CR024127,Burgess Hall,Entertainments Inc Cable Tv,744
http://statistics.data.gov.uk/id/local-authority/12UE,Huntingdonshire District Council,09/08/2017,09/08/2017,214050,1220644,74.08,EDIALUX PROFESSIONAL PRODUCTS,CR40195,Pest Control,Materials,550
http://statistics.data.gov.uk/id/local-authority/12UE,Huntingdonshire District Council,09/08/2017,09/08/2017,214050,1220644,180.9,EDIALUX PROFESSIONAL PRODUCTS,CR40195,Pest Control,Materials,550
http://statistics.data.gov.uk/id/local-authority/12UE,Huntingdonshire District Council,09/08/2017,09/08/2017,214050,1220644,729.9,EDIALUX PROFESSIONAL PRODUCTS,CR40195,Pest Control,Materials,550
http://statistics.data.gov.uk/id/local-authority/12UE,Huntingdonshire District Council,03/08/2017,03/08/2017,214593,10842104,976.5,SHB HIRE LTD,CR416566,Street Cleansing,Vehicle Hire,607
http://statistics.data.gov.uk/id/local-authority/12UE,Huntingdonshire District Council,31/08/2017,31/08/2017,216219,10842106,976.5,SHB HIRE LTD,CR416566,Domestic Waste Collection,Vehicle Hire,607
http://statistics.data.gov.uk/id/local-authority/12UE,Huntingdonshire District Council,10/08/2017,10/08/2017,214845,4086,972,ACCESS & AUTOMATION LTD,CR423434,Disabled Facilities Grants,Mandatory Grants,801
http://statistics.data.gov.uk/id/local-authority/12UE,Huntingdonshire District Council,15/08/2017,17/08/2017,215265,482343,940,STORM TECHNOLOGIES,CR480909,Ccity Recharge Invoices,Other I T Hardware,203
http://statistics.data.gov.uk/id/local-authority/12UE,Huntingdonshire District Council,17/08/2017,17/08/2017,215495,994907,936.1,MORGAN HUNT PUBLIC UK LTD,CR415693,Benefits Management,Hired Staff,100
http://statistics.data.gov.uk/id/local-authority/12UE,Huntingdonshire District Council,30/08/2017,30/08/2017,216122,8318275,930.5,CERTAS ENERGY T/A PACE FUELCARE,CR455975,Site & Centre Management,Diesel,615
http://statistics.data.gov.uk/id/local-authority/12UE,Huntingdonshire District Council,30/08/2017,31/08/2017,216106,3512297,920,INSIGHT DIRECT UK LTD,CR000242,Scdc Recharge Invoices,Other I T Hardware,203
http://statistics.data.gov.uk/id/local-authority/12UE,Huntingdonshire District Council,30/08/2017,31/08/2017,216113,3512312,920,INSIGHT DIRECT UK LTD,CR000242,Scdc Recharge Invoices,Other I T Hardware,203
http://statistics.data.gov.uk/id/local-authority/12UE,Huntingdonshire District Council,30/08/2017,31/08/2017,216114,3512309,920,INSIGHT DIRECT UK LTD,CR000242,Hdc Recharge Invoices,Other I T Hardware,203
http://statistics.data.gov.uk/id/local-authority/12UE,Huntingdonshire District Council,30/08/2017,31/08/2017,216117,3510713,920,INSIGHT DIRECT UK LTD,CR000242,Hdc Recharge Invoices,Other I T Hardware,203
http://statistics.data.gov.uk/id/local-authority/12UE,Huntingdonshire District Council,18/08/2017,21/08/2017,614657,2017/18 20,920,H & P FEDERATION OF WOMENS INSTITUTE,CR407176,Voluntary Sector Grants,Grants (Paid Out),800
http://statistics.data.gov.uk/id/local-authority/12UE,Huntingdonshire District Council,23/08/2017,24/08/2017,215442,10508,914,OVERTON UK LIMITED,CR423960,Street Cleansing,Vehicle Parts & Fittings,625
http://statistics.data.gov.uk/id/local-authority/12UE,Huntingdonshire District Council,10/08/2017,10/08/2017,214422,59331,895,BEEBYS LIMITED,CR415822,Pathfinder House,Building Cleaning,440
http://statistics.data.gov.uk/id/local-authority/12UE,Huntingdonshire District Council,15/08/2017,15/08/2017,215302,1007798600,893.75,HAYS,CR423917,Transformation Programme,Hired Staff,100
http://statistics.data.gov.uk/id/local-authority/12UE,Huntingdonshire District Council,10/08/2017,10/08/2017,215233,4489,892.39,NEWLYN PLC,CR409114,Closedcounciltax Mgmt-Use Hb85,Bailiffs,703
http://statistics.data.gov.uk/id/local-authority/12UE,Huntingdonshire District Council,31/08/2017,31/08/2017,614908,S1INVP/00006011,889.2,AXIOM HOUSING ASSOCIATION,CR135177,Homelessness,Incentive Payment,816
http://statistics.data.gov.uk/id/local-authority/12UE,Huntingdonshire District Council,24/08/2017,24/08/2017,215287,DE11059554,887.48,DENNIS EAGLE LTD,CR000200,Vehicle Maintenance,Vehicle Parts & Fittings,625
http://statistics.data.gov.uk/id/local-authority/12UE,Huntingdonshire District Council,09/08/2017,09/08/2017,214866,38SI 3851907,881,BRENNTAG UK LTD,CR015017,Swimming,Chemicals,551
http://statistics.data.gov.uk/id/local-authority/12UE,Huntingdonshire District Council,03/08/2017,03/08/2017,214653,992721,876.53,MORGAN HUNT PUBLIC UK LTD,CR415693,Benefits Management,Hired Staff,100
http://statistics.data.gov.uk/id/local-authority/12UE,Huntingdonshire District Council,16/08/2017,17/08/2017,215427,7142490,868,LONGMARSH LTD,CR424875,Street Cleansing,Vehicle Hire,607
http://statistics.data.gov.uk/id/local-authority/12UE,Huntingdonshire District Council,23/08/2017,24/08/2017,215856,920704,863.92,KING BROS,CR411339,Hinchingbrooke Park Cafe,Catering Materials,559
http://statistics.data.gov.uk/id/local-authority/12UE,Huntingdonshire District Council,02/08/2017,03/08/2017,213978,80123,850,FIVEWAYS MUNICIPAL VEHICLE HIRE LTD,CR415496,Domestic Waste Collection,Vehicle Hire,607
http://statistics.data.gov.uk/id/local-authority/12UE,Huntingdonshire District Council,02/08/2017,03/08/2017,213979,80075,850,FIVEWAYS MUNICIPAL VEHICLE HIRE LTD,CR415496,Domestic Waste Collection,Vehicle Hire,607
http://statistics.data.gov.uk/id/local-authority/12UE,Huntingdonshire District Council,02/08/2017,03/08/2017,213980,80030,850,FIVEWAYS MUNICIPAL VEHICLE HIRE LTD,CR415496,Domestic Waste Collection,Vehicle Hire,607
http://statistics.data.gov.uk/id/local-authority/12UE,Huntingdonshire District Council,02/08/2017,03/08/2017,213981,79984,850,FIVEWAYS MUNICIPAL VEHICLE HIRE LTD,CR415496,Domestic Waste Collection,Vehicle Hire,607
http://statistics.data.gov.uk/id/local-authority/12UE,Huntingdonshire District Council,09/08/2017,10/08/2017,214850,80178,850,FIVEWAYS MUNICIPAL VEHICLE HIRE LTD,CR415496,Domestic Waste Collection,Vehicle Hire,607
http://statistics.data.gov.uk/id/local-authority/12UE,Huntingdonshire District Council,09/08/2017,10/08/2017,214879,79877,850,FIVEWAYS MUNICIPAL VEHICLE HIRE LTD,CR415496,Domestic Waste Collection,Vehicle Hire,607
http://statistics.data.gov.uk/id/local-authority/12UE,Huntingdonshire District Council,09/08/2017,09/08/2017,215012,JC/5106/29376,850,J BREHENY CIVIL ENGINEERING LTD,CR000314,Oak Tree Health Centre,Building Mtce,303
http://statistics.data.gov.uk/id/local-authority/12UE,Huntingdonshire District Council,29/08/2017,31/08/2017,216127,80227,850,FIVEWAYS MUNICIPAL VEHICLE HIRE LTD,CR415496,Domestic Waste Collection,Vehicle Hire,607
http://statistics.data.gov.uk/id/local-authority/12UE,Huntingdonshire District Council,22/08/2017,22/08/2017,215687,8795246,849.7,PREMIER PAPER GROUP LTD,CR424769,Printing,Paper,562
http://statistics.data.gov.uk/id/local-authority/12UE,Huntingdonshire District Council,16/08/2017,16/08/2017,215434,D98671,844.15,DENNIS EAGLE LTD,CR000200,Hr & Payroll Services,Training,130
http://statistics.data.gov.uk/id/local-authority/12UE,Huntingdonshire District Council,23/08/2017,23/08/2017,614675,283661,841.5,ANTHONY COLLINS SOLICITORS LLP,CR424891,Committee Management,Enquiries,723
http://statistics.data.gov.uk/id/local-authority/12UE,Huntingdonshire District Council,02/08/2017,02/08/2017,214568,136453,840,CORNERSTONE BARRISTERS,CR455436,Dm Appeals,Consultants,711
http://statistics.data.gov.uk/id/local-authority/12UE,Huntingdonshire District Council,03/08/2017,03/08/2017,214655,992722,835.53,MORGAN HUNT PUBLIC UK LTD,CR415693,Benefits Management,Hired Staff,100
http://statistics.data.gov.uk/id/local-authority/12UE,Huntingdonshire District Council,15/08/2017,17/08/2017,214895,DE11058841,834.25,DENNIS EAGLE LTD,CR000200,Domestic Waste Collection,Vehicle Parts & Fittings,625
http://statistics.data.gov.uk/id/local-authority/12UE,Huntingdonshire District Council,30/08/2017,30/08/2017,214919,JC/5106/29373,833.8,J BREHENY CIVIL ENGINEERING LTD,CR000314,Parks & Open Spaces,Sitework,359
http://statistics.data.gov.uk/id/local-authority/12UE,Huntingdonshire District Council,15/08/2017,17/08/2017,215318,125743,825,IT TALENT SOLUTIONS LTD,CR482676,Imd Shared Service,Hired Staff,100
http://statistics.data.gov.uk/id/local-authority/12UE,Huntingdonshire District Council,15/08/2017,17/08/2017,215333,125746,825,IT TALENT SOLUTIONS LTD,CR482676,Imd Shared Service,Hired Staff,100
http://statistics.data.gov.uk/id/local-authority/12UE,Huntingdonshire District Council,24/08/2017,24/08/2017,215842,125777,825,IT TALENT SOLUTIONS LTD,CR482676,Imd Shared Service,Hired Staff,100
http://statistics.data.gov.uk/id/local-authority/12UE,Huntingdonshire District Council,31/08/2017,31/08/2017,216137,125854,825,IT TALENT SOLUTIONS LTD,CR482676,Imd Shared Service,Hired Staff,100
http://statistics.data.gov.uk/id/local-authority/12UE,Huntingdonshire District Council,24/08/2017,24/08/2017,614672,522642/60195054,819,DENNIS EASTON FUNERAL SERVICE,CR094549,Burials Under Health Act,Funerals And Graves,717
http://statistics.data.gov.uk/id/local-authority/12UE,Huntingdonshire District Council,09/08/2017,10/08/2017,614262,9254,811.8,STEVES TAXIS & PRIVATE HIRE,CR155956,Homelessness,Travel Expenses,636
http://statistics.data.gov.uk/id/local-authority/12UE,Huntingdonshire District Council,16/08/2017,16/08/2017,215437,101740,801.4,SPORTMAX,CR424813,Site & Centre Management,Materials For Resale,570
http://statistics.data.gov.uk/id/local-authority/12UE,Huntingdonshire District Council,24/08/2017,24/08/2017,214496,SINV00111289,800,BIST,CR422733,Scdc Recharge Invoices,Other I T Hardware,203
http://statistics.data.gov.uk/id/local-authority/12UE,Huntingdonshire District Council,23/08/2017,23/08/2017,215739,IO2C00156223,799,CENTRAL YMCA,CR424828,Hr & Payroll Services,Training,130
http://statistics.data.gov.uk/id/local-authority/12UE,Huntingdonshire District Council,16/08/2017,16/08/2017,215443,IOSINV013001,790,INSTITUTE OF SWIMMING LTD,CR455603,Hr & Payroll Services,Training,130
http://statistics.data.gov.uk/id/local-authority/12UE,Huntingdonshire District Council,14/08/2017,14/08/2017,614512,OVERPAYMENT,788.22,VIA 2 LTD,CR185320,Cashiers Suspense Account,Overpayments Recovered,C93
http://statistics.data.gov.uk/id/local-authority/12UE,Huntingdonshire District Council,16/08/2017,16/08/2017,215466,1823,779.16,BBS CHARTERED BUILDING SURVEYORS,CR455754,Commercial Investment Strategy,Consultants,711
http://statistics.data.gov.uk/id/local-authority/12UE,Huntingdonshire District Council,08/08/2017,08/08/2017,214933,B310717,771.43,JACOBS,CR422350,Closedcounciltax Mgmt-Use Hb85,Bailiffs,703
http://statistics.data.gov.uk/id/local-authority/12UE,Huntingdonshire District Council,31/08/2017,31/08/2017,216241,PO20151853,768,STANNAH LIFTS,CR088939,Huntingdon Multi-Storey,Plant & Equipment Maintenance,380
http://statistics.data.gov.uk/id/local-authority/12UE,Huntingdonshire District Council,31/08/2017,31/08/2017,216205,EI582666,758.21,UNITED ECO SERVICES LTD,CR477773,Vehicle Maintenance,Materials,550
http://statistics.data.gov.uk/id/local-authority/12UE,Huntingdonshire District Council,15/08/2017,17/08/2017,215255,SINV00109011,752.43,BIST,CR422733,Imd Shared Service,Software,206
http://statistics.data.gov.uk/id/local-authority/12UE,Huntingdonshire District Council,02/08/2017,03/08/2017,213998,400478,750,1ST CHOICE RECRUITMENT,CR416849,Facilities,Hired Staff,100
http://statistics.data.gov.uk/id/local-authority/12UE,Huntingdonshire District Council,15/08/2017,17/08/2017,214407,INV577116,750,CHARTERED INSTITUTE OF ENVIRONMENTAL HEALTH,CR002987,Env Protection,Recruitment Costs,120
http://statistics.data.gov.uk/id/local-authority/12UE,Huntingdonshire District Council,24/08/2017,24/08/2017,215833,LA449888,750,L A INTERNATIONAL COMPUTER CONSULTANTS LTD,CR424731,Imd Shared Service,Hired Staff,100
http://statistics.data.gov.uk/id/local-authority/12UE,Huntingdonshire District Council,24/08/2017,24/08/2017,215885,90300621,750,FREETHS  LLP,CR480787,Miscellaneous Properties,Legal Fees,729
http://statistics.data.gov.uk/id/local-authority/12UE,Huntingdonshire District Council,31/08/2017,31/08/2017,216145,LA450576,750,L A INTERNATIONAL COMPUTER CONSULTANTS LTD,CR424731,Imd Shared Service,Hired Staff,100
http://statistics.data.gov.uk/id/local-authority/12UE,Huntingdonshire District Council,31/08/2017,31/08/2017,216263,RSIN0232589,750,RIGBY TAYLOR LTD,CR001345,Grounds Maintenance,Materials,550
http://statistics.data.gov.uk/id/local-authority/12UE,Huntingdonshire District Council,02/08/2017,07/08/2017,613680,2017/18 - 1,750,EATON SOCON CRICKET CLUB,CR422087,Voluntary Sector Grants,Grants (Paid Out),800
http://statistics.data.gov.uk/id/local-authority/12UE,Huntingdonshire District Council,03/08/2017,03/08/2017,214591,10842103,736.25,SHB HIRE LTD,CR416566,Grounds Maintenance,Vehicle Hire,607
http://statistics.data.gov.uk/id/local-authority/12UE,Huntingdonshire District Council,03/08/2017,03/08/2017,613928,23465,730,PREMIER SERVICE AND INSTALLATION,CR453810,Disabled Facilities Grants,Mandatory Grants,801
http://statistics.data.gov.uk/id/local-authority/12UE,Huntingdonshire District Council,03/08/2017,03/08/2017,214587,10842101,720.75,SHB HIRE LTD,CR416566,Domestic Waste Collection,Vehicle Hire,607
http://statistics.data.gov.uk/id/local-authority/12UE,Huntingdonshire District Council,24/08/2017,24/08/2017,215875,3502966,720,INSIGHT DIRECT UK LTD,CR000242,Scdc Recharge Invoices,Other I T Hardware,203
http://statistics.data.gov.uk/id/local-authority/12UE,Huntingdonshire District Council,03/08/2017,03/08/2017,214431,EC1710,350,UKOS PROJECTS LTD,CR423164,Homelessness,Bed & Breakfast Payment,818
http://statistics.data.gov.uk/id/local-authority/12UE,Huntingdonshire District Council,03/08/2017,03/08/2017,214431,EC1710,350,UKOS PROJECTS LTD,CR423164,Homelessness,Bed & Breakfast Payment,818
http://statistics.data.gov.uk/id/local-authority/12UE,Huntingdonshire District Council,09/08/2017,10/08/2017,214909,EC1711,350,UKOS PROJECTS LTD,CR423164,Homelessness,Bed & Breakfast Payment,818
http://statistics.data.gov.uk/id/local-authority/12UE,Huntingdonshire District Council,09/08/2017,10/08/2017,214909,EC1711,350,UKOS PROJECTS LTD,CR423164,Homelessness,Bed & Breakfast Payment,818
http://statistics.data.gov.uk/id/local-authority/12UE,Huntingdonshire District Council,09/08/2017,10/08/2017,214912,Jun-17,700,THE STATION HOTEL,CR453752,Homelessness,Bed & Breakfast Payment,818
http://statistics.data.gov.uk/id/local-authority/12UE,Huntingdonshire District Council,17/08/2017,17/08/2017,215304,EC1712,350,UKOS PROJECTS LTD,CR423164,Homelessness,Bed & Breakfast Payment,818
http://statistics.data.gov.uk/id/local-authority/12UE,Huntingdonshire District Council,17/08/2017,17/08/2017,215304,EC1712,350,UKOS PROJECTS LTD,CR423164,Homelessness,Bed & Breakfast Payment,818
http://statistics.data.gov.uk/id/local-authority/12UE,Huntingdonshire District Council,24/08/2017,24/08/2017,215905,EC1713,350,UKOS PROJECTS LTD,CR423164,Homelessness,Bed & Breakfast Payment,818
http://statistics.data.gov.uk/id/local-authority/12UE,Huntingdonshire District Council,24/08/2017,24/08/2017,215905,EC1713,350,UKOS PROJECTS LTD,CR423164,Homelessness,Bed & Breakfast Payment,818
http://statistics.data.gov.uk/id/local-authority/12UE,Huntingdonshire District Council,31/08/2017,31/08/2017,216104,EC1714,350,UKOS PROJECTS LTD,CR423164,Homelessness,Bed & Breakfast Payment,818
http://statistics.data.gov.uk/id/local-authority/12UE,Huntingdonshire District Council,31/08/2017,31/08/2017,216104,EC1714,350,UKOS PROJECTS LTD,CR423164,Homelessness,Bed & Breakfast Payment,818
http://statistics.data.gov.uk/id/local-authority/12UE,Huntingdonshire District Council,31/08/2017,31/08/2017,216105,Jul-17,700,THE STATION HOTEL,CR453752,Homelessness,Bed & Breakfast Payment,818
http://statistics.data.gov.uk/id/local-authority/12UE,Huntingdonshire District Council,23/08/2017,24/08/2017,215845,3273,695,MONOWA OPERABLE WALL SYSTEMS  LTD,CR455096,Pathfinder House,Building Mtce,303
http://statistics.data.gov.uk/id/local-authority/12UE,Huntingdonshire District Council,17/08/2017,17/08/2017,215478,12489088700,693.4,E-ON ENERGY,CR416430,Site & Centre Management,Gas,421
http://statistics.data.gov.uk/id/local-authority/12UE,Huntingdonshire District Council,02/08/2017,02/08/2017,214576,6101772972,691.08,LYRECO UK LTD,CR400700,Site & Centre Management,Cleaning Materials,443
http://statistics.data.gov.uk/id/local-authority/12UE,Huntingdonshire District Council,23/08/2017,24/08/2017,215762,102371,690.72,MENERGA TECHNICAL SERVICES LTD,CR033494,Swimming,Building Mtce,303
http://statistics.data.gov.uk/id/local-authority/12UE,Huntingdonshire District Council,16/08/2017,16/08/2017,215310,S32009,685,BSG PROPERTY SERVICES LTD,CR089905,Disabled Facilities Grants,Mandatory Grants,801
http://statistics.data.gov.uk/id/local-authority/12UE,Huntingdonshire District Council,03/08/2017,03/08/2017,214679,90432442,677.62,ADVANTAGE RESOURCING,CR424715,Customer Service Centres,Hired Staff,100
http://statistics.data.gov.uk/id/local-authority/12UE,Huntingdonshire District Council,15/08/2017,17/08/2017,214408,900786496,672.54,PORTAKABIN LTD,CR478566,Voluntary Sector Grants,Hire Of Rooms,411
http://statistics.data.gov.uk/id/local-authority/12UE,Huntingdonshire District Council,03/08/2017,03/08/2017,214589,10842102,664.26,SHB HIRE LTD,CR416566,Grounds Maintenance,Vehicle Hire,607
http://statistics.data.gov.uk/id/local-authority/12UE,Huntingdonshire District Council,31/08/2017,31/08/2017,216220,10842105,664.26,SHB HIRE LTD,CR416566,Grounds Maintenance,Vehicle Hire,607
http://statistics.data.gov.uk/id/local-authority/12UE,Huntingdonshire District Council,15/08/2017,17/08/2017,215341,S296738,663.04,STR GROUP,CR424704,Imd Shared Service,Hired Staff,100
http://statistics.data.gov.uk/id/local-authority/12UE,Huntingdonshire District Council,23/08/2017,24/08/2017,215455,62763,662.21,MASKEARAID LTD,CR033423,Pathfinder House,Cleaning Materials,443
http://statistics.data.gov.uk/id/local-authority/12UE,Huntingdonshire District Council,03/08/2017,03/08/2017,214624,419182,479.92,SMI GROUP,CR423139,Grounds Maintenance,Protective Clothing & Uniforms,163
http://statistics.data.gov.uk/id/local-authority/12UE,Huntingdonshire District Council,03/08/2017,03/08/2017,214624,419182,179.97,SMI GROUP,CR423139,Street Cleansing,Protective Clothing & Uniforms,163
http://statistics.data.gov.uk/id/local-authority/12UE,Huntingdonshire District Council,17/08/2017,17/08/2017,215474,12489090790,656.12,E-ON ENERGY,CR416430,Site & Centre Management,Gas,421
http://statistics.data.gov.uk/id/local-authority/12UE,Huntingdonshire District Council,03/08/2017,03/08/2017,213495,180466,655,ARTHUR IBBETT LTD,CR000430,Arboricultural Team,Equipment,500
http://statistics.data.gov.uk/id/local-authority/12UE,Huntingdonshire District Council,23/08/2017,24/08/2017,212306,27865,652,M & N VEHICLE SERVICES,CR480661,Domestic Waste Collection,Vehicle Parts & Fittings,625
http://statistics.data.gov.uk/id/local-authority/12UE,Huntingdonshire District Council,15/08/2017,17/08/2017,215257,17196,650.86,KHIPU NETWORKS LTD,CR482348,Telephone Upgrade,Telephone Equipment,242
http://statistics.data.gov.uk/id/local-authority/12UE,Huntingdonshire District Council,09/08/2017,09/08/2017,214995,HDC070,648,CFL ESTATE SERVICES,CR455208,Property Development And Mgt,Hired Staff,100
http://statistics.data.gov.uk/id/local-authority/12UE,Huntingdonshire District Council,09/08/2017,09/08/2017,214859,UKA_MPLC/871,213.75,UKACTIVE,CR003876,Site & Centre Management,Licences,730
http://statistics.data.gov.uk/id/local-authority/12UE,Huntingdonshire District Council,09/08/2017,09/08/2017,214859,UKA_MPLC/871,213.75,UKACTIVE,CR003876,Site & Centre Management,Licences,730
http://statistics.data.gov.uk/id/local-authority/12UE,Huntingdonshire District Council,09/08/2017,09/08/2017,214859,UKA_MPLC/871,213.75,UKACTIVE,CR003876,Site & Centre Management,Licences,730
http://statistics.data.gov.uk/id/local-authority/12UE,Huntingdonshire District Council,16/08/2017,16/08/2017,215094,9835,70,ROGER WILSON ELECTRONICS,CR028041,Site & Centre Management,Building Mtce,303
http://statistics.data.gov.uk/id/local-authority/12UE,Huntingdonshire District Council,16/08/2017,16/08/2017,215094,9835,569,ROGER WILSON ELECTRONICS,CR028041,Site & Centre Management,Building Mtce,303
http://statistics.data.gov.uk/id/local-authority/12UE,Huntingdonshire District Council,02/08/2017,10/08/2017,214544,126366,631.95,TWOFOLD CONSULTING,CR453929,Hdc Recharge Invoices,Equipment Maintenance,511
http://statistics.data.gov.uk/id/local-authority/12UE,Huntingdonshire District Council,02/08/2017,10/08/2017,214547,126365,631.95,TWOFOLD CONSULTING,CR453929,Hdc Recharge Invoices,Equipment Maintenance,511
http://statistics.data.gov.uk/id/local-authority/12UE,Huntingdonshire District Council,15/08/2017,17/08/2017,215349,73929,624.5,BORNEY (UK) LTD,CR144249,H'Brooke Countryside Centre,Advertising/Promoting Services,255
http://statistics.data.gov.uk/id/local-authority/12UE,Huntingdonshire District Council,24/08/2017,24/08/2017,215933,284502,623.08,FIRST RECRUITMENT GROUP LTD,CR424012,Finance,Hired Staff,100
http://statistics.data.gov.uk/id/local-authority/12UE,Huntingdonshire District Council,23/08/2017,24/08/2017,215867,285,622.8,DRAPING BLISS LIMITED,CR182487,Burgess Hall,Equipment Hire,507
http://statistics.data.gov.uk/id/local-authority/12UE,Huntingdonshire District Council,16/08/2017,16/08/2017,614515,846022,619,BRECKLAND COUNCIL,CR416546,Hr & Payroll Services,Training,130
http://statistics.data.gov.uk/id/local-authority/12UE,Huntingdonshire District Council,15/08/2017,17/08/2017,215340,S292826,614.25,STR GROUP,CR424704,Imd Shared Service,Hired Staff,100
http://statistics.data.gov.uk/id/local-authority/12UE,Huntingdonshire District Council,24/08/2017,24/08/2017,216084,REFUND,612.5,PETERBOROUGH CITY COUNCIL,CR000619,Hinchingbrooke Park Cafe,Sales - Catering,A38
http://statistics.data.gov.uk/id/local-authority/12UE,Huntingdonshire District Council,09/08/2017,10/08/2017,214467,78865,612,PROGREENWEED CONTROL SOLUTIONS LTD,CR424081,Grounds Maintenance,Materials,550
http://statistics.data.gov.uk/id/local-authority/12UE,Huntingdonshire District Council,02/08/2017,03/08/2017,214417,INV563066,609.73,ECOCLEEN SERVICES LIMITED,CR406985,Godmanchester Pc,Building Cleaning,440
http://statistics.data.gov.uk/id/local-authority/12UE,Huntingdonshire District Council,15/08/2017,17/08/2017,215337,S294894,606.38,STR GROUP,CR424704,Imd Shared Service,Hired Staff,100
http://statistics.data.gov.uk/id/local-authority/12UE,Huntingdonshire District Council,02/08/2017,10/08/2017,214537,LA445572,600,L A INTERNATIONAL COMPUTER CONSULTANTS LTD,CR424731,Imd Shared Service,Hired Staff,100
http://statistics.data.gov.uk/id/local-authority/12UE,Huntingdonshire District Council,02/08/2017,10/08/2017,214538,125612,600,IT TALENT SOLUTIONS LTD,CR482676,Imd Shared Service,Hired Staff,100
http://statistics.data.gov.uk/id/local-authority/12UE,Huntingdonshire District Council,09/08/2017,10/08/2017,214000,SIN0633209,599.13,HOWSAFE LTD,CR000409,Domestic Waste Collection,Protective Clothing & Uniforms,163
http://statistics.data.gov.uk/id/local-authority/12UE,Huntingdonshire District Council,15/08/2017,17/08/2017,215335,S293113,598.5,STR GROUP,CR424704,Imd Shared Service,Hired Staff,100
http://statistics.data.gov.uk/id/local-authority/12UE,Huntingdonshire District Council,24/08/2017,24/08/2017,215847,125793,592,IT TALENT SOLUTIONS LTD,CR482676,Imd Shared Service,Hired Staff,100
http://statistics.data.gov.uk/id/local-authority/12UE,Huntingdonshire District Council,23/08/2017,24/08/2017,215512,#001107,591.9,MIRAMAR ENGINEERING LTD,CR424694,Site & Centre Management,Building Mtce,303
http://statistics.data.gov.uk/id/local-authority/12UE,Huntingdonshire District Council,03/08/2017,03/08/2017,214678,35414,586.96,MEYER SCOTT RECRUITMENT LIMITED,CR422369,Customer Service Centres,Hired Staff,100
http://statistics.data.gov.uk/id/local-authority/12UE,Huntingdonshire District Council,24/08/2017,24/08/2017,215894,91951686,585,BANTEC LIMITED,CR424855,Ccity Recharge Invoices,Equipment Maintenance,511
http://statistics.data.gov.uk/id/local-authority/12UE,Huntingdonshire District Council,10/08/2017,10/08/2017,215238,717678,201,CALLCREDIT LTD,CR455548,Finance,Enquiries,723
http://statistics.data.gov.uk/id/local-authority/12UE,Huntingdonshire District Council,10/08/2017,10/08/2017,215238,717678,16,CALLCREDIT LTD,CR455548,Housing Needs & Resources,Enquiries,723
http://statistics.data.gov.uk/id/local-authority/12UE,Huntingdonshire District Council,10/08/2017,10/08/2017,215238,717678,363,CALLCREDIT LTD,CR455548,Benefits Management,Enquiries,723
http://statistics.data.gov.uk/id/local-authority/12UE,Huntingdonshire District Council,15/08/2017,17/08/2017,215329,125721,576,IT TALENT SOLUTIONS LTD,CR482676,Imd Shared Service,Hired Staff,100
http://statistics.data.gov.uk/id/local-authority/12UE,Huntingdonshire District Council,31/08/2017,31/08/2017,216141,125841,576,IT TALENT SOLUTIONS LTD,CR482676,Imd Shared Service,Hired Staff,100
http://statistics.data.gov.uk/id/local-authority/12UE,Huntingdonshire District Council,23/08/2017,23/08/2017,215793,90243649,561,FREETHS  LLP,CR480787,Committee Management,Enquiries,723
http://statistics.data.gov.uk/id/local-authority/12UE,Huntingdonshire District Council,31/08/2017,31/08/2017,216139,125867,560,IT TALENT SOLUTIONS LTD,CR482676,Imd Shared Service,Hired Staff,100
http://statistics.data.gov.uk/id/local-authority/12UE,Huntingdonshire District Council,15/08/2017,17/08/2017,215336,S293923,559.13,STR GROUP,CR424704,Imd Shared Service,Hired Staff,100
http://statistics.data.gov.uk/id/local-authority/12UE,Huntingdonshire District Council,15/08/2017,17/08/2017,215277,20546,186,P & M CUSTOM CLOTHING LTD,CR422681,Environmental Enforcement,Protective Clothing & Uniforms,163
http://statistics.data.gov.uk/id/local-authority/12UE,Huntingdonshire District Council,15/08/2017,17/08/2017,215277,20546,366.1,P & M CUSTOM CLOTHING LTD,CR422681,Environmental Enforcement,Protective Clothing & Uniforms,163
http://statistics.data.gov.uk/id/local-authority/12UE,Huntingdonshire District Council,15/08/2017,17/08/2017,215339,S296147,551.25,STR GROUP,CR424704,Imd Shared Service,Hired Staff,100
http://statistics.data.gov.uk/id/local-authority/12UE,Huntingdonshire District Council,29/08/2017,31/08/2017,215713,178957,548.5,THE BELL BRUSH COMPANY,CR423411,Street Cleansing,Equipment,500
http://statistics.data.gov.uk/id/local-authority/12UE,Huntingdonshire District Council,16/08/2017,16/08/2017,215389,S31779,546,BSG PROPERTY SERVICES LTD,CR089905,Disabled Facilities Grants,Mandatory Grants,801
http://statistics.data.gov.uk/id/local-authority/12UE,Huntingdonshire District Council,24/08/2017,24/08/2017,214908,6672,540,D & H SIGN & DISPLAY SERVICES,CR030353,Grounds Maintenance,Equipment,500
http://statistics.data.gov.uk/id/local-authority/12UE,Huntingdonshire District Council,09/08/2017,09/08/2017,215028,41218,538,CLANPRESS KING'S LYNN LTD,CR413516,Healthy Walks,Printing (External),220
http://statistics.data.gov.uk/id/local-authority/12UE,Huntingdonshire District Council,16/08/2017,17/08/2017,215416,20140542,536.58,INTERCOUNTY TRUCK & VAN LTD,CR141141,Domestic Waste Collection,Vehicle Parts & Fittings,625
http://statistics.data.gov.uk/id/local-authority/12UE,Huntingdonshire District Council,03/08/2017,03/08/2017,214584,10837733,531.31,SHB HIRE LTD,CR416566,Domestic Waste Collection,Vehicle Hire,607
http://statistics.data.gov.uk/id/local-authority/12UE,Huntingdonshire District Council,29/08/2017,31/08/2017,215835,24611,529.1,B. S. GRAVES ELECTRICAL LTD,CR000363,Paxton Pits,Building Mtce,303
http://statistics.data.gov.uk/id/local-authority/12UE,Huntingdonshire District Council,09/08/2017,09/08/2017,214870,953205,528,HIRE OR BUY GROUP LTD,CR000707,Site & Centre Management,Equipment Hire,507
http://statistics.data.gov.uk/id/local-authority/12UE,Huntingdonshire District Council,09/08/2017,10/08/2017,214993,917980,525.55,KING BROS,CR411339,Hinchingbrooke Park Cafe,Catering Materials,559
http://statistics.data.gov.uk/id/local-authority/12UE,Huntingdonshire District Council,03/08/2017,03/08/2017,214656,4665,525,NOVUS COMPLIANCE SERVICES LTD,CR423524,Facilities,Plant & Equipment Maintenance,380
http://statistics.data.gov.uk/id/local-authority/12UE,Huntingdonshire District Council,09/08/2017,10/08/2017,614264,PERSONAL DATA REDACTED,525,PERSONAL DATA REDACTED,CR424874,Rent Deposit- Advanced Rent,Cash Advance,6
http://statistics.data.gov.uk/id/local-authority/12UE,Huntingdonshire District Council,02/08/2017,03/08/2017,213975,30758,524.17,HYGIENE SOLUTIONS,CR477443,Pathfinder House,Building Mtce,303
http://statistics.data.gov.uk/id/local-authority/12UE,Huntingdonshire District Council,09/08/2017,10/08/2017,214917,102063,520.71,BROOKES,CR422866,Pathfinder House,Catering,710
http://statistics.data.gov.uk/id/local-authority/12UE,Huntingdonshire District Council,09/08/2017,10/08/2017,214563,89506,519.4,STARMAKER WELDING SERVICES,CR029912,Vehicle Maintenance,Plant & Equipment Maintenance,380
http://statistics.data.gov.uk/id/local-authority/12UE,Huntingdonshire District Council,31/08/2017,31/08/2017,213498,61524309,516.55,JOHNSTON ENGINEERING LTD,CR029831,Street Cleansing,Vehicle Parts & Fittings,625
http://statistics.data.gov.uk/id/local-authority/12UE,Huntingdonshire District Council,24/08/2017,24/08/2017,215280,72359,515.36,CAMBRIDGE WATER PLC,CR000172,Street Cleansing,Equipment,500
http://statistics.data.gov.uk/id/local-authority/12UE,Huntingdonshire District Council,02/08/2017,02/08/2017,214174,950673,510,HIRE OR BUY GROUP LTD,CR000707,Site & Centre Management,Equipment Hire,507
http://statistics.data.gov.uk/id/local-authority/12UE,Huntingdonshire District Council,31/08/2017,31/08/2017,216212,38231,509.48,TRINITY ENGINEERING & COMPONENT SUPPLIES LTD,CR455479,Vehicle Maintenance,Materials,550
http://statistics.data.gov.uk/id/local-authority/12UE,Huntingdonshire District Council,24/08/2017,24/08/2017,215705,SIN0639401,507.36,HOWSAFE LTD,CR000409,Domestic Waste Collection,Protective Clothing & Uniforms,163
http://statistics.data.gov.uk/id/local-authority/12UE,Huntingdonshire District Council,09/08/2017,09/08/2017,215027,252415203,506.67,PENGELLY AND MIZEN,CR411042,Animal Licensing - Inspections,Vets,760
http://statistics.data.gov.uk/id/local-authority/12UE,Huntingdonshire District Council,29/08/2017,31/08/2017,215821,DE11061570,151.26,DENNIS EAGLE LTD,CR000200,Recycling Collections,Vehicle Parts & Fittings,625
http://statistics.data.gov.uk/id/local-authority/12UE,Huntingdonshire District Council,29/08/2017,31/08/2017,215821,DE11061570,352.95,DENNIS EAGLE LTD,CR000200,Domestic Waste Collection,Vehicle Parts & Fittings,625
http://statistics.data.gov.uk/id/local-authority/12UE,Huntingdonshire District Council,16/08/2017,16/08/2017,215354,32465,504,HI-SPEC FACILITIES SERVICES PLC,CR423413,Pathfinder House,Building Cleaning,440
http://statistics.data.gov.uk/id/local-authority/12UE,Huntingdonshire District Council,03/08/2017,03/08/2017,213180,112521,500,ARTHUR IBBETT LTD,CR000430,Arboricultural Team,Equipment,500
http://statistics.data.gov.uk/id/local-authority/12UE,Huntingdonshire District Council,03/08/2017,03/08/2017,213665,112887,500,ARTHUR IBBETT LTD,CR000430,Arboricultural Team,Equipment,500
http://statistics.data.gov.uk/id/local-authority/12UE,Huntingdonshire District Council,03/08/2017,03/08/2017,214641,8PC25066/364821,500,LUMINUS HOMES,CR401276,Homelessness,Incentive Payment,816
http://statistics.data.gov.uk/id/local-authority/12UE,Huntingdonshire District Council,15/08/2017,17/08/2017,215343,SLIN/00044315,500,ORCHARD INFORMATION SYSTEMS LTD,CR424755,Scdc Recharge Invoices,Software,206
http://statistics.data.gov.uk/id/local-authority/12UE,Huntingdonshire District Council,23/08/2017,24/08/2017,215441,02/08/2017,500,R M HOME MAINTENANCE,CR455901,Street Cleansing,Waste Disposal,763
http://statistics.data.gov.uk/id/local-authority/12UE,Huntingdonshire District Council,23/08/2017,24/08/2017,215763,17/22,500,JBA CONSTRUCTION & MANAGEMENT SERVICES,CR416716,Ol Hdon Changing Facilities,Building Mtce,303
http://statistics.data.gov.uk/id/local-authority/12UE,Huntingdonshire District Council,31/08/2017,31/08/2017,215412,699226,493,S S MOTORS (FUELS)  LTD,CR400864,Paxton Pits,Diesel,615
http://statistics.data.gov.uk/id/local-authority/12UE,Huntingdonshire District Council,29/08/2017,31/08/2017,215824,308218,491.9,DENNIS EAGLE LTD,CR000200,Recycling Collections,Equipment Maintenance,511
http://statistics.data.gov.uk/id/local-authority/12UE,Huntingdonshire District Council,24/08/2017,24/08/2017,215913,DE11041868,488.32,DENNIS EAGLE LTD,CR000200,Domestic Waste Collection,Vehicle Parts & Fittings,625
http://statistics.data.gov.uk/id/local-authority/12UE,Huntingdonshire District Council,24/08/2017,24/08/2017,215915,DE11041868,488.32,DENNIS EAGLE LTD,CR000200,Domestic Waste Collection,Vehicle Parts & Fittings,625
http://statistics.data.gov.uk/id/local-authority/12UE,Huntingdonshire District Council,15/08/2017,17/08/2017,215338,S295563,488.25,STR GROUP,CR424704,Imd Shared Service,Hired Staff,100
http://statistics.data.gov.uk/id/local-authority/12UE,Huntingdonshire District Council,03/08/2017,03/08/2017,213560,IN0608897,488.03,STAFFLINE GROUP,CR416827,Domestic Waste Collection,Hired Staff,100
http://statistics.data.gov.uk/id/local-authority/12UE,Huntingdonshire District Council,09/08/2017,09/08/2017,214562,252414730,487.5,PENGELLY AND MIZEN,CR411042,Animal Licensing - Inspections,Vets,760
http://statistics.data.gov.uk/id/local-authority/12UE,Huntingdonshire District Council,02/08/2017,03/08/2017,214639,16793,482.5,ERNEST DOE & SONS,CR000261,Vehicle Maintenance,Vehicle Parts & Fittings,625
http://statistics.data.gov.uk/id/local-authority/12UE,Huntingdonshire District Council,09/08/2017,10/08/2017,214969,918846,480.6,KING BROS,CR411339,Hinchingbrooke Park Cafe,Catering Materials,559
http://statistics.data.gov.uk/id/local-authority/12UE,Huntingdonshire District Council,15/08/2017,17/08/2017,215328,125670,480,IT TALENT SOLUTIONS LTD,CR482676,Imd Shared Service,Hired Staff,100
http://statistics.data.gov.uk/id/local-authority/12UE,Huntingdonshire District Council,24/08/2017,24/08/2017,215293,DE11059882,478.06,DENNIS EAGLE LTD,CR000200,Vehicle Maintenance,Vehicle Parts & Fittings,625
http://statistics.data.gov.uk/id/local-authority/12UE,Huntingdonshire District Council,24/08/2017,24/08/2017,215895,IN30662629,477,VOOHKUS LIMITED,CR424858,Ccity Recharge Invoices,Other I T Hardware,203
http://statistics.data.gov.uk/id/local-authority/12UE,Huntingdonshire District Council,16/08/2017,16/08/2017,215467,1833,476.04,BBS CHARTERED BUILDING SURVEYORS,CR455754,Commercial Investment Strategy,Consultants,711
http://statistics.data.gov.uk/id/local-authority/12UE,Huntingdonshire District Council,02/08/2017,02/08/2017,214571,32442,475,BRIDGE FIBRE LIMITED,CR424041,The Club Alconbury Weald,Building Mtce,303
http://statistics.data.gov.uk/id/local-authority/12UE,Huntingdonshire District Council,17/08/2017,17/08/2017,215462,CC/02/65,475,RAYS REMOVALS,CR424878,Homelessness,Removal/Storage,750
http://statistics.data.gov.uk/id/local-authority/12UE,Huntingdonshire District Council,24/08/2017,24/08/2017,215267,482295,470,STORM TECHNOLOGIES,CR480909,Ccity Recharge Invoices,Other I T Hardware,203
http://statistics.data.gov.uk/id/local-authority/12UE,Huntingdonshire District Council,16/08/2017,17/08/2017,215426,7142491,467,LONGMARSH LTD,CR424875,Street Cleansing,Vehicle Hire,607
http://statistics.data.gov.uk/id/local-authority/12UE,Huntingdonshire District Council,30/08/2017,31/08/2017,216179,SINV00114284,466,BIST,CR422733,Imd Shared Service,Other I T Hardware,203
http://statistics.data.gov.uk/id/local-authority/12UE,Huntingdonshire District Council,02/08/2017,07/08/2017,613913,2017/18 - 29,462.5,WEST HUNTS FRIENDSHIP CLUB,CR424844,Voluntary Sector Grants,Grants (Paid Out),800
http://statistics.data.gov.uk/id/local-authority/12UE,Huntingdonshire District Council,02/08/2017,07/08/2017,613917,2017/18 - 28,462.5,LITTLE MIRACLES - ST NEOTS,CR424851,Voluntary Sector Grants,Grants (Paid Out),800
http://statistics.data.gov.uk/id/local-authority/12UE,Huntingdonshire District Council,01/08/2017,01/08/2017,214444,282482,462.13,FIRST RECRUITMENT GROUP LTD,CR424012,Finance,Hired Staff,100
http://statistics.data.gov.uk/id/local-authority/12UE,Huntingdonshire District Council,08/08/2017,08/08/2017,214898,283165,462.13,FIRST RECRUITMENT GROUP LTD,CR424012,Finance,Hired Staff,100
http://statistics.data.gov.uk/id/local-authority/12UE,Huntingdonshire District Council,18/08/2017,18/08/2017,215667,283805,462.13,FIRST RECRUITMENT GROUP LTD,CR424012,Finance,Hired Staff,100
http://statistics.data.gov.uk/id/local-authority/12UE,Huntingdonshire District Council,15/08/2017,17/08/2017,214846,INV-00729,459.6,MAGENTA HR CONSULTING LTD,CR424853,Community Safety,Subcontractors,777
http://statistics.data.gov.uk/id/local-authority/12UE,Huntingdonshire District Council,09/08/2017,09/08/2017,214560,252414731,458.33,PENGELLY AND MIZEN,CR411042,Animal Licensing - Inspections,Vets,760
http://statistics.data.gov.uk/id/local-authority/12UE,Huntingdonshire District Council,15/08/2017,17/08/2017,215249,OP/1800853,457.2,PHOENIX SOFTWARE LTD,CR031918,Ccity Recharge Invoices,Software,206
http://statistics.data.gov.uk/id/local-authority/12UE,Huntingdonshire District Council,31/08/2017,31/08/2017,614674,1591,452.3,ST IVES TOWN COUNCIL,CR000701,St Ives Bus Station,Building Cleaning,440
http://statistics.data.gov.uk/id/local-authority/12UE,Huntingdonshire District Council,09/08/2017,09/08/2017,214988,26818,450,B & H DIGITAL LTD,CR478080,Domestic Waste Collection,Equipment,500
http://statistics.data.gov.uk/id/local-authority/12UE,Huntingdonshire District Council,03/08/2017,09/08/2017,215031,7779I,450,CBS SECURITY & REMOTE MONITORING LTD,CR424785,Cctv Shared Service Hosting,Equipment Maintenance,511
http://statistics.data.gov.uk/id/local-authority/12UE,Huntingdonshire District Council,22/08/2017,22/08/2017,215677,DIHH/00003058,450,LUMINUS HOMES,CR401276,Mobile Home Park,Building Mtce,303
http://statistics.data.gov.uk/id/local-authority/12UE,Huntingdonshire District Council,09/08/2017,10/08/2017,213475,DE11053449,447.82,DENNIS EAGLE LTD,CR000200,Domestic Waste Collection,Vehicle Parts & Fittings,625
http://statistics.data.gov.uk/id/local-authority/12UE,Huntingdonshire District Council,23/08/2017,24/08/2017,215776,82756202,346,ARCHANT HERTS & CAMBS,CR415764,Leisure Centre Corporate Mngmt,Advertising/Promoting Services,255
http://statistics.data.gov.uk/id/local-authority/12UE,Huntingdonshire District Council,23/08/2017,24/08/2017,215776,82756202,101.45,ARCHANT HERTS & CAMBS,CR415764,Burgess Hall,Advertising/Promoting Services,255
http://statistics.data.gov.uk/id/local-authority/12UE,Huntingdonshire District Council,09/08/2017,09/08/2017,215030,JC/5106/29386,445,J BREHENY CIVIL ENGINEERING LTD,CR000314,Site & Centre Management,Building Mtce,303
http://statistics.data.gov.uk/id/local-authority/12UE,Huntingdonshire District Council,16/08/2017,16/08/2017,214942,676278,411.75,LACONS,CR422174,Hospitality,Bar Provisions,558
http://statistics.data.gov.uk/id/local-authority/12UE,Huntingdonshire District Council,16/08/2017,16/08/2017,214942,676278,32,LACONS,CR422174,Hospitality,Gas Cylinders (Incl. Bars),567
http://statistics.data.gov.uk/id/local-authority/12UE,Huntingdonshire District Council,29/08/2017,31/08/2017,216135,4000005190,443.13,1ST CHOICE RECRUITMENT,CR416849,Parks & Open Spaces,Hired Staff,100
http://statistics.data.gov.uk/id/local-authority/12UE,Huntingdonshire District Council,09/08/2017,10/08/2017,614263,S1INVP/00005690,441.72,AXIOM HOUSING ASSOCIATION,CR135177,Homelessness,Incentive Payment,816
http://statistics.data.gov.uk/id/local-authority/12UE,Huntingdonshire District Council,10/08/2017,10/08/2017,214858,606,440,B P MORSE,CR030128,Disabled Facilities Grants,Mandatory Grants,801
http://statistics.data.gov.uk/id/local-authority/12UE,Huntingdonshire District Council,01/08/2017,01/08/2017,214468,90304282,439.5,FREETHS  LLP,CR480787,Committee Management,Enquiries,723
http://statistics.data.gov.uk/id/local-authority/12UE,Huntingdonshire District Council,09/08/2017,10/08/2017,211583,109681,382.71,ARTHUR IBBETT LTD,CR000430,Paxton Pits,Materials,550
http://statistics.data.gov.uk/id/local-authority/12UE,Huntingdonshire District Council,09/08/2017,10/08/2017,211583,109681,55.71,ARTHUR IBBETT LTD,CR000430,Paxton Pits,Protective Clothing & Uniforms,163
http://statistics.data.gov.uk/id/local-authority/12UE,Huntingdonshire District Council,30/08/2017,30/08/2017,216218,82761117,336,ARCHANT HERTS & CAMBS,CR415764,Leisure Centre Corporate Mngmt,Advertising/Promoting Services,255
http://statistics.data.gov.uk/id/local-authority/12UE,Huntingdonshire District Council,30/08/2017,30/08/2017,216218,82761117,101.45,ARCHANT HERTS & CAMBS,CR415764,Burgess Hall,Advertising/Promoting Services,255
http://statistics.data.gov.uk/id/local-authority/12UE,Huntingdonshire District Council,03/08/2017,03/08/2017,211645,PSI1702245,436.56,REESINK TURFCARE UK LTD,CR098282,Grounds Maintenance,Vehicle Parts & Fittings,625
http://statistics.data.gov.uk/id/local-authority/12UE,Huntingdonshire District Council,03/08/2017,03/08/2017,213562,IN0610739,435.27,STAFFLINE GROUP,CR416827,Domestic Waste Collection,Hired Staff,100
http://statistics.data.gov.uk/id/local-authority/12UE,Huntingdonshire District Council,15/08/2017,17/08/2017,214904,INV563426,434.69,ECOCLEEN SERVICES LIMITED,CR406985,Facilities,Cleaning Materials,443
http://statistics.data.gov.uk/id/local-authority/12UE,Huntingdonshire District Council,24/08/2017,24/08/2017,215935,600009527,432,EDF ENERGY CUSTOMER FIELD SERVICES,CR477611,Eastfield House,Electricity,420
http://statistics.data.gov.uk/id/local-authority/12UE,Huntingdonshire District Council,09/08/2017,10/08/2017,213946,PSI1709630,429.62,REESINK TURFCARE UK LTD,CR098282,Grounds Maintenance,Vehicle Parts & Fittings,625
http://statistics.data.gov.uk/id/local-authority/12UE,Huntingdonshire District Council,09/08/2017,10/08/2017,214541,IN0614982,425.01,STAFFLINE GROUP,CR416827,Domestic Waste Collection,Hired Staff,100
http://statistics.data.gov.uk/id/local-authority/12UE,Huntingdonshire District Council,02/08/2017,07/08/2017,613918,2017/18 - 13,425,ST NEOTS & DISTRICT FISH PRESERVATION,CR424852,Voluntary Sector Grants,Grants (Paid Out),800
http://statistics.data.gov.uk/id/local-authority/12UE,Huntingdonshire District Council,23/08/2017,24/08/2017,215859,920197,423.43,KING BROS,CR411339,Hinchingbrooke Park Cafe,Catering Materials,559
http://statistics.data.gov.uk/id/local-authority/12UE,Huntingdonshire District Council,02/08/2017,03/08/2017,213999,4000005029,422.8,1ST CHOICE RECRUITMENT,CR416849,Facilities,Hired Staff,100
http://statistics.data.gov.uk/id/local-authority/12UE,Huntingdonshire District Council,09/08/2017,09/08/2017,614265,DR017442,416.67,PERSONAL DATA REDACTED,CR487290,Sales Ledger Refunds Control,Refunds,Z28
http://statistics.data.gov.uk/id/local-authority/12UE,Huntingdonshire District Council,02/08/2017,02/08/2017,214456,INV-0081,104.17,WAMO SPORTS LTD,CR423559,Indoor Sports,Licences,730
http://statistics.data.gov.uk/id/local-authority/12UE,Huntingdonshire District Council,02/08/2017,02/08/2017,214456,INV-0081,104.17,WAMO SPORTS LTD,CR423559,Indoor Sports,Licences,730
http://statistics.data.gov.uk/id/local-authority/12UE,Huntingdonshire District Council,02/08/2017,02/08/2017,214456,INV-0081,104.17,WAMO SPORTS LTD,CR423559,Indoor Sports,Licences,730
http://statistics.data.gov.uk/id/local-authority/12UE,Huntingdonshire District Council,02/08/2017,02/08/2017,214456,INV-0081,52.08,WAMO SPORTS LTD,CR423559,Indoor Sports,Licences,730
http://statistics.data.gov.uk/id/local-authority/12UE,Huntingdonshire District Council,02/08/2017,02/08/2017,214456,INV-0081,52.08,WAMO SPORTS LTD,CR423559,Indoor Sports,Licences,730
http://statistics.data.gov.uk/id/local-authority/12UE,Huntingdonshire District Council,02/08/2017,03/08/2017,214413,4000005058,408.25,1ST CHOICE RECRUITMENT,CR416849,Parks & Open Spaces,Hired Staff,100
http://statistics.data.gov.uk/id/local-authority/12UE,Huntingdonshire District Council,23/08/2017,24/08/2017,215766,83326,403.52,SNACKLINE DIRECT LTD,CR478090,Hospitality,Vending Materials,560
http://statistics.data.gov.uk/id/local-authority/12UE,Huntingdonshire District Council,29/08/2017,31/08/2017,215296,INV214350,403.5,BROXAP LTD,CR415958,Parks & Open Spaces,Sitework,359
http://statistics.data.gov.uk/id/local-authority/12UE,Huntingdonshire District Council,16/08/2017,16/08/2017,215246,677383,401.73,LACONS,CR422174,Burgess Bar,Bar Provisions,558
http://statistics.data.gov.uk/id/local-authority/12UE,Huntingdonshire District Council,01/08/2017,01/08/2017,214472,6033,401.71,HUNTS FORUM OF VOLUNTARY ORGANISATIONS,CR030582,Commercial Properties,Building Mtce,303
http://statistics.data.gov.uk/id/local-authority/12UE,Huntingdonshire District Council,09/08/2017,09/08/2017,214826,62463,400,LEISURETEQ,CR401094,Site & Centre Management,Chemicals,551
http://statistics.data.gov.uk/id/local-authority/12UE,Huntingdonshire District Council,30/08/2017,30/08/2017,214920,JC/5106/29372,400,J BREHENY CIVIL ENGINEERING LTD,CR000314,Parks & Open Spaces,Sitework,359
http://statistics.data.gov.uk/id/local-authority/12UE,Huntingdonshire District Council,24/08/2017,24/08/2017,215893,FSI-131421,400,FREEDOM COMMUNICATIONS UK LTD,CR478774,Imd Shared Service,Equipment Maintenance,511
http://statistics.data.gov.uk/id/local-authority/12UE,Huntingdonshire District Council,30/08/2017,30/08/2017,216195,102126,399.8,SPORTMAX,CR424813,Site & Centre Management,Materials For Resale,570
http://statistics.data.gov.uk/id/local-authority/12UE,Huntingdonshire District Council,09/08/2017,10/08/2017,213473,DE11053091,398.32,DENNIS EAGLE LTD,CR000200,Domestic Waste Collection,Vehicle Parts & Fittings,625
http://statistics.data.gov.uk/id/local-authority/12UE,Huntingdonshire District Council,31/08/2017,31/08/2017,215493,35474,395.7,MEYER SCOTT RECRUITMENT LIMITED,CR422369,Customer Service Centres,Hired Staff,100
http://statistics.data.gov.uk/id/local-authority/12UE,Huntingdonshire District Council,31/08/2017,31/08/2017,216167,35507,395.7,MEYER SCOTT RECRUITMENT LIMITED,CR422369,Customer Service Centres,Hired Staff,100
http://statistics.data.gov.uk/id/local-authority/12UE,Huntingdonshire District Council,24/08/2017,24/08/2017,214834,123787,395,GOVNET COMMUNICATIONS,CR405771,Head Of Operations,Training,130
http://statistics.data.gov.uk/id/local-authority/12UE,Huntingdonshire District Council,09/08/2017,10/08/2017,214974,14803,394,RGS ARBORICULTURAL CONSULTANTS,CR424644,Arboricultural Team,Sitework,359
http://statistics.data.gov.uk/id/local-authority/12UE,Huntingdonshire District Council,16/08/2017,16/08/2017,215095,44777,392,DAL-ROD,CR017043,Site & Centre Management,Building Mtce,303
http://statistics.data.gov.uk/id/local-authority/12UE,Huntingdonshire District Council,30/08/2017,30/08/2017,216215,INV563907,392,ECOCLEEN SERVICES LIMITED,CR406985,Site & Centre Management,Building Mtce,303
http://statistics.data.gov.uk/id/local-authority/12UE,Huntingdonshire District Council,03/08/2017,03/08/2017,213564,IN0611936,389.11,STAFFLINE GROUP,CR416827,Domestic Waste Collection,Hired Staff,100
http://statistics.data.gov.uk/id/local-authority/12UE,Huntingdonshire District Council,09/08/2017,10/08/2017,214536,IN0613718,389.11,STAFFLINE GROUP,CR416827,Domestic Waste Collection,Hired Staff,100
http://statistics.data.gov.uk/id/local-authority/12UE,Huntingdonshire District Council,02/08/2017,10/08/2017,214532,R022333,380,PREMIER IT RECRUITMENT LTD,CR454029,Imd Shared Service,Hired Staff,100
http://statistics.data.gov.uk/id/local-authority/12UE,Huntingdonshire District Council,31/08/2017,31/08/2017,216157,384/801,379.17,JAZ YORKS LTD,CR160753,Homelessness,Bed & Breakfast Payment,818
http://statistics.data.gov.uk/id/local-authority/12UE,Huntingdonshire District Council,31/08/2017,31/08/2017,216158,384/800,379.17,JAZ YORKS LTD,CR160753,Homelessness,Bed & Breakfast Payment,818
http://statistics.data.gov.uk/id/local-authority/12UE,Huntingdonshire District Council,22/08/2017,22/08/2017,215678,7056236,374,ANTALIS LTD,CR479468,Printing,Paper,562
http://statistics.data.gov.uk/id/local-authority/12UE,Huntingdonshire District Council,30/08/2017,30/08/2017,216161,7088963,284.88,ANTALIS LTD,CR479468,Printing,Paper,562
http://statistics.data.gov.uk/id/local-authority/12UE,Huntingdonshire District Council,30/08/2017,30/08/2017,216161,7088963,57.3,ANTALIS LTD,CR479468,Printing,Paper,562
http://statistics.data.gov.uk/id/local-authority/12UE,Huntingdonshire District Council,30/08/2017,30/08/2017,216161,7088963,31.8,ANTALIS LTD,CR479468,Printing,Paper,562
http://statistics.data.gov.uk/id/local-authority/12UE,Huntingdonshire District Council,15/08/2017,17/08/2017,214883,41661,372.97,GROUNDSMAN,CR422159,Grounds Maintenance,Protective Clothing & Uniforms,163
http://statistics.data.gov.uk/id/local-authority/12UE,Huntingdonshire District Council,24/08/2017,24/08/2017,215923,2103905164,3.99,BOOKER CASH AND CARRY,CR027611,Hinchingbrooke Park Cafe,Materials,550
http://statistics.data.gov.uk/id/local-authority/12UE,Huntingdonshire District Council,24/08/2017,24/08/2017,215923,2103905164,368.89,BOOKER CASH AND CARRY,CR027611,Hinchingbrooke Park Cafe,Catering Materials,559
http://statistics.data.gov.uk/id/local-authority/12UE,Huntingdonshire District Council,17/08/2017,17/08/2017,215480,13313569100,372.27,E-ON ENERGY,CR416430,Pathfinder House,Gas,421
http://statistics.data.gov.uk/id/local-authority/12UE,Huntingdonshire District Council,17/08/2017,17/08/2017,215477,12489088970,371.46,E-ON ENERGY,CR416430,Site & Centre Management,Gas,421
http://statistics.data.gov.uk/id/local-authority/12UE,Huntingdonshire District Council,15/08/2017,17/08/2017,215325,17055045,370,GUEST MOTORS LTD,CR424046,Domestic Waste Collection,Vehicle Parts & Fittings,625
http://statistics.data.gov.uk/id/local-authority/12UE,Huntingdonshire District Council,02/08/2017,03/08/2017,213990,188,369.3,ARB UTILITY TRAINING,CR422366,Arboricultural Team,Equipment,500
http://statistics.data.gov.uk/id/local-authority/12UE,Huntingdonshire District Council,24/08/2017,24/08/2017,215711,87704,365,FRANK RATCLIFFE & SON,CR007546,Domestic Waste Collection,Equipment Maintenance,511
http://statistics.data.gov.uk/id/local-authority/12UE,Huntingdonshire District Council,23/08/2017,24/08/2017,215514,#001108,363.99,MIRAMAR ENGINEERING LTD,CR424694,Site & Centre Management,Building Mtce,303
http://statistics.data.gov.uk/id/local-authority/12UE,Huntingdonshire District Council,03/08/2017,03/08/2017,214429,63703,360,GASWISE,CR423458,Disabled Facilities Grants,Mandatory Grants,801
http://statistics.data.gov.uk/id/local-authority/12UE,Huntingdonshire District Council,02/08/2017,02/08/2017,214454,TERM TIMES,360,TERM TIMES,CR423394,Leisure Centre Corporate Mngmt,Advertising/Promoting Services,255
http://statistics.data.gov.uk/id/local-authority/12UE,Huntingdonshire District Council,16/08/2017,17/08/2017,215429,28,360,PERSONAL DATA REDACTED,CR424692,Hinchingbrooke Park Management,Promotions And Exhibitions,743
http://statistics.data.gov.uk/id/local-authority/12UE,Huntingdonshire District Council,23/08/2017,24/08/2017,215782,INV021,360,RICHARD SISTROM PAINTING & DECORATING,CR422887,Site & Centre Management,Building Mtce,303
http://statistics.data.gov.uk/id/local-authority/12UE,Huntingdonshire District Council,15/08/2017,17/08/2017,215252,OP/1799188,359.13,PHOENIX SOFTWARE LTD,CR031918,Imd Shared Service,Software,206
http://statistics.data.gov.uk/id/local-authority/12UE,Huntingdonshire District Council,24/08/2017,24/08/2017,215291,4000005086,350.89,1ST CHOICE RECRUITMENT,CR416849,Parks & Open Spaces,Hired Staff,100
http://statistics.data.gov.uk/id/local-authority/12UE,Huntingdonshire District Council,02/08/2017,03/08/2017,213474,116190,105,BARTON PETROLEUM,CR409205,Recycling Collections,Vehicle Oil & Lubricants,626
http://statistics.data.gov.uk/id/local-authority/12UE,Huntingdonshire District Council,02/08/2017,03/08/2017,213474,116190,245,BARTON PETROLEUM,CR409205,Domestic Waste Collection,Vehicle Oil & Lubricants,626
http://statistics.data.gov.uk/id/local-authority/12UE,Huntingdonshire District Council,24/08/2017,24/08/2017,215289,117254,105,BARTON PETROLEUM,CR409205,Recycling Collections,Vehicle Oil & Lubricants,626
http://statistics.data.gov.uk/id/local-authority/12UE,Huntingdonshire District Council,24/08/2017,24/08/2017,215289,117254,245,BARTON PETROLEUM,CR409205,Domestic Waste Collection,Vehicle Oil & Lubricants,626
http://statistics.data.gov.uk/id/local-authority/12UE,Huntingdonshire District Council,24/08/2017,24/08/2017,215892,FSI-131273,350,FREEDOM COMMUNICATIONS UK LTD,CR478774,Imd Shared Service,Consultants,711
http://statistics.data.gov.uk/id/local-authority/12UE,Huntingdonshire District Council,30/08/2017,30/08/2017,216186,366142,346.96,THURLOW NUNN STANDEN LTD,CR001534,Site & Centre Management,Equipment Maintenance,511
http://statistics.data.gov.uk/id/local-authority/12UE,Huntingdonshire District Council,02/08/2017,03/08/2017,214648,DE11031272,343.67,DENNIS EAGLE LTD,CR000200,Domestic Waste Collection,Vehicle Parts & Fittings,625
http://statistics.data.gov.uk/id/local-authority/12UE,Huntingdonshire District Council,02/08/2017,03/08/2017,214395,561010,343.53,ECOCLEEN SERVICES LIMITED,CR406985,Huntingdon Multi-Storey,Building Cleaning,440
http://statistics.data.gov.uk/id/local-authority/12UE,Huntingdonshire District Council,15/08/2017,17/08/2017,214905,INV563534,343.53,ECOCLEEN SERVICES LIMITED,CR406985,Facilities,Cleaning Materials,443
http://statistics.data.gov.uk/id/local-authority/12UE,Huntingdonshire District Council,16/08/2017,16/08/2017,215451,44738,343,DAL-ROD,CR017043,Site & Centre Management,Building Mtce,303
http://statistics.data.gov.uk/id/local-authority/12UE,Huntingdonshire District Council,02/08/2017,03/08/2017,214579,294036201,342.56,ANGLIAN WATER,CR000071,Swimming,Water & Sewerage,432
http://statistics.data.gov.uk/id/local-authority/12UE,Huntingdonshire District Council,24/08/2017,24/08/2017,215911,DE11050238,342.52,DENNIS EAGLE LTD,CR000200,Recycling Collections,Vehicle Parts & Fittings,625
http://statistics.data.gov.uk/id/local-authority/12UE,Huntingdonshire District Council,24/08/2017,24/08/2017,215919,DE11050238,342.52,DENNIS EAGLE LTD,CR000200,Recycling Collections,Vehicle Parts & Fittings,625
http://statistics.data.gov.uk/id/local-authority/12UE,Huntingdonshire District Council,02/08/2017,03/08/2017,214005, 1707/32659,340,GULLIVERS TRUCK HIRE LTD,CR477663,Domestic Waste Collection,Vehicle Hire,607
http://statistics.data.gov.uk/id/local-authority/12UE,Huntingdonshire District Council,09/08/2017,10/08/2017,214957,79845,340,FIVEWAYS MUNICIPAL VEHICLE HIRE LTD,CR415496,Grounds Maintenance,Vehicle Hire,607
http://statistics.data.gov.uk/id/local-authority/12UE,Huntingdonshire District Council,31/08/2017,31/08/2017,216168,SI-53,340,HD PROPERTY SERVICES,CR422148,Housing Private Sector Grants,Shared Service Savings,798
http://statistics.data.gov.uk/id/local-authority/12UE,Huntingdonshire District Council,30/08/2017,30/08/2017,216240,311226373,339.12,SWALEC,CR407130,Nursery Project - Gmc,Electricity,420
http://statistics.data.gov.uk/id/local-authority/12UE,Huntingdonshire District Council,07/08/2017,07/08/2017,214864,90442407,338.81,ADVANTAGE RESOURCING,CR424715,Customer Service Centres,Hired Staff,100
http://statistics.data.gov.uk/id/local-authority/12UE,Huntingdonshire District Council,14/08/2017,14/08/2017,215240,90444159,338.81,ADVANTAGE RESOURCING,CR424715,Customer Service Centres,Hired Staff,100
http://statistics.data.gov.uk/id/local-authority/12UE,Huntingdonshire District Council,31/08/2017,31/08/2017,216100,90447682,338.81,ADVANTAGE RESOURCING,CR424715,Customer Service Centres,Hired Staff,100
http://statistics.data.gov.uk/id/local-authority/12UE,Huntingdonshire District Council,03/08/2017,03/08/2017,214660,22875,333.75,SHOW & EVENT SECURITY,CR422363,Burgess Hall,Hired Staff,100
http://statistics.data.gov.uk/id/local-authority/12UE,Huntingdonshire District Council,24/08/2017,24/08/2017,215914,DE11043351,333.73,DENNIS EAGLE LTD,CR000200,Domestic Waste Collection,Vehicle Parts & Fittings,625
http://statistics.data.gov.uk/id/local-authority/12UE,Huntingdonshire District Council,24/08/2017,24/08/2017,215917,DE11043351,333.73,DENNIS EAGLE LTD,CR000200,Domestic Waste Collection,Vehicle Parts & Fittings,625
http://statistics.data.gov.uk/id/local-authority/12UE,Huntingdonshire District Council,10/08/2017,10/08/2017,215082,35446,333.05,MEYER SCOTT RECRUITMENT LIMITED,CR422369,Customer Service Centres,Hired Staff,100
http://statistics.data.gov.uk/id/local-authority/12UE,Huntingdonshire District Council,01/08/2017,01/08/2017,613921,DR019142,330.34,PERSONAL DATA REDACTED,CR424840,Sales Ledger Refunds Control,Refunds,Z28
http://statistics.data.gov.uk/id/local-authority/12UE,Huntingdonshire District Council,03/08/2017,03/08/2017,214515,113034,329.2,ARTHUR IBBETT LTD,CR000430,Grounds Maintenance,Vehicle Parts & Fittings,625
http://statistics.data.gov.uk/id/local-authority/12UE,Huntingdonshire District Council,09/08/2017,10/08/2017,214967,919292,324.18,KING BROS,CR411339,Hinchingbrooke Park Cafe,Catering Materials,559
http://statistics.data.gov.uk/id/local-authority/12UE,Huntingdonshire District Council,16/08/2017,16/08/2017,215369,44935,323,DAL-ROD UK LTD,CR002782,Site & Centre Management,Building Mtce,303
http://statistics.data.gov.uk/id/local-authority/12UE,Huntingdonshire District Council,16/08/2017,16/08/2017,214604,674911,320.91,LACONS,CR422174,Hospitality,Bar Provisions,558
http://statistics.data.gov.uk/id/local-authority/12UE,Huntingdonshire District Council,03/08/2017,03/08/2017,214434,CR160753,320.84,JAZ YORKS LTD,CR160753,Homelessness,Bed & Breakfast Payment,818
http://statistics.data.gov.uk/id/local-authority/12UE,Huntingdonshire District Council,03/08/2017,03/08/2017,214435,384/785,320.84,JAZ YORKS LTD,CR160753,Homelessness,Bed & Breakfast Payment,818
http://statistics.data.gov.uk/id/local-authority/12UE,Huntingdonshire District Council,03/08/2017,03/08/2017,214436,384/786,320.84,JAZ YORKS LTD,CR160753,Homelessness,Bed & Breakfast Payment,818
http://statistics.data.gov.uk/id/local-authority/12UE,Huntingdonshire District Council,31/08/2017,31/08/2017,216155,384/799,320.84,JAZ YORKS LTD,CR160753,Homelessness,Bed & Breakfast Payment,818
http://statistics.data.gov.uk/id/local-authority/12UE,Huntingdonshire District Council,10/08/2017,10/08/2017,215013,24584,320,B. S. GRAVES ELECTRICAL LTD,CR000363,Huntingdon Multi-Storey,Building Mtce,303
http://statistics.data.gov.uk/id/local-authority/12UE,Huntingdonshire District Council,24/08/2017,24/08/2017,215392,SN2659158,318,BERENDSEN,CR478298,Vehicle Maintenance,Vehicle Parts & Fittings,625
http://statistics.data.gov.uk/id/local-authority/12UE,Huntingdonshire District Council,09/08/2017,10/08/2017,214622,10490074,316.72,LUCOZADE RIBENA SUNTORY LTD,CR422660,Hospitality,Vending Materials,560
http://statistics.data.gov.uk/id/local-authority/12UE,Huntingdonshire District Council,09/08/2017,09/08/2017,215066,31577,315,HI-SPEC FACILITIES SERVICES PLC,CR423413,Pathfinder House,Building Cleaning,440
http://statistics.data.gov.uk/id/local-authority/12UE,Huntingdonshire District Council,31/08/2017,31/08/2017,216197,96345771,313.6,TERBERG MATEC UK LTD,CR402183,Domestic Waste Collection,Vehicle Parts & Fittings,625
http://statistics.data.gov.uk/id/local-authority/12UE,Huntingdonshire District Council,09/08/2017,09/08/2017,214855,252415011,312.5,PENGELLY AND MIZEN,CR411042,Animal Licensing - Inspections,Vets,760
http://statistics.data.gov.uk/id/local-authority/12UE,Huntingdonshire District Council,23/08/2017,23/08/2017,215804,4525430,312,ESPO,CR006566,Transformation Programme,Stationery,225
http://statistics.data.gov.uk/id/local-authority/12UE,Huntingdonshire District Council,30/08/2017,30/08/2017,216210,SIN17WTH03898,310,INDUSTRIAL CHEMICALS LIMITED,CR424772,Swimming,Chemicals,551
http://statistics.data.gov.uk/id/local-authority/12UE,Huntingdonshire District Council,01/08/2017,08/08/2017,214924,55978833,309.76,ARCHANT HERTS & CAMBS,CR415764,Domestic Waste Collection,Advertising/Promoting Services,255
http://statistics.data.gov.uk/id/local-authority/12UE,Huntingdonshire District Council,16/08/2017,16/08/2017,214939,GM15477,307.98,GARNER MEDICAL LTD,CR003972,Site & Centre Management,Equipment Maintenance,511
http://statistics.data.gov.uk/id/local-authority/12UE,Huntingdonshire District Council,02/08/2017,02/08/2017,214183,61510405,300,LOCAL WORLD LTD,CR000072,Burgess Hall,Advertising/Promoting Services,255
http://statistics.data.gov.uk/id/local-authority/12UE,Huntingdonshire District Council,02/08/2017,02/08/2017,214606,44185,300,LAYTONDINGS ENTERTAINMENT LTD,CR412228,Burgess Hall,Entertainments Inc Cable Tv,744
http://statistics.data.gov.uk/id/local-authority/12UE,Huntingdonshire District Council,02/08/2017,02/08/2017,214628,123483,300,EAST MAGAZINE- THOMPSON MEDIA PARTNERS LTD,CR416747,Burgess Hall,Advertising/Promoting Services,255
http://statistics.data.gov.uk/id/local-authority/12UE,Huntingdonshire District Council,31/08/2017,31/08/2017,216270,MISC015231,300,BOROUGH OF KINGS LYNN AND WEST NORFOLK,CR410054,Ph & Hc Vechicles,Training,130
http://statistics.data.gov.uk/id/local-authority/12UE,Huntingdonshire District Council,16/08/2017,16/08/2017,215444,IOSINV013002,299,INSTITUTE OF SWIMMING LTD,CR455603,Hr & Payroll Services,Training,130
http://statistics.data.gov.uk/id/local-authority/12UE,Huntingdonshire District Council,24/08/2017,24/08/2017,215921,2103933917,7.69,BOOKER CASH AND CARRY,CR027611,Hinchingbrooke Park Cafe,Materials,550
http://statistics.data.gov.uk/id/local-authority/12UE,Huntingdonshire District Council,24/08/2017,24/08/2017,215921,2103933917,289.13,BOOKER CASH AND CARRY,CR027611,Hinchingbrooke Park Cafe,Catering Materials,559
http://statistics.data.gov.uk/id/local-authority/12UE,Huntingdonshire District Council,02/08/2017,02/08/2017,214202,35383,296.78,MEYER SCOTT RECRUITMENT LIMITED,CR422369,Customer Service Centres,Hired Staff,100
http://statistics.data.gov.uk/id/local-authority/12UE,Huntingdonshire District Council,09/08/2017,10/08/2017,214530,IN0614984,296.78,STAFFLINE GROUP,CR416827,Recycling Collections,Hired Staff,100
http://statistics.data.gov.uk/id/local-authority/12UE,Huntingdonshire District Council,16/08/2017,16/08/2017,215385,362685,89.23,SOUTH LINCS FOOD SERVICE,CR033415,Hospitality,Materials,550
http://statistics.data.gov.uk/id/local-authority/12UE,Huntingdonshire District Council,16/08/2017,16/08/2017,215385,362685,17.5,SOUTH LINCS FOOD SERVICE,CR033415,Hospitality,Bar Provisions,558
http://statistics.data.gov.uk/id/local-authority/12UE,Huntingdonshire District Council,16/08/2017,16/08/2017,215385,362685,188.82,SOUTH LINCS FOOD SERVICE,CR033415,Hospitality,Catering Materials,559
http://statistics.data.gov.uk/id/local-authority/12UE,Huntingdonshire District Council,16/08/2017,16/08/2017,215093,62711,294.17,MASKEARAID LTD,CR033423,Site & Centre Management,Cleaning Materials,443
http://statistics.data.gov.uk/id/local-authority/12UE,Huntingdonshire District Council,09/08/2017,09/08/2017,215068,9541,294,WENSLEY & LAWZ,CR424876,Commercial Properties,Building Mtce,303
http://statistics.data.gov.uk/id/local-authority/12UE,Huntingdonshire District Council,21/08/2017,24/08/2017,215653,252415716,291.67,PENGELLY AND MIZEN,CR411042,Animal Licensing - Inspections,Vets,760
http://statistics.data.gov.uk/id/local-authority/12UE,Huntingdonshire District Council,09/08/2017,10/08/2017,214599,151090,290,SILVER SHIELD WINDSCREENS,CR024745,Domestic Waste Collection,Vehicle Parts & Fittings,625
http://statistics.data.gov.uk/id/local-authority/12UE,Huntingdonshire District Council,09/08/2017,10/08/2017,214601,151760,290,SILVER SHIELD WINDSCREENS,CR024745,Domestic Waste Collection,Vehicle Parts & Fittings,625
http://statistics.data.gov.uk/id/local-authority/12UE,Huntingdonshire District Council,10/08/2017,10/08/2017,214918,241,290,DMS HOME IMPROVEMENTS & ELECTRICAL,CR479202,Pathfinder House,Building Mtce,303
http://statistics.data.gov.uk/id/local-authority/12UE,Huntingdonshire District Council,30/08/2017,30/08/2017,216234,371226896,289.72,SWALEC,CR407130,St Ives Cattle Market (Hw),Electricity,420
http://statistics.data.gov.uk/id/local-authority/12UE,Huntingdonshire District Council,30/08/2017,30/08/2017,216230,491225588,287.76,SWALEC,CR407130,St Neots Riverside,Electricity,420
http://statistics.data.gov.uk/id/local-authority/12UE,Huntingdonshire District Council,09/08/2017,10/08/2017,214970,44484,286.71,PILGRIM FOODSERVICE LTD,CR455695,Hinchingbrooke Park Cafe,Catering Materials,559
http://statistics.data.gov.uk/id/local-authority/12UE,Huntingdonshire District Council,09/08/2017,10/08/2017,214565,364415,286.2,THURLOW NUNN STANDEN LTD,CR001534,Grounds Maintenance,Vehicle Parts & Fittings,625
http://statistics.data.gov.uk/id/local-authority/12UE,Huntingdonshire District Council,02/08/2017,02/08/2017,214461,92769,285.67,SNACKLINE DIRECT LTD,CR478090,Hospitality,Vending Materials,560
http://statistics.data.gov.uk/id/local-authority/12UE,Huntingdonshire District Council,09/08/2017,10/08/2017,214889,1930692,285.6,NIXON HIRE,CR424832,Grounds Maintenance,Vehicle Hire,607
http://statistics.data.gov.uk/id/local-authority/12UE,Huntingdonshire District Council,24/08/2017,24/08/2017,215716,SIN0638761,285.26,HOWSAFE LTD,CR000409,Domestic Waste Collection,Protective Clothing & Uniforms,163
http://statistics.data.gov.uk/id/local-authority/12UE,Huntingdonshire District Council,02/08/2017,03/08/2017,214052,44611,285,DAL-ROD UK LTD,CR002782,Pathfinder House,Building Mtce,303
http://statistics.data.gov.uk/id/local-authority/12UE,Huntingdonshire District Council,23/08/2017,24/08/2017,215724,1,284.63,LIFE FITNESS UK LTD,CR004396,Impressions,Equipment Maintenance,511
http://statistics.data.gov.uk/id/local-authority/12UE,Huntingdonshire District Council,15/08/2017,17/08/2017,215250,OP/1800460,284.44,PHOENIX SOFTWARE LTD,CR031918,Imd Shared Service,Software,206
http://statistics.data.gov.uk/id/local-authority/12UE,Huntingdonshire District Council,21/08/2017,24/08/2017,215654,252415715,283.33,PENGELLY AND MIZEN,CR411042,Animal Licensing - Inspections,Vets,760
http://statistics.data.gov.uk/id/local-authority/12UE,Huntingdonshire District Council,23/08/2017,24/08/2017,215738,365886,3.19,SOUTH LINCS FOOD SERVICE,CR033415,Hospitality,Cleaning Materials,443
http://statistics.data.gov.uk/id/local-authority/12UE,Huntingdonshire District Council,23/08/2017,24/08/2017,215738,365886,38.45,SOUTH LINCS FOOD SERVICE,CR033415,Hospitality,Materials,550
http://statistics.data.gov.uk/id/local-authority/12UE,Huntingdonshire District Council,23/08/2017,24/08/2017,215738,365886,43.76,SOUTH LINCS FOOD SERVICE,CR033415,Hospitality,Bar Provisions,558
http://statistics.data.gov.uk/id/local-authority/12UE,Huntingdonshire District Council,23/08/2017,24/08/2017,215738,365886,195.64,SOUTH LINCS FOOD SERVICE,CR033415,Hospitality,Catering Materials,559
http://statistics.data.gov.uk/id/local-authority/12UE,Huntingdonshire District Council,16/08/2017,16/08/2017,215430,677695,280.48,LACONS,CR422174,Hospitality,Bar Provisions,558
http://statistics.data.gov.uk/id/local-authority/12UE,Huntingdonshire District Council,30/08/2017,30/08/2017,216216,INV563908,279,ECOCLEEN SERVICES LIMITED,CR406985,Site & Centre Management,Building Mtce,303
http://statistics.data.gov.uk/id/local-authority/12UE,Huntingdonshire District Council,09/08/2017,10/08/2017,214994,917232,276.86,KING BROS,CR411339,Hinchingbrooke Park Cafe,Catering Materials,559
http://statistics.data.gov.uk/id/local-authority/12UE,Huntingdonshire District Council,03/08/2017,03/08/2017,214680,90439549,276.46,ADVANTAGE RESOURCING,CR424715,Customer Service Centres,Hired Staff,100
http://statistics.data.gov.uk/id/local-authority/12UE,Huntingdonshire District Council,09/08/2017,09/08/2017,214507,0010494470/9028,275.19,LUCOZADE RIBENA SUNTORY LTD,CR422660,Hospitality,Vending Materials,560
http://statistics.data.gov.uk/id/local-authority/12UE,Huntingdonshire District Council,02/08/2017,03/08/2017,214522,1622,275,PLANNING OFFICERS SOCIETY,CR477409,Development Management,Professional Subscriptions,755
http://statistics.data.gov.uk/id/local-authority/12UE,Huntingdonshire District Council,31/08/2017,31/08/2017,216149,384/805,275,JAZ YORKS LTD,CR160753,Homelessness,Bed & Breakfast Payment,818
http://statistics.data.gov.uk/id/local-authority/12UE,Huntingdonshire District Council,31/08/2017,31/08/2017,216156,384/804,275,JAZ YORKS LTD,CR160753,Homelessness,Bed & Breakfast Payment,818
http://statistics.data.gov.uk/id/local-authority/12UE,Huntingdonshire District Council,02/08/2017,02/08/2017,214193,17008454,274.22,TECHNOGYM UK LTD,CR033037,Impressions,Equipment Maintenance,511
http://statistics.data.gov.uk/id/local-authority/12UE,Huntingdonshire District Council,09/08/2017,09/08/2017,214853,252415012,270.83,PENGELLY AND MIZEN,CR411042,Animal Licensing - Inspections,Vets,760
http://statistics.data.gov.uk/id/local-authority/12UE,Huntingdonshire District Council,31/08/2017,31/08/2017,216213,38232,269.6,TRINITY ENGINEERING & COMPONENT SUPPLIES LTD,CR455479,Vehicle Maintenance,Materials,550
http://statistics.data.gov.uk/id/local-authority/12UE,Huntingdonshire District Council,02/08/2017,02/08/2017,214491,82949,269.09,SNACKLINE DIRECT LTD,CR478090,Hospitality,Vending Materials,560
http://statistics.data.gov.uk/id/local-authority/12UE,Huntingdonshire District Council,02/08/2017,03/08/2017,214650,302625,267.12,DENNIS EAGLE LTD,CR000200,Recycling Collections,Vehicle Parts & Fittings,625
http://statistics.data.gov.uk/id/local-authority/12UE,Huntingdonshire District Council,10/08/2017,10/08/2017,214907,124596,266.61,CALE ACCESS UK LTD,CR401137,St Neots Riverside,Car Park Machines,522
http://statistics.data.gov.uk/id/local-authority/12UE,Huntingdonshire District Council,30/08/2017,30/08/2017,216162,7078522,114.39,ANTALIS LTD,CR479468,Printing,Paper,562
http://statistics.data.gov.uk/id/local-authority/12UE,Huntingdonshire District Council,30/08/2017,30/08/2017,216162,7078522,101.7,ANTALIS LTD,CR479468,Printing,Paper,562
http://statistics.data.gov.uk/id/local-authority/12UE,Huntingdonshire District Council,30/08/2017,30/08/2017,216162,7078522,47,ANTALIS LTD,CR479468,Printing,Paper,562
http://statistics.data.gov.uk/id/local-authority/12UE,Huntingdonshire District Council,03/08/2017,03/08/2017,214433,384/791,262.5,JAZ YORKS LTD,CR160753,Homelessness,Bed & Breakfast Payment,818
http://statistics.data.gov.uk/id/local-authority/12UE,Huntingdonshire District Council,03/08/2017,03/08/2017,214438,384/788,262.5,JAZ YORKS LTD,CR160753,Homelessness,Bed & Breakfast Payment,818
http://statistics.data.gov.uk/id/local-authority/12UE,Huntingdonshire District Council,03/08/2017,03/08/2017,214439,384/789,262.5,JAZ YORKS LTD,CR160753,Homelessness,Bed & Breakfast Payment,818
http://statistics.data.gov.uk/id/local-authority/12UE,Huntingdonshire District Council,03/08/2017,03/08/2017,214440,384/790,262.5,JAZ YORKS LTD,CR160753,Homelessness,Bed & Breakfast Payment,818
http://statistics.data.gov.uk/id/local-authority/12UE,Huntingdonshire District Council,31/08/2017,31/08/2017,216147,384/803,262.5,JAZ YORKS LTD,CR160753,Homelessness,Bed & Breakfast Payment,818
http://statistics.data.gov.uk/id/local-authority/12UE,Huntingdonshire District Council,31/08/2017,31/08/2017,216148,384/798,262.5,JAZ YORKS LTD,CR160753,Homelessness,Bed & Breakfast Payment,818
http://statistics.data.gov.uk/id/local-authority/12UE,Huntingdonshire District Council,31/08/2017,31/08/2017,216150,384/793,262.5,JAZ YORKS LTD,CR160753,Homelessness,Bed & Breakfast Payment,818
http://statistics.data.gov.uk/id/local-authority/12UE,Huntingdonshire District Council,31/08/2017,31/08/2017,216151,384/796,262.5,JAZ YORKS LTD,CR160753,Homelessness,Bed & Breakfast Payment,818
http://statistics.data.gov.uk/id/local-authority/12UE,Huntingdonshire District Council,31/08/2017,31/08/2017,216152,384/797,262.5,JAZ YORKS LTD,CR160753,Homelessness,Bed & Breakfast Payment,818
http://statistics.data.gov.uk/id/local-authority/12UE,Huntingdonshire District Council,31/08/2017,31/08/2017,216153,384/802,262.5,JAZ YORKS LTD,CR160753,Homelessness,Bed & Breakfast Payment,818
http://statistics.data.gov.uk/id/local-authority/12UE,Huntingdonshire District Council,31/08/2017,31/08/2017,216154,384/792,262.5,JAZ YORKS LTD,CR160753,Homelessness,Bed & Breakfast Payment,818
http://statistics.data.gov.uk/id/local-authority/12UE,Huntingdonshire District Council,31/08/2017,31/08/2017,216160,384/794,262.5,JAZ YORKS LTD,CR160753,Homelessness,Bed & Breakfast Payment,818
http://statistics.data.gov.uk/id/local-authority/12UE,Huntingdonshire District Council,24/08/2017,24/08/2017,215708,4000005156,262.49,1ST CHOICE RECRUITMENT,CR416849,Parks & Open Spaces,Hired Staff,100
http://statistics.data.gov.uk/id/local-authority/12UE,Huntingdonshire District Council,16/08/2017,16/08/2017,215307,20526,262.01,M WATSON CONSTRUCTION LTD,CR480595,Disabled Facilities Grants,Mandatory Grants,801
http://statistics.data.gov.uk/id/local-authority/12UE,Huntingdonshire District Council,09/08/2017,10/08/2017,214972,27667,260,LONDON HOUSE SIGNS,CR016524,Watercourses,Sitework,359
http://statistics.data.gov.uk/id/local-authority/12UE,Huntingdonshire District Council,31/08/2017,31/08/2017,215814,3605,260,K & M LIGHTING SERVICES LTD,CR455166,Env Imps Management,Building Mtce,303
http://statistics.data.gov.uk/id/local-authority/12UE,Huntingdonshire District Council,03/08/2017,03/08/2017,214676,7019992,259.5,ANTALIS LTD,CR479468,Printing,Paper,562
http://statistics.data.gov.uk/id/local-authority/12UE,Huntingdonshire District Council,03/08/2017,03/08/2017,214553,03-Jun-17,259,HUNTINGDON BEEKEEPERS ASSOCIATION,CR477417,Hinchingbrooke Park Management,Materials For Resale,570
http://statistics.data.gov.uk/id/local-authority/12UE,Huntingdonshire District Council,17/08/2017,24/08/2017,215511,INV1792358,258.4,INTERACTION RECRUITMENT PLC,CR007892,Cctv Shared Service Hosting,Hired Staff,100
http://statistics.data.gov.uk/id/local-authority/12UE,Huntingdonshire District Council,30/08/2017,31/08/2017,216109,SINV00114486,178.5,BIST,CR422733,Scdc Recharge Invoices,Other I T Hardware,203
http://statistics.data.gov.uk/id/local-authority/12UE,Huntingdonshire District Council,30/08/2017,31/08/2017,216109,SINV00114486,79.9,BIST,CR422733,Scdc Recharge Invoices,Other I T Hardware,203
http://statistics.data.gov.uk/id/local-authority/12UE,Huntingdonshire District Council,16/08/2017,16/08/2017,215073,300337,116.91,WESTMINSTER FOODSERVICE,CR455156,Hospitality,Bar Provisions,558
http://statistics.data.gov.uk/id/local-authority/12UE,Huntingdonshire District Council,16/08/2017,16/08/2017,215073,300337,139.58,WESTMINSTER FOODSERVICE,CR455156,Hospitality,Catering Materials,559
http://statistics.data.gov.uk/id/local-authority/12UE,Huntingdonshire District Council,31/08/2017,31/08/2017,216198,96345772,256.41,TERBERG MATEC UK LTD,CR402183,Domestic Waste Collection,Vehicle Parts & Fittings,625
http://statistics.data.gov.uk/id/local-authority/12UE,Huntingdonshire District Council,02/08/2017,02/08/2017,214630,82748321,256.33,ARCHANT COMMUNITY MEDIA LTD,CR452143,Burgess Hall,Advertising/Promoting Services,255
http://statistics.data.gov.uk/id/local-authority/12UE,Huntingdonshire District Council,09/08/2017,09/08/2017,214827,SIV201078,255.38,LES MILLS UK,CR025826,Indoor Sports,Licences,730
http://statistics.data.gov.uk/id/local-authority/12UE,Huntingdonshire District Council,30/08/2017,30/08/2017,216188,366143,255,THURLOW NUNN STANDEN LTD,CR001534,Site & Centre Management,Equipment Maintenance,511
http://statistics.data.gov.uk/id/local-authority/12UE,Huntingdonshire District Council,30/08/2017,30/08/2017,216189,366144,255,THURLOW NUNN STANDEN LTD,CR001534,Site & Centre Management,Equipment Maintenance,511
http://statistics.data.gov.uk/id/local-authority/12UE,Huntingdonshire District Council,23/08/2017,24/08/2017,214487,353522,9.26,SOUTH LINCS FOOD SERVICE,CR033415,Hospitality,Materials,550
http://statistics.data.gov.uk/id/local-authority/12UE,Huntingdonshire District Council,23/08/2017,24/08/2017,214487,353522,3.36,SOUTH LINCS FOOD SERVICE,CR033415,Hospitality,Bar Provisions,558
http://statistics.data.gov.uk/id/local-authority/12UE,Huntingdonshire District Council,23/08/2017,24/08/2017,214487,353522,241.96,SOUTH LINCS FOOD SERVICE,CR033415,Hospitality,Catering Materials,559
http://statistics.data.gov.uk/id/local-authority/12UE,Huntingdonshire District Council,23/08/2017,23/08/2017,215690,24583,254.22,B. S. GRAVES ELECTRICAL LTD,CR000363,Parks & Open Spaces,Building Mtce,303
http://statistics.data.gov.uk/id/local-authority/12UE,Huntingdonshire District Council,23/08/2017,24/08/2017,215792,10505274,253.22,LUCOZADE RIBENA SUNTORY LTD,CR422660,Hospitality,Vending Materials,560
http://statistics.data.gov.uk/id/local-authority/12UE,Huntingdonshire District Council,24/08/2017,24/08/2017,215925,1007824664,252.9,HAYS,CR423917,Property Development And Mgt,Hired Staff,100
http://statistics.data.gov.uk/id/local-authority/12UE,Huntingdonshire District Council,15/08/2017,17/08/2017,214893,87592,252,FRANK RATCLIFFE & SON,CR007546,Street Cleansing,Vehicle Parts & Fittings,625
http://statistics.data.gov.uk/id/local-authority/12UE,Huntingdonshire District Council,15/08/2017,17/08/2017,214906,87569,252,FRANK RATCLIFFE & SON,CR007546,Street Cleansing,Vehicle Parts & Fittings,625
http://statistics.data.gov.uk/id/local-authority/12UE,Huntingdonshire District Council,17/08/2017,17/08/2017,215476,12489089510,250.44,E-ON ENERGY,CR416430,Site & Centre Management,Gas,421
http://statistics.data.gov.uk/id/local-authority/12UE,Huntingdonshire District Council,02/08/2017,02/08/2017,214082,2103790634,250.02,BOOKER CASH AND CARRY,CR027611,Hospitality,Vending Materials,560
http://statistics.data.gov.uk/id/local-authority/12UE,Huntingdonshire District Council,02/08/2017,07/08/2017,613912,2017/18 - 11,250,DARBY & JOAN CLUB ST IVES,CR423921,Voluntary Sector Grants,Grants (Paid Out),800
http://statistics.data.gov.uk/id/local-authority/12UE,Huntingdonshire District Council,03/08/2017,03/08/2017,214510,112885,-500,ARTHUR IBBETT LTD,CR000430,Arboricultural Team,Equipment,500
http://statistics.data.gov.uk/id/local-authority/12UE,Huntingdonshire District Council,03/08/2017,03/08/2017,213664,112884,-655,ARTHUR IBBETT LTD,CR000430,Arboricultural Team,Equipment,500
http://statistics.data.gov.uk/id/local-authority/12UE,Huntingdonshire District Council,21/08/2017,21/08/2017,215675,4061,-702,DATACENTRE UK,CR424739,Eastfield House,Plant & Equipment Maintenance,380
http://statistics.data.gov.uk/id/local-authority/12UE,Huntingdonshire District Council,21/08/2017,21/08/2017,215675,4061,"-2,068.00",DATACENTRE UK,CR424739,Pathfinder House,Plant & Equipment Maintenance,380
http://statistics.data.gov.uk/id/local-authority/12UE,Huntingdonshire District Council,17/08/2017,17/08/2017,215650,943460,"-15,250.00",RANSOMES JACOBSEN LTD,CR424662,Vehicles & Plant,Vehicles Purchased,600
http://statistics.data.gov.uk/id/local-authority/12UE,Huntingdonshire District Council,17/08/2017,17/08/2017,215651,943460 /,"-15,250.00",RANSOMES JACOBSEN LTD,CR424662,Vehicles & Plant,Vehicles Purchased,600
http://statistics.data.gov.uk/id/local-authority/12UE,Huntingdonshire District Council,03/08/2017,03/08/2017,214635,303918,"-18,436.00",METROPOLITAN HOUSING TRUST LTD,CR487206,Homelessness,Hostel Revenue Support,817
